{"text_format":"1","workbook":"xlsx","n_sheets":3,"sheets":["Cover","UK","Known Inflow"],"not_rendered":{"charts":4,"images":1,"macros":1,"external_links":0,"defined_names":11,"comments":0,"pivot_tables":0},"unopened":[],"bounds":{"document_bytes":16777216,"sheet_cells":100000,"rows_first":2000,"rows_last":500,"rows_between":2000,"halvings":0,"cell_chars":16384,"cell_head_chars":4096},"cells_cut":0,"cells_raw":0,"read":"whole","date_system":"1900"}

{"sheet":"Cover","index":0,"n_rows":36,"n_cols":32,"rows_kept":36,"cut":false,"hidden":false,"merged":[[39,7,39,8],[39,9,39,24],[39,25,39,29],[37,7,37,8],[37,9,37,24],[37,25,37,29],[38,7,38,8],[38,9,38,24],[38,25,38,29],[35,7,35,8],[35,9,35,24],[35,25,35,29],[36,7,36,8],[36,9,36,24],[36,25,36,29],[4,31,4,35],[34,7,34,8],[34,9,34,24],[34,25,34,29],[6,7,11,29],[13,7,15,29],[17,7,17,29],[19,7,20,29],[22,7,22,12],[23,7,23,29],[25,7,26,29],[28,7,28,23],[33,7,33,8],[33,9,33,24],[33,25,33,29],[0,1,0,5],[0,6,0,30],[0,31,0,35],[1,1,4,5],[1,6,1,11],[1,12,1,30],[1,31,1,35],[2,6,2,11],[2,12,2,30],[2,31,2,35],[3,6,3,30],[3,31,3,35],[4,6,4,11],[4,12,4,18],[4,19,4,24],[4,25,4,30]]}
[null,"Registered User:",null,null,null,null,"Free Trial Version - Not For Commercial Use",null,null,null,null,null,null,null,null,null,null,null,null,null,null,null,null,null,null,null,null,null,null,null,null,"© 2017 CivilWeb"]
[null,"Your Logo / Company Details Here",null,null,null,null,"Project:",null,null,null,null,null,null,null,null,null,null,null,null,null,null,null,null,null,null,null,null,null,null,null,null,"By:"]
[null,null,null,null,null,null,"Calculation:",null,null,null,null,null,"Soakaway Design"]
[null,null,null,null,null,null,null,null,null,null,null,null,null,null,null,null,null,null,null,null,null,null,null,null,null,null,null,null,null,null,null,"Approved:"]
[null,null,null,null,null,null,"Sheet Number:",null,null,null,null,null,"Cover Sheet",null,null,null,null,null,null,"Date:"]
[]
[null,null,null,null,null,null,null,"Although all care and attention has been taken to ensure that this program is accurate, CivilWeb gives no guarentee that it is error free. In no event will Civil Web accept any responsibility for any errors or omissions from the program or from the user of the program, or for any special, incedental or consequential damages whatsoever arising from use of this program."]
[]
[]
[]
[]
[]
[]
[null,null,null,null,null,null,null,"This program should only be used by a suitably qualified Civil or Structural Engineer, and suitable efforts should be taken to verify the results."]
[]
[]
[]
[null,null,null,null,null,null,null,"Reverse-engineering or decompiling of this program is not allowed."]
[]
[null,null,null,null,null,null,null,"This program is registered to a single user, and should not be used by any other."]
[]
[]
[null,null,null,null,null,null,null,"Registered User;"]
[null,null,null,null,null,null,null,"Free Trial Version - Not For Commercial Use"]
[]
[null,null,null,null,null,null,null,"By using this program you confirm your understanding and agreement with the above terms and conditions."]
[]
[]
[null,null,null,null,null,null,null,"This program remains the property of CivilWeb."]
[null,null,null,null,null,null,null,"www.civilweb-spreadsheets.com"]
[]
[null,null,null,null,null,null,null,"Revision Schedule"]
[]
[null,null,null,null,null,null,null,"Rev",null,"Changes",null,null,null,null,null,null,null,null,null,null,null,null,null,null,null,"Date"]
[null,null,null,null,null,null,null,0,null,"Original",null,null,null,null,null,null,null,null,null,null,null,null,null,null,null,"2017-04-18"]
[null,null,null,null,null,null,null,2,null,"Added 200 Year Return Period",null,null,null,null,null,null,null,null,null,null,null,null,null,null,null,"2018-02-08"]

{"sheet":"UK","index":1,"n_rows":189,"n_cols":112,"rows_kept":189,"cut":false,"hidden":false,"merged":[[2,31,2,35],[3,6,3,30],[3,31,3,35],[4,6,4,11],[4,12,4,18],[4,19,4,24],[71,7,71,18],[71,19,71,21],[71,22,71,23],[69,22,69,23],[68,7,68,18],[69,7,69,18],[70,7,70,18],[70,19,70,21],[70,22,70,23],[4,25,4,30],[4,31,4,35],[7,27,7,29],[8,27,8,29],[9,27,9,29],[10,27,10,29],[11,27,11,29],[7,7,7,23],[8,7,8,23],[72,7,72,18],[72,19,72,21],[72,22,72,23],[0,1,0,5],[0,6,0,30],[0,31,0,35],[53,31,53,35],[54,6,54,30],[54,31,54,35],[55,6,55,11],[55,12,55,18],[55,19,55,24],[55,25,55,30],[55,31,55,35],[6,7,6,29],[1,1,4,5],[1,6,1,11],[1,12,1,30],[1,31,1,35],[2,6,2,11],[2,12,2,30],[68,19,68,21],[69,19,69,21],[68,22,68,23],[52,1,55,5],[52,6,52,11],[52,12,52,30],[52,31,52,35],[53,6,53,11],[53,12,53,30],[65,19,65,21],[57,7,57,14],[59,19,59,21],[59,22,59,23],[60,19,60,21],[60,22,60,23],[59,7,59,18],[60,7,60,18],[9,7,9,23],[88,18,88,21],[88,22,88,29],[96,15,96,17],[97,15,97,17],[10,7,10,23],[11,7,11,23],[7,24,7,26],[8,24,8,26],[9,24,9,26],[10,24,10,26],[11,24,11,26],[13,7,13,13],[62,7,62,16],[66,19,66,21],[67,19,67,21],[65,22,65,23],[66,22,66,23],[67,22,67,23],[64,15,64,23],[64,7,64,14],[65,7,65,18],[66,7,66,18],[67,7,67,18],[86,7,86,12],[92,7,92,14],[93,7,93,14],[94,7,94,14],[95,7,95,14],[96,7,96,14],[97,7,97,14],[95,15,95,17],[91,18,91,21],[92,18,92,21],[93,18,93,21],[94,18,94,21],[95,18,95,21],[89,7,89,14],[91,15,91,17],[96,18,96,21],[97,18,97,21],[88,15,88,17],[99,31,99,35],[98,7,98,14],[98,15,98,17],[98,18,98,21],[98,22,98,29],[99,7,99,14],[99,15,99,17],[103,31,103,35],[105,18,105,20],[105,31,105,35],[105,16,105,17],[105,7,105,15],[102,7,102,14],[103,7,103,14],[102,15,102,17],[103,15,103,17],[102,18,102,19],[103,18,103,19],[99,18,99,21],[99,22,99,29],[95,22,95,29],[96,22,96,29],[97,22,97,29],[90,22,90,29],[90,7,90,14],[89,22,89,29],[88,7,88,14],[91,7,91,14],[91,22,91,29],[92,22,92,29],[93,22,93,29],[94,22,94,29],[89,15,89,17],[90,15,90,17],[89,18,89,21],[90,18,90,21],[92,15,92,17],[93,15,93,17],[94,15,94,17]]}
[null,"Registered User:",null,null,null,null,"Free Trial Version - Not For Commercial Use",null,null,null,null,null,null,null,null,null,null,null,null,null,null,null,null,null,null,null,null,null,null,null,null,"© 2017 CivilWeb"]
[null,"Your Logo / Company Details Here",null,null,null,null,"Project:",null,null,null,null,null,null,null,null,null,null,null,null,null,null,null,null,null,null,null,null,null,null,null,null,"By:"]
[null,null,null,null,null,null,"Calculation:",null,null,null,null,null,"Soakaway Design",null,null,null,null,null,null,null,null,null,null,null,null,null,null,null,null,null,null,null,null,null,null,null,null,null,null,null,null,null,null,null,null,null,null,null,null,null,null,null,null,null,null,null,null,null,null,null,null,null,null,null,null,null,null,null,null,"Rainfall","Return Period","Storm duration"]
[null,null,null,null,null,null,null,null,null,null,null,null,null,null,null,null,null,null,null,null,null,null,null,null,null,null,null,null,null,null,null,"Approved:",null,null,null,null,null,null,null,null,null,null,null,null,null,null,null,null,null,null,null,null,null,null,null,null,null,null,null,null,null,null,null,null,null,null,null,null,null,null,null,5,10,15,30,45,60,120,240,480,600,1440,null,null,600]
[null,null,null,null,null,null,"Sheet Number:",null,null,null,null,null,1,null,null,null,null,null,null,"Date:",null,null,null,null,null,null,null,null,null,null,null,null,null,null,null,null,null,null,null,null,null,null,null,null,null,null,null,null,null,null,null,null,null,null,null,null,null,null,null,null,null,null,null,null,null,null,null,null,null,"M5-60",1,55.5,38.799999999999997,30.7,20,15.3,12.7,7.9,4.8,3,2.5,1.3]
[null,null,null,null,null,null,null,null,null,null,null,null,null,null,null,null,null,null,null,null,null,null,null,null,null,null,null,null,null,null,null,null,null,null,null,null,null,null,null,null,null,null,null,null,null,null,null,null,null,null,null,null,null,null,null,null,null,null,null,null,null,null,null,null,null,null,"A","abc",null,20,2,69,49.8,39.700000000000003,25.8,19.600000000000001,16.100000000000001,9.8000000000000007,5.9,4,3,1.6]
[null,null,null,null,null,null,null,"Catchment Details",null,null,null,null,null,null,null,null,null,null,null,null,null,null,null,null,null,null,null,null,null,null,null,null,null,null,null,null,null,null,null,null,null,null,null,null,null,null,null,null,null,null,null,null,null,null,null,null,null,null,null,null,null,null,null,null,null,null,"B","def",null,"r Ratio",5,90.9,65,51.6,33.200000000000003,25.1,20.5,12.4,7.4,4,3.6,1.9]
[null,null,null,null,null,null,null,"Catchment Area",null,null,null,null,null,null,null,null,null,null,null,null,null,null,null,null,200,null,null,"m²",null,null,null,null,null,null,null,null,null,null,null,null,null,null,null,null,null,null,null,null,null,null,null,null,null,null,null,null,null,null,null,null,null,null,null,null,null,null,"C","ghi",null,0.4,10,104.2,75.3,59.9,38.700000000000003,29.4,24,14.5,8.6,5,4.3,2.2000000000000002]
[null,null,null,null,null,null,null,"Runoff Coefficient",null,null,null,null,null,null,null,null,null,null,null,null,null,null,null,null,1,null,null,null,null,null,null,null,null,null,null,null,null,null,null,null,null,null,null,null,null,null,null,null,null,null,null,null,null,null,null,null,null,null,null,null,null,null,null,null,null,null,"D","jkl",null,null,15,112.8,82,65.400000000000006,42.4,32.200000000000003,26.3,15.9,9.4,6,{"$f":"AVERAGE(CC8,CC10)","v":4.6500000000000004},{"$f":"AVERAGE(CD8,CD10)","v":2.35}]
[null,null,null,null,null,null,null,"Location Code",null,null,null,null,null,null,null,null,null,null,null,null,null,null,null,null,"A",null,null,null,null,null,null,null,null,null,null,null,null,null,null,null,null,null,null,null,null,null,null,null,null,null,null,null,null,null,null,null,null,null,null,null,null,null,null,null,null,null,"E","mno",null,null,20,119.4,87.1,69.599999999999994,45.2,34.4,28.1,17,10.1,6,5,2.5]
[null,null,null,null,null,null,null,"Return Period",null,null,null,null,null,null,null,null,null,null,null,null,null,null,null,null,50,null,null,"years",null,null,null,null,null,null,null,null,null,null,null,null,null,null,null,null,null,null,null,null,null,null,null,null,null,null,null,null,null,null,null,null,null,null,null,null,null,null,"F","pqr",null,null,25,124.8,91.3,73.099999999999994,47.5,36.200000000000003,29.6,17.899999999999999,10.6,6,{"$f":"AVERAGE(CC10,CC12)","v":5.15},{"$f":"AVERAGE(CD10,CD12)","v":2.6}]
[null,null,null,null,null,null,null,"Climate Change Factor",null,null,null,null,null,null,null,null,null,null,null,null,null,null,null,null,30,null,null,"%",null,null,null,null,null,null,null,null,null,null,null,null,null,null,null,null,null,null,null,null,null,null,null,null,null,null,null,null,null,null,null,null,null,null,null,null,null,null,"G","stu",null,null,30,129.30000000000001,94.9,76,49.5,37.700000000000003,30.8,18.600000000000001,11,6,5.3,2.7]
[null,null,null,null,null,null,null,null,null,null,null,null,null,null,null,null,null,null,null,null,null,null,null,null,null,null,null,null,null,null,null,null,null,null,null,null,null,null,null,null,null,null,null,null,null,null,null,null,null,null,null,null,null,null,null,null,null,null,null,null,null,null,null,null,null,null,"H","vw",null,null,50,143,105.7,84.9,55.5,42.3,34.6,20.9,12.3,7,6,3]
[null,null,null,null,null,null,null,"UK Rainfall Map",null,null,null,null,null,null,null,null,null,null,null,null,null,null,null,null,null,null,null,null,null,null,null,null,null,null,null,null,null,null,null,null,null,null,null,null,null,null,null,null,null,null,null,null,null,null,null,null,null,null,null,null,null,null,null,null,null,null,null,null,null,null,100,163.9,122.4,98.7,64.8,49.5,40.5,24.5,14.3,8,6.9,3.5]
[null,null,null,null,null,null,null,null,null,null,null,null,null,null,null,null,null,null,null,null,null,null,null,null,null,null,null,null,null,null,null,null,null,null,null,null,null,null,null,null,null,null,null,null,null,null,null,null,null,null,null,null,null,null,null,null,null,null,null,null,null,null,null,null,null,null,"Rectangular Trench/Pit",null,null,null,200,{"$f":"(BT16-BT14)*0.25+BT14","v":179.17500000000001},{"$f":"(BU16-BU14)*0.25+BU14","v":134.77500000000001},108.97500000000001,71.825000000000003,54.924999999999997,44.975000000000001,27.175000000000001,15.850000000000001,9,7.6750000000000007,3.875,0,0]
[null,null,null,null,null,null,null,null,null,null,null,null,null,null,null,null,null,null,null,null,null,null,null,null,null,null,null,null,null,null,null,null,null,null,null,null,null,null,null,null,null,null,null,null,null,null,null,null,null,null,null,null,null,null,null,null,null,null,null,null,null,null,null,null,null,null,"Perforated Manhole",null,null,null,500,225,171.9,139.80000000000001,92.9,71.2,58.4,35.200000000000003,20.5,12,10,5]
[null,null,null,null,null,null,null,null,null,null,null,null,null,null,null,null,null,null,null,null,null,null,null,null,null,null,null,null,null,null,null,null,null,null,null,null,null,null,null,null,null,null,null,null,null,null,null,null,null,null,null,null,null,null,null,null,null,null,null,null,null,null,null,null,null,null,"Manhole Within Pit",null,null,null,1000,257.89999999999998,199,162.5,108.4,83.3,68.400000000000006,41.2,23.8,14,12,6]
[null,null,null,null,null,null,null,null,null,null,null,null,null,null,null,null,null,null,null,null,null,null,null,null,null,null,null,null,null,null,null,null,null,null,null,null,null,null,null,null,null,null,null,null,null,null,null,null,null,null,null,null,null,null,null,null,null,null,null,null,null,null,null,null,null,null,null,null,null,null,null,null,{"$f":"BU14/BU16","v":0.7120418848167539},0.70600858369098707,0.69752421959095789,0.6952247191011236,0.69349315068493156,0.69602272727272718,0.69756097560975616,0.66666666666666663,0.69000000000000006,0.7]
[null,null,null,null,null,null,null,null,null,null,null,null,null,null,null,null,null,null,null,null,null,null,null,null,null,null,null,null,null,null,null,null,null,null,null,null,null,null,null,null,null,null,null,null,null,null,null,null,null,null,null,null,null,null,null,null,null,null,null,null,null,null,null,null,null,null,null,null,null,null,null,null,{"$f":"BU16/BU17","v":0.863819095477387},{"$f":"BV16/BV17","v":0.86030769230769233},0.8570110701107011,0.85474189675870349,0.85380116959064323,0.85436893203883502,0.86134453781512599,0.8571428571428571,{"$f":"CC16/CC17","v":0.83333333333333337},0.83333333333333337]
[null,null,null,null,null,null,null,null,null,null,null,null,null,null,null,null,null,null,null,null,null,null,null,null,null,null,null,null,null,null,null,null,null,null,null,null,null,null,null,null,null,null,null,null,null,null,null,null,null,null,null,null,null,null,null,null,null,null,null,null,null,null,null,null,null,null,{"$f":"MATCH(Y11,BS5:BS17)+1","v":10},null,null,"Rainfall","Return Period","Storm duration"]
[null,null,null,null,null,null,null,null,null,null,null,null,null,null,null,null,null,null,null,null,null,null,null,null,null,null,null,null,null,null,null,null,null,null,null,null,null,null,null,null,null,null,null,null,null,null,null,null,null,null,null,null,null,null,null,null,null,null,null,null,null,null,null,null,null,null,null,null,null,null,null,5,10,15,30,45,60,120,240,480,600,1440,null,null,null,null,null,null,null,null,null,null,600,1440]
[null,null,null,null,null,null,null,null,null,null,null,null,null,null,null,null,null,null,null,null,null,null,null,null,null,null,null,null,null,null,null,null,null,null,null,null,null,null,null,null,null,null,null,null,null,null,null,null,null,null,null,null,null,null,null,null,null,null,null,null,null,null,null,null,null,null,null,{"$f":"VLOOKUP(Y10,BO6:BP13,2,FALSE)","v":"abc"},null,"M5-60",1,47.9,33.200000000000003,26.2,16.8,12.8,10.6,6.5,4,2.2999999999999998,2,1.1000000000000001,null,null,null,null,null,null,null,null,null,0.12,3.7,6]
[null,null,null,null,null,null,null,null,null,null,null,null,null,null,null,null,null,null,null,null,null,null,null,null,null,null,null,null,null,null,null,null,null,null,null,null,null,null,null,null,null,null,null,null,null,null,null,null,null,null,null,null,null,null,null,null,null,null,null,null,null,null,null,null,null,null,null,null,null,17,2,58.4,42.1,33.6,21.8,16.600000000000001,13.6,8.3000000000000007,5,3,2.5,1.3,null,null,null,null,null,null,null,null,null,0.15,3.23,4.9000000000000004]
[null,null,null,null,null,null,null,null,null,null,null,null,null,null,null,null,null,null,null,null,null,null,null,null,null,null,null,null,null,null,null,null,null,null,null,null,null,null,null,null,null,null,null,null,null,null,null,null,null,null,null,null,null,null,null,null,null,null,null,null,null,null,null,null,null,null,null,null,null,"r Ratio",5,77.2,55.2,43.8,28.2,21.3,17.399999999999999,10.5,6.3,4,3.1,1.6,null,null,null,null,null,null,null,null,null,0.18,2.86,4.3]
[null,null,null,null,null,null,null,null,null,null,null,null,null,null,null,null,null,null,null,null,null,null,null,null,null,null,null,null,null,null,null,null,null,null,null,null,null,null,null,null,null,null,null,null,null,null,null,null,null,null,null,null,null,null,null,null,null,null,null,null,null,null,null,null,null,null,null,null,null,0.4,10,88.2,63.6,50.7,32.799999999999997,24.9,20.399999999999999,12.3,7.4,4,3.7,1.9,null,null,null,null,null,null,null,null,null,0.21,2.62,3.6]
[null,null,null,null,null,null,null,null,null,null,null,null,null,null,null,null,null,null,null,null,null,null,null,null,null,null,null,null,null,null,null,null,null,null,null,null,null,null,null,null,null,null,null,null,null,null,null,null,null,null,null,null,null,null,null,null,null,null,null,null,null,null,null,null,null,null,null,null,null,null,15,95.3,69.099999999999994,55.3,35.799999999999997,27.3,22.3,13.5,8.1,5,{"$f":"AVERAGE(CC25,CC27)","v":4},{"$f":"AVERAGE(CD25,CD27)","v":2.0499999999999998},null,null,null,null,null,null,null,null,null,0.24,2.4,3.35]
[null,null,null,null,null,null,null,null,null,null,null,null,null,null,null,null,null,null,null,null,null,null,null,null,null,null,null,null,null,null,null,null,null,null,null,null,null,null,null,null,null,null,null,null,null,null,null,null,null,null,null,null,null,null,null,null,null,null,null,null,null,null,null,null,null,null,null,null,null,null,20,100.8,73.3,58.7,38.200000000000003,29.1,23.8,14.4,8.6,5,4.3,2.2000000000000002,null,null,null,null,null,null,null,null,null,0.27,2.2400000000000002,3.1]
[null,null,null,null,null,null,null,null,null,null,null,null,null,null,null,null,null,null,null,null,null,null,null,null,null,null,null,null,null,null,null,null,null,null,null,null,null,null,null,null,null,null,null,null,null,null,null,null,null,null,null,null,null,null,null,null,null,null,null,null,null,null,null,null,null,null,null,null,null,null,25,105.2,76.7,61.6,40.1,30.5,25,15.2,9.1,5,{"$f":"AVERAGE(CC27,CC29)","v":4.4499999999999993},{"$f":"AVERAGE(CD27,CD29)","v":2.25},null,null,null,null,null,null,null,null,null,0.3,2.12,2.84]
[null,null,null,null,null,null,null,null,null,null,null,null,null,null,null,null,null,null,null,null,null,null,null,null,null,null,null,null,null,null,null,null,null,null,null,null,null,null,null,null,null,null,null,null,null,null,null,null,null,null,null,null,null,null,null,null,null,null,null,null,null,null,null,null,null,null,null,null,null,null,30,108.9,79.7,64,41.7,31.8,26.1,15.8,9.5,6,4.5999999999999996,2.2999999999999998,null,null,null,null,null,null,null,null,null,0.33,2.04,2.6]
[null,null,null,null,null,null,null,null,null,null,null,null,null,null,null,null,null,null,null,null,null,null,null,null,null,null,null,null,null,null,null,null,null,null,null,null,null,null,null,null,null,null,null,null,null,null,null,null,null,null,null,null,null,null,null,null,null,null,null,null,null,null,null,null,null,null,null,null,null,null,50,120.1,88.4,71.3,46.7,35.6,29.2,17.8,10.6,6,5.2,2.6,null,null,null,null,null,null,null,null,null,0.36,1.9,2.42]
[null,null,null,null,null,null,null,null,null,null,null,null,null,null,null,null,null,null,null,null,null,null,null,null,null,null,null,null,null,null,null,null,null,null,null,null,null,null,null,null,null,null,null,null,null,null,null,null,null,null,null,null,null,null,null,null,null,null,null,null,null,null,null,null,null,null,null,null,null,null,100,137.19999999999999,101.9,82.6,54.3,41.6,34.200000000000003,20.8,12.4,7,6,3,null,null,null,null,null,null,null,null,null,0.39,1.82,2.2799999999999998]
[null,null,null,null,null,null,null,null,null,null,null,null,null,null,null,null,null,null,null,null,null,null,null,null,null,null,null,null,null,null,null,null,null,null,null,null,null,null,null,null,null,null,null,null,null,null,null,null,null,null,null,null,null,null,null,null,null,null,null,null,null,null,null,null,null,null,null,null,null,null,200,{"$f":"(BT33-BT31)*0.25+BT31","v":149.64999999999998},{"$f":"(BU33-BU31)*0.25+BU31","v":111.825},{"$f":"(BV33-BV31)*0.25+BV31","v":90.949999999999989},{"$f":"(BW33-BW31)*0.25+BW31","v":60.05},{"$f":"(BX33-BX31)*0.25+BX31","v":46.075000000000003},{"$f":"(BY33-BY31)*0.25+BY31","v":37.900000000000006},{"$f":"(BZ33-BZ31)*0.25+BZ31","v":23.1},{"$f":"(CA33-CA31)*0.25+CA31","v":13.775},{"$f":"(CB33-CB31)*0.25+CB31","v":7.75},{"$f":"(CC33-CC31)*0.25+CC31","v":6.625},{"$f":"(CD33-CD31)*0.25+CD31","v":3.25},null,null,null,null,null,null,null,null,null,0.4,1.77]
[null,null,null,null,null,null,null,null,null,null,null,null,null,null,null,null,null,null,null,null,null,null,null,null,null,null,null,null,null,null,null,null,null,null,null,null,null,null,null,null,null,null,null,null,null,null,null,null,null,null,null,null,null,null,null,null,null,null,null,null,null,null,null,null,null,null,null,null,null,null,500,187,141.6,116,77.3,59.5,49,30,17.899999999999999,10,8.5,4,null,null,null,null,null,null,null,null,null,0.42,1.74,2.16]
[null,null,null,null,null,null,null,null,null,null,null,null,null,null,null,null,null,null,null,null,null,null,null,null,null,null,null,null,null,null,null,null,null,null,null,null,null,null,null,null,null,null,null,null,null,null,null,null,null,null,null,null,null,null,null,null,null,null,null,null,null,null,null,null,null,null,null,null,null,null,1000,213.6,163.1,134.30000000000001,90,69.5,57.3,35.200000000000003,20.9,12,10,4.7,null,null,null,null,null,null,null,null,null,0.45,1.68,2.0299999999999998]
[null,null,null,null,null,null,null,null,null,null,null,null,null,null,null,null,null,null,null,null,null,null,null,null,null,null,null,null,null,null,null,null,null,null,null,null,null,null,null,null,null,null,null,null,null,null,null,null,null,null,null,null,null,null,null,null,null,null,null,null,null,null,null,null,null,null,null,null,null,null,null,null,{"$f":"BU31/BU33","v":0.71963276836158196},0.7120689655172413,0.70245795601552397,0.69915966386554629,0.69795918367346943,0.69333333333333336,0.69273743016759781,0.7,0.70588235294117652,0.75]
[null,null,null,null,null,null,null,null,null,null,null,null,null,null,null,null,null,null,null,null,null,null,null,null,null,null,null,null,null,null,null,null,null,null,null,null,null,null,null,null,null,null,null,null,null,null,null,null,null,null,null,null,null,null,null,null,null,null,null,null,null,null,null,null,null,null,null,null,null,null,null,null,{"$f":"BU33/BU34","v":0.86817903126916007},{"$f":"BV33/BV34","v":0.86373790022338037},0.85888888888888881,0.85611510791366907,0.85514834205933687,0.85227272727272718,0.8564593301435407,0.83333333333333337,{"$f":"CC33/CC34","v":0.85},{"$f":"CD33/CD34","v":0.85106382978723405}]
[null,null,null,null,null,null,null,null,null,null,null,null,null,null,null,null,null,null,null,null,null,null,null,null,null,null,null,null,null,null,null,null,null,null,null,null,null,null,null,null,null,null,null,null,null,null,null,null,null,null,null,null,null,null,null,null,null,null,null,null,null,null,null,null,null,null,null,null,null,"Rainfall","Return Period","Storm duration"]
[null,null,null,null,null,null,null,null,null,null,null,null,null,null,null,null,null,null,null,null,null,null,null,null,null,null,null,null,null,null,null,null,null,null,null,null,null,null,null,null,null,null,null,null,null,null,null,null,null,null,null,null,null,null,null,null,null,null,null,null,null,null,null,null,null,null,null,null,null,null,null,5,10,15,30,45,60,120,240,480,600,1440]
[null,null,null,null,null,null,null,null,null,null,null,null,null,null,null,null,null,null,null,null,null,null,null,null,null,null,null,null,null,null,null,null,null,null,null,null,null,null,null,null,null,null,null,null,null,null,null,null,null,null,null,null,null,null,null,null,null,null,null,null,null,null,null,null,null,null,null,null,null,"M5-60",1,34.9,25,19.899999999999999,13.2,10.3,8.6,5.5,3.6,2.2000000000000002,2,1.2]
[null,null,null,null,null,null,null,null,null,null,null,null,null,null,null,null,null,null,null,null,null,null,null,null,null,null,null,null,null,null,null,null,null,null,null,null,null,null,null,null,null,null,null,null,null,null,null,null,null,null,null,null,null,null,null,null,null,null,null,null,null,null,null,null,null,null,null,null,null,14,2,41.2,30.7,25,16.899999999999999,13.3,11.1,7.1,4.5,3,2.5,1.4]
[null,null,null,null,null,null,null,null,null,null,null,null,null,null,null,null,null,null,null,null,null,null,null,null,null,null,null,null,null,null,null,null,null,null,null,null,null,null,null,null,null,null,null,null,null,null,null,null,null,null,null,null,null,null,null,null,null,null,null,null,null,null,null,null,null,null,null,null,null,"r Ratio",5,54.8,40.5,32.9,22.1,17.2,14.3,9.1,5.7,4,3.1,1.7]
[null,null,null,null,null,null,null,null,null,null,null,null,null,null,null,null,null,null,null,null,null,null,null,null,null,null,null,null,null,null,null,null,null,null,null,null,null,null,null,null,null,null,null,null,null,null,null,null,null,null,null,null,null,null,null,null,null,null,null,null,null,null,null,null,null,null,null,null,null,0.3,10,62.3,46.3,37.799999999999997,25.6,20,16.7,10.7,6.7,4,3.5,2]
[null,null,null,null,null,null,null,null,null,null,null,null,null,null,null,null,null,null,null,null,null,null,null,null,null,null,null,null,null,null,null,null,null,null,null,null,null,null,null,null,null,null,null,null,null,null,null,null,null,null,null,null,null,null,null,null,null,null,null,null,null,null,null,null,null,null,null,null,null,null,15,67.099999999999994,50.1,41,27.9,21.8,18.3,11.7,7.4,5,{"$f":"AVERAGE(CC42,CC44)","v":3.85},{"$f":"AVERAGE(CD42,CD44)","v":2.15}]
[null,null,null,null,null,null,null,null,null,null,null,null,null,null,null,null,null,null,null,null,null,null,null,null,null,null,null,null,null,null,null,null,null,null,null,null,null,null,null,null,null,null,null,null,null,null,null,null,null,null,null,null,null,null,null,null,null,null,null,null,null,null,null,null,null,null,null,null,null,null,20,70.8,53,43.4,29.6,23.2,19.399999999999999,12.5,7.9,5,4.2,2.2999999999999998]
[null,null,null,null,null,null,null,null,null,null,null,null,null,null,null,null,null,null,null,null,null,null,null,null,null,null,null,null,null,null,null,null,null,null,null,null,null,null,null,null,null,null,null,null,null,null,null,null,null,null,null,null,null,null,null,null,null,null,null,null,null,null,null,null,null,null,null,null,null,null,25,73.7,55.3,45.4,31.1,24.4,20.399999999999999,13.1,8.3000000000000007,5,{"$f":"AVERAGE(CC44,CC46)","v":4.3499999999999996},{"$f":"AVERAGE(CD44,CD46)","v":2.3499999999999996}]
[null,null,null,null,null,null,null,null,null,null,null,null,null,null,null,null,null,null,null,null,null,null,null,null,null,null,null,null,null,null,null,null,null,null,null,null,null,null,null,null,null,null,null,null,null,null,null,null,null,null,null,null,null,null,null,null,null,null,null,null,null,null,null,null,null,null,null,null,null,null,30,76.3,57.3,47,32.299999999999997,25.4,21.3,13.7,8.6,5,4.5,2.4]
[null,null,null,null,null,null,null,null,null,null,null,null,null,null,null,null,null,null,null,null,null,null,null,null,null,null,null,null,null,null,null,null,null,null,null,null,null,null,null,null,null,null,null,null,null,null,null,null,null,null,null,null,null,null,null,null,null,null,null,null,null,null,null,null,null,null,null,null,null,null,50,83.8,63.2,52.1,36,28.3,23.8,15.3,9.6999999999999993,6,5,2.7]
[null,null,null,null,null,null,null,null,null,null,null,null,null,null,null,null,null,null,null,null,null,null,null,null,null,null,null,null,null,null,null,null,null,null,null,null,null,null,null,null,null,null,null,null,null,null,null,null,null,null,null,null,null,null,null,null,null,null,null,null,null,null,null,null,null,null,null,null,null,null,100,95.3,72.3,59.8,41.7,32.9,27.7,17.899999999999999,11.3,7,5.9,3.1]
[null,null,null,null,null,null,null,null,null,null,null,null,null,null,null,null,null,null,null,null,null,null,null,null,null,null,null,null,null,null,null,null,null,null,null,null,null,null,null,null,null,null,null,null,null,null,null,null,null,null,null,null,null,null,null,null,null,null,null,0,0,{"$f":"BH49","v":0},null,null,null,null,null,null,null,null,200,{"$f":"(BT50-BT48)*0.25+BT48","v":103.52499999999999},{"$f":"(BU50-BU48)*0.25+BU48","v":78.900000000000006},{"$f":"(BV50-BV48)*0.25+BV48","v":65.474999999999994},{"$f":"(BW50-BW48)*0.25+BW48","v":45.925000000000004},{"$f":"(BX50-BX48)*0.25+BX48","v":36.35},{"$f":"(BY50-BY48)*0.25+BY48","v":30.625},{"$f":"(BZ50-BZ48)*0.25+BZ48","v":19.875},{"$f":"(CA50-CA48)*0.25+CA48","v":12.574999999999999},{"$f":"(CB50-CB48)*0.25+CB48","v":7.75},{"$f":"(CC50-CC48)*0.25+CC48","v":6.5},{"$f":"(CD50-CD48)*0.25+CD48","v":3.4}]
[null,null,null,null,null,null,null,null,null,null,null,null,null,null,null,null,null,null,null,null,null,null,null,null,null,null,null,null,null,null,null,null,null,null,null,null,null,null,null,null,null,null,null,null,null,null,null,null,null,null,null,null,null,null,null,null,null,null,null,{"$f":"H90","v":5},{"$f":"W90","v":3.071105555555556},5,null,null,null,null,null,null,null,null,500,128.19999999999999,98.7,82.5,58.6,46.7,39.4,25.8,16.399999999999999,10,8.3000000000000007,4.3]
[null,null,null,null,null,null,null,null,null,null,null,null,null,null,null,null,null,null,null,null,null,null,null,null,null,null,null,null,null,null,null,null,null,null,null,null,null,null,null,null,null,null,null,null,null,null,null,null,null,null,null,null,null,null,null,null,null,null,null,10,4.5258777777777777,10,null,null,null,null,null,null,null,null,1000,145.69999999999999,112.9,94.8,67.8,54.2,45.9,30.1,19.2,12,10,5]
[null,null,null,null,null,null,null,null,null,null,null,null,null,null,null,null,null,null,null,null,null,null,null,null,null,null,null,null,null,null,null,null,null,null,null,null,null,null,null,null,null,null,null,null,null,null,null,null,null,null,null,null,null,null,null,null,null,null,null,15,5.4368166666666662,15,null,null,null,null,null,null,null,null,null,null,{"$f":"BU48/BU50","v":0.73252279635258355},0.72484848484848485,0.71160409556313997,0.70449678800856519,0.70304568527918787,0.693798449612403,0.6890243902439025,0.7,0.71084337349397586,0.72093023255813959,null,null,null,null,"dims"]
[null,"Your Logo / Company Details Here",null,null,null,null,"Project:",null,null,null,null,null,{"$f":"IF(M2=\"\",\"\",M2)","v":""},null,null,null,null,null,null,null,null,null,null,null,null,null,null,null,null,null,null,"By:",null,null,null,null,null,null,null,null,null,null,null,null,null,null,null,null,null,null,null,null,null,null,null,null,null,null,null,30,7.0516333333333332,30,null,null,null,null,null,null,null,null,null,null,{"$f":"BU50/BU51","v":0.87422497785651021},{"$f":"BV50/BV51","v":0.870253164556962},0.86430678466076705,0.86162361623616235,0.85838779956427014,0.8571428571428571,0.85416666666666663,0.83333333333333337,{"$f":"CC50/CC51","v":0.83000000000000007},{"$f":"CD50/CD51","v":0.86},null,null,null,null,{"$f":"MIN(CS89:CS189)","v":0},5.4]
[null,null,null,null,null,null,"Calculation:",null,null,null,null,null,{"$f":"IF(M3=\"\",\"\",M3)","v":"Soakaway Design"},null,null,null,null,null,null,null,null,null,null,null,null,null,null,null,null,null,null,"",null,null,null,null,null,null,null,null,null,null,null,null,null,null,null,null,null,null,null,null,null,null,null,null,null,null,null,45,8.0034499999999991,45,null,null,null,null,null,null,null,"Rainfall","Return Period","Storm duration",null,null,null,null,null,null,null,null,null,null,null,null,null,null,{"$f":"MAX(CS89:CS189)","v":5},5.4]
[null,null,null,null,null,null,"",null,null,null,null,null,null,null,null,null,null,null,null,null,null,null,null,null,null,null,null,null,null,null,null,"Approved:",null,null,null,null,null,null,null,null,null,null,null,null,null,null,null,null,null,null,null,null,null,null,null,null,null,null,null,60,8.6692666666666671,60,null,null,null,null,null,null,null,null,null,5,10,15,30,45,60,120,240,480,600,1440]
[null,null,null,null,null,null,"Sheet Number:",null,null,null,null,null,2,null,null,null,null,null,null,"Date:",null,null,null,null,null,"",null,null,null,null,null,"",null,null,null,null,null,null,null,null,null,null,null,null,null,null,null,null,null,null,null,null,null,null,null,null,null,null,null,120,10.214533333333334,120,null,null,null,null,null,null,null,"M5-60",1,41.9,29.9,23.9,16,12.6,10.6,6.9,4.5,3,2.5,1.4,null,null,null,null,-0.4,{"$f":"MIN(CT89:CT189)","v":0}]
[null,null,null,null,null,null,null,null,null,null,null,null,null,null,null,null,null,null,null,null,null,null,null,null,null,null,null,null,null,null,null,null,null,null,null,null,null,null,null,null,null,null,null,null,null,null,null,null,null,null,null,null,null,null,null,null,null,null,null,240,11.485066666666668,240,null,null,null,null,null,null,null,17,2,50.2,37.4,30.5,20.7,16.2,13.6,8.6999999999999993,5.6,4,3,1.7,null,null,null,{"$f":"IF(P65=\"Rectangular Trench/Pit\",T67,T68)&\"m\"","v":"6.5m"},-0.4,{"$f":"MAX(CT89:CT189)","v":5}]
[null,null,null,null,null,null,null,"Ground Information",null,null,null,null,null,null,null,null,null,null,null,null,null,null,null,null,null,null,null,null,null,null,null,null,null,null,null,null,null,null,null,null,null,null,null,null,null,null,null,null,null,null,null,null,null,null,null,null,null,null,null,480,11.946133333333334,480,null,null,null,null,null,null,null,"r Ratio",5,66.5,49.2,40,26.9,20.9,17.399999999999999,11.1,7,4,3.7,2,null,null,null,{"$f":"T68&\"m\"","v":"6.5m"}]
[null,null,null,null,null,null,null,null,null,null,null,null,null,null,null,null,null,null,null,null,null,null,null,null,null,null,null,null,null,null,null,null,null,null,null,null,null,null,null,null,null,null,null,null,null,null,null,null,null,null,null,null,null,null,null,null,null,null,null,null,null,null,null,null,null,null,null,null,null,0.3,10,75.8,56.5,46.2,31.2,24.4,20.399999999999999,13,8.1,5,4.3,2.4,null,null,null,{"$f":"T69&\"m\"","v":"2m"},{"$f":"CI53+(CI54-CI53)/2","v":2.5},{"$f":"CJ53","v":5.4}]
[null,null,null,null,null,null,null,"Infiltration Rate",null,null,null,null,null,null,null,null,null,null,null,1.04E-2,null,null,"m/hr",null,null,null,null,null,null,null,null,null,null,null,null,null,null,null,null,null,null,null,null,null,null,null,null,null,null,null,null,null,null,null,null,null,null,null,null,null,null,null,null,null,null,null,null,null,null,null,15,81.8,61.3,50.2,34.1,26.7,22.3,14.2,8.9,5,{"$f":"AVERAGE(CC59,CC61)","v":4.6500000000000004},{"$f":"AVERAGE(CD59,CD61)","v":2.5499999999999998},null,null,null,null,{"$f":"CI57","v":-0.4},{"$f":"CJ56+(CJ57-CJ56)/2","v":2.5}]
[null,null,null,null,null,null,null,"Factor of Safety",null,null,null,null,null,null,null,null,null,null,null,1.5,null,null,null,null,null,null,null,null,null,null,null,null,null,null,null,null,null,null,null,null,null,null,null,null,null,null,null,null,null,null,null,null,null,null,null,null,null,null,null,null,null,null,null,null,null,null,null,null,null,null,20,86.4,64.900000000000006,53.3,36.299999999999997,28.5,23.8,15.2,9.5,6,5,2.7]
[null,null,null,null,null,null,null,null,null,null,null,null,null,null,null,null,null,null,null,null,null,null,null,null,null,null,null,null,null,null,null,null,null,null,null,null,null,null,null,null,null,null,null,null,null,null,null,null,null,null,null,null,null,null,null,null,null,null,null,null,null,null,null,null,null,null,null,null,null,null,25,90.1,67.900000000000006,55.9,38.1,29.9,25,16,10,6,{"$f":"AVERAGE(CC61,CC63)","v":5.2},{"$f":"AVERAGE(CD61,CD63)","v":2.8},null,null,null,null,{"$f":"MIN(CN76:CN80)","v":0},5.4]
[null,null,null,null,null,null,null,"Soakaway Design",null,null,null,null,null,null,null,null,null,null,null,null,null,null,null,null,null,null,null,null,null,null,null,null,null,null,null,null,null,null,null,null,null,null,null,null,null,null,null,null,null,null,null,null,null,null,null,null,null,null,null,null,null,null,null,null,null,null,null,null,null,null,30,93.3,70.400000000000006,58,39.700000000000003,31.1,26.1,16.7,10.4,6,5.4,2.9,null,null,null,null,{"$f":"MAX(CN76:CN80)","v":5},5.4]
[null,null,null,null,null,null,null,null,null,null,null,null,null,null,null,null,null,null,null,null,null,null,null,null,null,null,null,null,null,null,null,null,null,null,null,null,null,null,null,null,null,null,null,null,null,null,null,null,null,null,null,null,null,null,null,null,null,null,null,null,null,null,null,null,null,null,null,null,null,null,50,102.7,78,64.5,44.3,34.9,29.2,18.7,11.7,7,6,3.2]
[null,null,null,null,null,null,null,"Soakaway Shape",null,null,null,null,null,null,null,"Manhole Within Pit",null,null,null,null,null,null,null,null,null,null,null,null,null,null,null,null,null,null,null,null,null,null,null,null,null,null,null,null,null,null,null,null,null,null,null,null,null,null,null,null,null,null,null,null,null,null,null,null,null,null,null,null,null,null,100,117,89.5,74.599999999999994,51.6,40.700000000000003,34.200000000000003,21.9,13.6,8,7,3.7,null,null,null,null,5.4,{"$f":"MIN(CO76:CO80)","v":1.7307692307692308}]
[null,null,null,null,null,null,null,"Number of Soakaways",null,null,null,null,null,null,null,null,null,null,null,1,null,null,null,null,null,null,null,null,null,null,null,null,null,null,null,null,null,null,null,null,null,null,null,null,null,null,null,null,null,null,null,null,null,null,null,null,null,null,null,null,null,null,null,null,null,null,null,null,null,null,200,{"$f":"(BT67-BT65)*0.25+BT65","v":127.375},{"$f":"(BU67-BU65)*0.25+BU65","v":98},{"$f":"(BV67-BV65)*0.25+BV65","v":82},{"$f":"(BW67-BW65)*0.25+BW65","v":57},{"$f":"(BX67-BX65)*0.25+BX65","v":45.075000000000003},{"$f":"(BY67-BY65)*0.25+BY65","v":37.900000000000006},{"$f":"(BZ67-BZ65)*0.25+BZ65","v":24.324999999999999},{"$f":"(CA67-CA65)*0.25+CA65","v":15.074999999999999},{"$f":"(CB67-CB65)*0.25+CB65","v":9},{"$f":"(CC67-CC65)*0.25+CC65","v":7.75},{"$f":"(CD67-CD65)*0.25+CD65","v":4.1500000000000004},null,null,null,null,5.4,{"$f":"MAX(CO76:CO80)","v":3.2692307692307692}]
[null,null,null,null,null,null,null,{"$f":"IF(P65=\"Perforated Manhole\",\"\",\"Length\")","v":"Length"},null,null,null,null,null,null,null,null,null,null,null,6.5,null,null,{"$f":"IF(P65=\"Rectangular Trench/Pit\",\"m\",\"\")","v":""},null,null,null,null,null,null,null,null,null,null,null,null,null,null,null,null,null,null,null,null,null,null,null,null,null,null,null,null,null,null,null,null,null,null,null,null,null,null,null,null,null,null,null,null,null,null,null,500,158.5,123.5,104.2,73.2,58.2,49,31.6,19.5,12,10,5.5]
[null,null,null,null,null,null,null,{"$f":"IF(P65=\"Perforated Manhole\",\"Diameter\",\"Width\")","v":"Width"},null,null,null,null,null,null,null,null,null,null,null,6.5,null,null,"m",null,null,null,null,null,null,null,null,null,null,null,null,null,null,null,null,null,null,null,null,null,null,null,null,null,null,null,null,null,null,null,null,null,null,null,null,null,null,null,null,null,null,null,null,null,null,null,1000,180.6,141.80000000000001,120.4,85.1,67.900000000000006,57.3,37,22.8,13,12,6.5,null,null,null,null,{"$f":"CI62+(CI63-CI62)/2","v":2.5},{"$f":"CJ62","v":5.4}]
[null,null,null,null,null,null,null,"Effective Depth",null,null,null,null,null,null,null,null,null,null,null,2,null,null,"m",null,null,null,null,null,null,null,null,null,null,null,null,null,null,null,null,null,null,null,null,null,null,null,null,null,null,null,null,null,null,null,null,null,null,null,null,null,null,null,null,null,null,null,null,null,null,null,null,null,{"$f":"BU65/BU67","v":0.7246963562753036},0.71593090211132426,0.70491803278688525,0.69931271477663237,0.69795918367346943,0.69303797468354422,0.6974358974358974,0.66666666666666663,0.7,0.67272727272727273,null,null,null,null,{"$f":"CI66","v":5.4},{"$f":"CJ65+(CJ66-CJ65)/2","v":2.5}]
[null,null,null,null,null,null,null,"Void Percentage",null,null,null,null,null,null,null,null,null,null,null,30,null,null,"%",null,null,null,null,null,null,null,null,null,null,null,null,null,null,null,null,null,null,null,null,null,null,null,null,null,null,null,null,null,null,null,null,null,null,null,null,null,null,null,null,null,null,null,null,null,null,null,null,null,{"$f":"BU67/BU68","v":0.8709449929478138},{"$f":"BV67/BV68","v":0.86544850498338866},0.8601645123384255,0.8571428571428571,0.85514834205933687,0.8540540540540541,0.85526315789473684,0.92307692307692313,{"$f":"CC67/CC68","v":0.83333333333333337},{"$f":"CD67/CD68","v":0.84615384615384615}]
[null,null,null,null,null,null,null,"Additional Outflow (If Any)",null,null,null,null,null,null,null,null,null,null,null,0,null,null,"l/s",null,null,null,null,null,null,null,null,null,null,null,null,null,null,null,null,null,null,null,null,null,null,null,null,null,null,null,null,null,null,null,null,null,null,null,null,null,null,null,null,null,null,null,null,null,null,"Rainfall","Return Period","Storm duration"]
[null,null,null,null,null,null,null,"Base Infiltration Factor",null,null,null,null,null,null,null,null,null,null,null,0.5,null,null,null,null,null,null,null,null,null,null,null,null,null,null,null,null,null,null,null,null,null,null,null,null,null,null,null,null,null,null,null,null,null,null,null,null,null,null,null,null,null,null,null,null,null,null,null,null,null,null,null,5,10,15,30,45,60,120,240,480,600,1440]
[null,null,null,null,null,null,null,"Manhole Diameter",null,null,null,null,null,null,null,null,null,null,null,1050,null,null,"mm",null,null,null,null,null,null,null,null,null,null,null,null,null,null,null,null,null,null,null,null,null,null,null,null,null,null,null,null,null,null,null,null,null,null,null,null,null,null,null,null,null,null,null,null,null,null,"M5-60",1,48.5,34.799999999999997,28,19,15,12.7,8.3000000000000007,5.4,3.3,3,1.7]
[null,null,null,null,null,null,null,null,null,null,null,null,null,null,null,null,null,null,null,null,null,null,null,null,null,null,null,null,null,null,null,null,null,null,null,null,null,null,null,null,null,null,null,null,null,null,null,null,null,null,null,null,null,null,null,null,null,null,null,null,null,null,null,null,null,null,null,null,null,20,2,59.3,44.3,36.1,24.5,19.2,16.100000000000001,10.4,6.6,4,3.6,2,null,null,null,null,2]
[null,null,null,null,null,null,"Soakaway Plan",null,null,null,null,null,null,null,null,null,null,null,null,"Soakaway Cross Section",null,null,null,null,null,null,null,null,null,null,null,null,null,null,null,null,null,null,null,null,null,null,null,null,null,null,null,null,null,null,null,null,null,null,null,null,null,null,null,null,null,null,null,null,null,null,null,null,null,"r Ratio",5,78.3,58,47,31.6,24.6,20.5,13,8.1999999999999993,5,4.3,2.4,null,null,null,null,"rec2",null,null,"master",null,"master2"]
[null,null,null,null,null,null,null,null,null,null,null,null,null,null,null,null,null,null,null,null,null,null,null,null,null,null,null,null,null,null,null,null,null,null,null,null,null,null,null,null,null,null,null,null,null,null,null,null,null,null,null,null,null,null,null,null,null,null,null,null,null,null,null,null,null,null,null,null,null,0.3,10,89.5,66.900000000000006,54.6,36.9,28.8,24,15.2,9.5,6,5,2.7,null,null,null,null,0,0,null,{"$f":"IF(MAX($CI$76:$CJ$80)>5,CI76*(5/MAX($CI$76:$CJ$80)),CI76)","v":0},{"$f":"IF(MAX($CI$76:$CJ$80)>5,CJ76*(5/MAX($CI$76:$CJ$80)),CJ76)","v":0},{"$f":"IF(MAX($CL$76:$CL$80)=5,CL76,CL76+0.5*(5-MAX($CL$76:$CL$80)))","v":0},{"$f":"IF(MAX($CM$76:$CM$80)=5,CM76,CM76+0.5*(5-MAX($CM$76:$CM$80)))","v":1.7307692307692308}]
[null,null,null,null,null,null,null,null,null,null,null,null,null,null,null,null,null,null,null,null,null,null,null,null,null,null,null,null,null,null,null,null,null,null,null,null,null,null,null,null,null,null,null,null,null,null,null,null,null,null,null,null,null,null,null,null,null,null,null,null,null,null,null,null,null,null,null,null,null,null,15,96.8,72.7,59.5,40.4,31.5,26.3,16.7,10.4,6,{"$f":"AVERAGE(CC76,CC78)","v":5.4},{"$f":"AVERAGE(CD76,CD78)","v":2.9000000000000004},null,null,null,null,{"$f":"T68","v":6.5},0,null,{"$f":"IF(MAX($CI$76:$CJ$80)>5,CI77*(5/MAX($CI$76:$CJ$80)),CI77)","v":5},0,{"$f":"IF(MAX($CL$76:$CL$80)=5,CL77,CL77+0.5*(5-MAX($CL$76:$CL$80)))","v":5},{"$f":"IF(MAX($CM$76:$CM$80)=5,CM77,CM77+0.5*(5-MAX($CM$76:$CM$80)))","v":1.7307692307692308}]
[null,null,null,null,null,null,null,null,null,null,null,null,null,null,null,null,null,null,null,null,null,null,null,null,null,null,null,null,null,null,null,null,null,null,null,null,null,null,null,null,null,null,null,null,null,null,null,null,null,null,null,null,null,null,null,null,null,null,null,null,null,null,null,null,null,null,null,null,null,null,20,102.3,77.2,63.3,43,33.700000000000003,28.1,17.8,11,7,5.8,3.1,null,null,null,null,{"$f":"T68","v":6.5},{"$f":"T69","v":2},null,5,1.5384615384615385,5,3.2692307692307692]
[null,null,null,null,null,null,null,null,null,null,null,null,null,null,null,null,null,null,null,null,null,null,null,null,null,null,null,null,null,null,null,null,null,null,null,null,null,null,null,null,null,null,null,null,null,null,null,null,null,null,null,null,null,null,null,null,null,null,null,null,null,null,null,null,null,null,null,null,null,null,25,106.8,80.8,66.400000000000006,45.2,35.4,29.6,18.7,11.6,7,{"$f":"AVERAGE(CC78,CC80)","v":6},{"$f":"AVERAGE(CD78,CD80)","v":3.2},null,null,null,null,0,{"$f":"CJ78","v":2},null,0,1.5384615384615385,0,3.2692307692307692]
[null,null,null,null,null,null,null,null,null,null,null,null,null,null,null,null,null,null,null,null,null,null,null,null,null,null,null,null,null,null,null,null,null,null,null,null,null,null,null,null,null,null,null,null,null,null,null,null,null,null,null,null,null,null,null,null,null,null,null,null,null,null,null,null,null,null,null,null,null,null,30,110.6,83.9,69,47.1,36.9,30.8,19.5,12.1,7,6.2,3.3,null,null,null,null,{"$f":"CI76","v":0},{"$f":"CJ76","v":0},null,0,0,0,1.7307692307692308]
[null,null,null,null,null,null,null,null,null,null,null,null,null,null,null,null,null,null,null,null,null,null,null,null,null,null,null,null,null,null,null,null,null,null,null,null,null,null,null,null,null,null,null,null,null,null,null,null,null,null,null,null,null,null,null,null,null,null,null,null,null,null,null,null,null,null,null,null,null,null,50,122,93.2,76.900000000000006,52.7,41.4,34.6,21.9,13.5,8,6.9,3.7]
[null,null,null,null,null,null,null,null,null,null,null,null,null,null,null,null,null,null,null,null,null,null,null,null,null,null,null,null,null,null,null,null,null,null,null,null,null,null,null,null,null,null,null,null,null,null,null,null,null,null,null,null,null,null,null,null,null,null,null,null,null,null,null,null,null,{"$f":"T66*(2*T67*T69*0.5+2*T68*T69*0.5+T67*T68*T72)","v":47.125},{"$f":"IF(P65=\"Perforated Manhole\",BN83,BN82)","v":47.125},null,null,null,100,139.4,107.6,89.2,61.5,48.4,40.5,25.6,15.6,9,8,4.2]
[null,null,null,null,null,null,null,null,null,null,null,null,null,null,null,null,null,null,null,null,null,null,null,null,null,null,null,null,null,null,null,null,null,null,null,null,null,null,null,null,null,null,null,null,null,null,null,null,null,null,null,null,null,null,null,null,null,null,null,null,null,null,null,null,null,{"$f":"T66*((PI()*((T68/2)^2))*T72+0.5*T69*0.5*(2*PI()*(T68/2)))","v":26.801712325937924},null,null,null,null,200,{"$f":"(BT84-BT82)*0.25+BT82","v":152.05000000000001},{"$f":"(BU84-BU82)*0.25+BU82","v":118.19999999999999},{"$f":"(BV84-BV82)*0.25+BV82","v":98.375},{"$f":"(BW84-BW82)*0.25+BW82","v":68.125},{"$f":"(BX84-BX82)*0.25+BX82","v":53.725000000000001},{"$f":"(BY84-BY82)*0.25+BY82","v":44.975000000000001},{"$f":"(BZ84-BZ82)*0.25+BZ82","v":28.425000000000001},{"$f":"(CA84-CA82)*0.25+CA82","v":17.225000000000001},{"$f":"(CB84-CB82)*0.25+CB82","v":10},{"$f":"(CC84-CC82)*0.25+CC82","v":8.75},{"$f":"(CD84-CD82)*0.25+CD82","v":4.6500000000000004}]
[null,null,null,null,null,null,null,null,null,null,null,null,null,null,null,null,null,null,null,null,null,null,null,null,null,null,null,null,null,null,null,null,null,null,null,null,null,null,null,null,null,null,null,null,null,null,null,null,null,null,null,null,null,null,null,null,null,null,null,null,null,null,null,null,null,null,null,null,null,null,500,190,150,125.9,88,69.7,58.4,36.9,22.1,13,11,6]
[null,null,null,null,null,null,null,null,null,null,null,null,null,null,null,null,null,null,null,null,null,null,null,null,null,null,null,null,null,null,null,null,null,null,null,null,null,null,null,null,null,null,null,null,null,null,null,null,null,null,null,null,null,null,null,null,null,null,null,null,null,null,null,null,null,null,null,null,null,null,1000,217.1,173.1,145.9,102.7,81.5,68.400000000000006,43.1,25.7,15,13,7]
[null,null,null,null,null,null,null,null,null,null,null,null,null,null,null,null,null,null,null,null,null,null,null,null,null,null,null,null,null,null,null,null,null,null,null,null,null,null,null,null,null,null,null,null,null,null,null,null,null,null,null,null,null,null,null,null,null,null,null,null,null,null,null,null,null,null,null,null,null,null,null,null,{"$f":"BU82/BU84","v":0.71733333333333327},0.70849880857823666,0.69886363636363635,0.69440459110473451,0.69349315068493156,0.6937669376693768,0.70588235294117641,0.69230769230769229,0.72727272727272729,0.70000000000000007]
[null,null,null,null,null,null,null,"Results Table",null,null,null,null,null,null,null,null,null,null,null,null,null,null,null,null,null,null,null,null,null,null,null,null,null,null,null,null,null,null,null,null,null,null,null,null,null,null,null,null,null,null,null,null,null,null,null,null,null,null,null,null,null,null,null,null,null,0,{"$f":"P103","v":12.332666666666668},null,null,null,null,null,{"$f":"BU84/BU85","v":0.86655112651646449},{"$f":"BV84/BV85","v":0.86291980808773128},0.85686465433300874,0.85521472392638043,0.85380116959064323,0.85614849187935027,0.8599221789883269,0.8666666666666667,{"$f":"CC84/CC85","v":0.84615384615384615},{"$f":"CD84/CD85","v":0.8571428571428571},null,null,null,null,1,null,null,null,"rec 1",null,null,null,null,null,null,null,null,null,1,null,null,null,"rec 1"]
[null,null,null,null,null,null,null,null,null,null,null,null,null,null,null,null,null,null,null,null,null,null,null,null,null,null,null,null,null,null,null,null,null,null,null,null,null,null,null,null,null,null,null,null,null,null,null,null,null,null,null,null,null,null,null,null,null,null,null,null,null,null,null,null,null,{"$f":"VLOOKUP(BO87,BI49:BJ58,2,FALSE)","v":{"$error":"#N/A"}},{"$f":"BO87","v":12.332666666666668},null,null,"Rainfall","Return Period","Storm duration",null,null,null,null,null,null,null,null,null,null,null,null,null,null,"cyl",null,null,null,"x","y","masterx","mastery","master2",null,"master3",null,null,null,"cyl",null,null,null,"x","y","masterx","mastery","master2",null,"master3"]
[null,null,null,null,null,null,null,"Storm Duration (Mins)",null,null,null,null,null,null,null,"Inflow (l)",null,null,"Outflow (l)",null,null,null,"Storage Required (m³)",null,null,null,null,null,null,null,null,null,null,null,null,null,null,null,null,null,null,null,null,null,null,null,null,null,null,null,null,null,null,null,null,null,null,null,null,null,null,null,null,null,null,null,null,null,null,null,null,5,10,15,30,45,60,120,240,480,600,1440,null,null,null,null,1,{"$f":"CI89%*2*PI()","v":6.2831853071795868E-2},{"$f":"($T$67/2)*SIN(CJ89)+T$67/2","v":3.4540691884702683},{"$f":"($T$67/2)*COS(CJ89)+T$67/2","v":6.4935868673918824},0,0,{"$f":"IF(P$65=\"Perforated Manhole\",CK89,CM89)","v":0},{"$f":"IF(P$65=\"Perforated Manhole\",CL89,CN89)","v":0},{"$f":"IF(MAX($CO$89:$CP$189)>5,CO89*(5/MAX($CO$89:$CP$189)),CO89)","v":0},{"$f":"IF(MAX($CO$89:$CP$189)>5,CP89*(5/MAX($CO$89:$CP$189)),CP89)","v":0},{"$f":"IF(MAX($CQ$89:$CQ$189)=5,CQ89,CQ89+0.5*(5-MAX($CQ$89:$CQ$189)))","v":0},{"$f":"IF(MAX($CR$89:$CR$189)=5,CR89,CR89+0.5*(5-MAX($CR$89:$CR$189)))","v":0},null,null,1,{"$f":"CW89%*2*PI()","v":6.2831853071795868E-2},{"$f":"($T$73*0.001/2)*SIN(CX89)+T$73*0.001/2","v":0.55796502275288951},{"$f":"($T$73*0.001/2)*COS(CX89)+T$73*0.001/2","v":1.0489640324248426},0,0,{"$f":"IF(P$65=\"Manhole Within Pit\",CY89,NA())","v":0.55796502275288951},{"$f":"IF(P$65=\"Manhole Within Pit\",CZ89,NA())","v":1.0489640324248426},{"$f":"IF(MAX($CO$89:$CP$189)>5,DC89*(5/MAX($CO$89:$CP$189)),DC89)","v":0.42920386365606888},{"$f":"IF(MAX($CO$89:$CP$189)>5,DD89*(5/MAX($CO$89:$CP$189)),DD89)","v":0.80689540955757122},{"$f":"IF(MAX($CQ$89:$CQ$189)=5,DE89,DE89+0.5*(5-MAX($CQ$89:$CQ$189)))-$DF$188/2+($CS$90-$CS$89)/2","v":2.5253577098099149},{"$f":"IF(MAX($CR$89:$CR$189)=5,DF89,DF89+0.5*(5-MAX($CR$89:$CR$189)))-$DF$188/2+($CT$91-$CT$90)/2","v":2.9030492557114171}]
[null,null,null,null,null,null,null,5,null,null,null,null,null,null,null,{"$f":"((HLOOKUP(H90,INDIRECT(BP$22),BO$20,FALSE))*Y$8*Y$9*H90*(1+$Y$12%))/60","v":3098.3333333333335},null,null,{"$f":"$T$71*H90*60+((($T$60/60)*$BO$82)/$T$61)*1000*H90","v":27.227777777777774},null,null,null,{"$f":"MAX((P90-S90)/1000,0)","v":3.071105555555556},null,null,null,null,null,null,null,null,null,null,null,null,null,null,null,null,null,null,null,null,null,null,null,null,null,null,null,null,null,null,null,null,null,null,null,null,null,null,null,null,null,null,null,null,null,null,"M5-60",1,40.200000000000003,27.8,21.7,13.8,10.5,8.6,5.3,3.2,2,1.6,0.9,null,null,null,null,2,0.12566370614359174,{"$f":"($T$67/2)*SIN(CJ90)+T$67/2","v":3.6573330090839891},{"$f":"($T$67/2)*COS(CJ90)+T$67/2","v":6.4743727792720529},{"$f":"T68","v":6.5},0,{"$f":"IF(P$65=\"Perforated Manhole\",CK90,CM90)","v":6.5},{"$f":"IF(P$65=\"Perforated Manhole\",CL90,CN90)","v":0},{"$f":"IF(MAX($CO$89:$CP$189)>5,CO90*(5/MAX($CO$89:$CP$189)),CO90)","v":5},0,{"$f":"IF(MAX($CQ$89:$CQ$189)=5,CQ90,CQ90+0.5*(5-MAX($CQ$89:$CQ$189)))","v":5},{"$f":"IF(MAX($CR$89:$CR$189)=5,CR90,CR90+0.5*(5-MAX($CR$89:$CR$189)))","v":0},null,null,2,{"$f":"CW90%*2*PI()","v":0.12566370614359174},{"$f":"($T$73*0.001/2)*SIN(CX90)+T$73*0.001/2","v":0.59079994762125976},{"$f":"($T$73*0.001/2)*COS(CX90)+T$73*0.001/2","v":1.0458602181901009},{"$f":"AH68","v":0},0,{"$f":"IF(P$65=\"Manhole Within Pit\",CY90,NA())","v":0.59079994762125976},{"$f":"IF(P$65=\"Manhole Within Pit\",CZ90,NA())","v":1.0458602181901009},{"$f":"IF(MAX($CO$89:$CP$189)>5,DC90*(5/MAX($CO$89:$CP$189)),DC90)","v":0.45446149817019982},{"$f":"IF(MAX($CO$89:$CP$189)>5,DD90*(5/MAX($CO$89:$CP$189)),DD90)","v":0.80450786014623155},{"$f":"IF(MAX($CQ$89:$CQ$189)=5,DE90,DE90+0.5*(5-MAX($CQ$89:$CQ$189)))-$DF$188/2+($CS$90-$CS$89)/2","v":2.5506153443240458},{"$f":"IF(MAX($CR$89:$CR$189)=5,DF90,DF90+0.5*(5-MAX($CR$89:$CR$189)))-$DF$188/2+($CT$91-$CT$90)/2","v":2.9006617063000775}]
[null,null,null,null,null,null,null,10,null,null,null,null,null,null,null,4580.333333333333,null,null,54.455555555555549,null,null,null,{"$f":"MAX((P91-S91)/1000,0)","v":4.5258777777777777},null,null,null,null,null,null,null,null,null,null,null,null,null,null,null,null,null,null,null,null,null,null,null,null,null,null,null,null,null,null,null,null,null,null,null,null,null,null,null,null,null,null,null,null,null,null,14,2,47.9,34.5,27.5,17.8,13.5,11.1,6.8,4.0999999999999996,2,2.1,1.1000000000000001,null,null,null,null,3,0.18849555921538758,3.8589892724036048,6.4424335648682387,{"$f":"CM90","v":6.5},{"$f":"T67","v":6.5},6.5,6.5,5,5,5,5,null,null,3,0.18849555921538758,0.62337519015750542,1.0407008066325616,{"$f":"DA90","v":0},{"$f":"AH67","v":0},0.62337519015750542,1.0407008066325616,0.47951937704423497,0.80053908202504742,2.575673223198081,2.8966929281788936]
[null,null,null,null,null,null,null,15,null,null,null,null,null,null,null,5518.5,null,null,81.683333333333323,null,null,null,5.4368166666666662,null,null,null,null,null,null,null,null,null,null,null,null,null,null,null,null,null,null,null,null,null,null,null,null,null,null,null,null,null,null,null,null,null,null,null,null,null,null,null,null,null,null,null,null,null,null,"r Ratio",5,63.5,45.5,36.1,23.2,17.600000000000001,14.3,8.6999999999999993,5.2,3,2.6,1.3,null,null,null,null,4,0.25132741228718347,4.0582421332857779,6.397895273668051,{"$f":"CM89","v":0},{"$f":"T67","v":6.5},0,6.5,0,5,0,5,null,null,4,0.25132741228718347,0.65556219076154876,1.0335061595925312,{"$f":"DA89","v":0},{"$f":"AH67","v":0},0.65556219076154876,1.0335061595925312,0.50427860827811444,0.79500473814810102,2.6004324544319606,2.8911585843019472]
[null,null,null,null,null,null,null,30,null,null,null,null,null,null,null,7215,null,null,163.36666666666665,null,null,null,7.0516333333333332,null,null,null,null,null,null,null,null,null,null,null,null,null,null,null,null,null,null,null,null,null,null,null,null,null,null,null,null,null,null,null,null,null,null,null,null,null,null,null,null,null,null,null,null,null,null,0.4,10,72.400000000000006,52.1,41.5,26.9,20.399999999999999,16.7,10.1,6.1,4,3.1,1.6,null,null,null,null,5,0.31415926535897931,4.254305231718579,6.3409336779592493,{"$f":"CM89","v":0},{"$f":"CN89","v":0},0,0,0,0,0,0,null,null,5,0.31415926535897931,0.68723392204684741,1.0243046710549557,{"$f":"DA89","v":0},{"$f":"DB89","v":0},0.68723392204684741,1.0243046710549557,0.52864147849757492,0.78792667004227368,2.6247953246514211,2.8840805161961196]
[null,null,null,null,null,null,null,45,null,null,null,null,null,null,null,8248.5,null,null,245.04999999999998,null,null,null,8.0034499999999991,null,null,null,null,null,null,null,null,null,null,null,null,null,null,null,null,null,null,null,null,null,null,null,null,null,null,null,null,null,null,null,null,null,null,null,null,null,null,null,null,null,null,null,null,null,null,null,15,78.099999999999994,56.4,45.1,29.3,22.3,18.3,11.1,6.7,4,{"$f":"AVERAGE(CC93,CC95)","v":3.35},{"$f":"AVERAGE(CD93,CD95)","v":1.7000000000000002},null,null,null,null,6,0.37699111843077515,4.4464047962252033,6.2717735791368172,null,null,0,0,0,0,0,0,null,null,6,0.37699111843077515,0.7182653901594559,1.013132655091332,null,null,0.7182653901594559,1.013132655091332,0.55251183858419683,0.77933281160871692,2.648665684738043,2.8754866577625631]
[null,null,null,null,null,null,null,60,null,null,null,null,null,null,null,8996,null,null,326.73333333333329,null,null,null,8.6692666666666671,null,null,null,null,null,null,null,null,null,null,null,null,null,null,null,null,null,null,null,null,null,null,null,null,null,null,null,null,null,null,null,null,null,null,null,null,null,null,null,null,null,null,null,null,null,null,null,20,82.4,59.7,47.8,31.2,23.7,19.399999999999999,11.8,7.1,5,3.6,1.8,null,null,null,null,7,0.4398229715025711,4.6337826975864864,6.1906879205145628,null,null,0,0,0,0,0,0,null,null,7,0.4398229715025711,0.7485341280716632,1.0000342025446602,null,null,0.7485341280716632,1.0000342025446602,0.57579548313204865,0.76925707888050787,2.6719493292858947,2.8654109250343538]
[null,null,null,null,null,null,null,120,null,null,null,null,null,null,null,10868,null,null,653.46666666666658,null,null,null,10.214533333333334,null,null,null,null,null,null,null,null,null,null,null,null,null,null,null,null,null,null,null,null,null,null,null,null,null,null,null,null,null,null,null,null,null,null,null,null,null,null,null,null,null,null,null,null,null,null,null,25,85.9,62.4,50,32.700000000000003,24.9,20.399999999999999,12.5,7.5,5,{"$f":"AVERAGE(CC95,CC97)","v":3.7},{"$f":"AVERAGE(CD95,CD97)","v":1.9},null,null,null,null,8,0.50265482457436694,4.8156994408305751,6.0979967101425565,null,null,0,0,0,0,0,0,null,null,8,0.50265482457436694,0.77792067890340055,0.98506100702302835,null,null,0.77792067890340055,0.98506100702302835,0.59840052223338502,0.75773923617156036,2.6945543683872311,2.8538930823254063]
[null,null,null,null,null,null,null,240,null,null,null,null,null,null,null,12792,null,null,1306.9333333333332,null,null,null,{"$f":"MAX((P97-S97)/1000,0)","v":11.485066666666668},null,null,null,null,null,null,null,null,null,null,null,null,null,null,null,null,null,null,null,null,null,null,null,null,null,null,null,null,null,null,null,null,null,null,null,null,null,null,null,null,null,null,null,null,null,null,null,30,88.9,64.7,51.9,34,25.9,21.3,13,7.8,5,3.8,2,null,null,null,null,9,0.56548667764616278,4.9914370836817392,5.9940657578815486,null,null,0,0,0,0,0,0,null,null,9,0.56548667764616278,0.80630906736397323,0.96827216088855794,null,null,0.80630906736397323,0.96827216088855794,0.62023774412613331,0.74482473914504466,2.7163915902799793,2.8409785852988909]
[null,null,null,null,null,null,null,480,null,null,null,null,null,null,null,14560,null,null,2613.8666666666663,null,null,null,11.946133333333334,null,null,null,null,null,null,null,null,null,null,null,null,null,null,null,null,null,null,null,null,null,null,null,null,null,null,null,null,null,null,null,null,null,null,null,null,null,null,null,null,null,null,null,null,null,null,null,50,97.9,71.5,57.6,37.9,29,23.8,14.6,8.8000000000000007,5,4.3,2.2000000000000002,null,null,null,null,10,0.62831853071795862,5.1603020699505375,5.879305231718579,null,null,0,0,0,0,0,0,null,null,10,0.62831853071795862,0.83358725745354845,0.94973392204684748,null,null,0.83358725745354845,0.94973392204684748,0.64122096727196043,0.73056455542065191,2.7373748134258067,2.8267184015744982]
[null,null,null,null,null,null,null,600,null,null,null,null,null,null,null,15600,null,null,3267.333333333333,null,null,null,{"$f":"MAX((P99-S99)/1000,0)","v":12.332666666666668},null,null,null,null,null,null,null,null,null,null,null,null,null,null,null,null,null,null,null,null,null,null,null,null,null,null,null,null,null,null,null,null,null,null,null,null,null,null,null,null,null,null,null,null,null,null,null,100,111.4,82,66.3,43.9,33.700000000000003,27.7,17,10.199999999999999,6,5,2.6,null,null,null,null,11,0.69115038378975446,5.3216279666832413,5.754168039021315,null,null,0,0,0,0,0,0,null,null,11,0.69115038378975446,0.85964759461806217,0.9295194524572894,null,null,0.85964759461806217,0.9295194524572894,0.66126738047543243,0.7150149634286842,2.7574212266292784,2.8111688095825302]
[null,null,null,null,null,null,null,1440,null,null,null,null,null,null,null,18720,null,null,7841.5999999999995,null,null,null,10.878400000000001,null,null,null,null,null,null,null,null,{"$f":"IF(OR(W100<W99,W100=0),\"Acceptable\",\"Too Small\")","v":"Acceptable"},null,null,null,null,null,null,null,null,null,null,null,null,null,null,null,null,null,null,null,null,null,null,null,null,null,null,null,null,null,null,null,null,null,null,null,null,null,null,200,{"$f":"(BT101-BT99)*0.25+BT99","v":121.22499999999999},{"$f":"(BU101-BU99)*0.25+BU99","v":89.65},{"$f":"(BV101-BV99)*0.25+BV99","v":72.724999999999994},{"$f":"(BW101-BW99)*0.25+BW99","v":48.4},{"$f":"(BX101-BX99)*0.25+BX99","v":37.225000000000001},{"$f":"(BY101-BY99)*0.25+BY99","v":30.625},{"$f":"(BZ101-BZ99)*0.25+BZ99","v":18.850000000000001},{"$f":"(CA101-CA99)*0.25+CA99","v":11.35},{"$f":"(CB101-CB99)*0.25+CB99","v":6.5},{"$f":"(CC101-CC99)*0.25+CC99","v":5.5},{"$f":"(CD101-CD99)*0.25+CD99","v":2.8250000000000002},null,null,null,null,12,0.7539822368615503,5.4747780942682382,5.6191480391195876,null,null,0,0,0,0,0,0,null,null,12,0.7539822368615503,0.88438723061256153,0.90770852939624103,null,null,0.88438723061256153,0.90770852939624103,0.68029786970197048,0.69823733030480084,2.7764517158558166,2.7943911764586469]
[null,null,null,null,null,null,null,null,null,null,null,null,null,null,null,null,null,null,null,null,null,null,null,null,null,null,null,null,null,null,null,null,null,null,null,null,null,null,null,null,null,null,null,null,null,null,null,null,null,null,null,null,null,null,null,null,null,null,null,null,null,null,null,null,null,null,null,null,null,null,500,150.69999999999999,112.6,92,61.9,47.8,39.4,24.4,14.8,8,7,3.5,null,null,null,null,13,0.81681408993334625,5.6191480391195876,5.4747780942682382,null,null,0,0,0,0,0,0,null,null,13,0.81681408993334625,0.90770852939624103,0.88438723061256153,null,null,0.90770852939624103,0.88438723061256153,0.69823733030480084,0.68029786970197048,2.7943911764586469,2.7764517158558166]
[null,null,null,null,null,null,null,null,null,null,null,null,null,null,null,null,null,null,null,null,null,null,null,null,null,null,null,null,null,null,null,null,null,null,null,null,null,null,null,null,null,null,null,null,null,null,null,null,null,null,null,null,null,null,null,null,null,null,null,null,null,null,null,null,null,null,null,null,null,null,1000,171.6,129,106,71.8,55.5,45.9,28.5,17.3,10,9,4.3,null,null,null,null,14,0.87964594300514221,5.754168039021315,5.3216279666832413,null,null,0,0,0,0,0,0,null,null,14,0.87964594300514221,0.9295194524572894,0.85964759461806217,null,null,0.9295194524572894,0.85964759461806217,0.7150149634286842,0.66126738047543243,2.8111688095825302,2.7574212266292784]
[null,null,null,null,null,null,null,"Storage Area Required",null,null,null,null,null,null,null,{"$f":"MAX(W90:AD100)","v":12.332666666666668},null,null,"m³",null,null,null,null,null,null,null,null,null,null,null,null,null,null,null,null,null,null,null,null,null,null,null,null,null,null,null,null,null,null,null,null,null,null,null,null,null,null,null,null,null,null,null,null,null,null,null,null,null,null,null,null,null,{"$f":"BU99/BU101","v":0.72824156305506216},0.72065217391304348,0.7092084006462035,0.7050209205020922,0.70304568527918787,0.69672131147540983,0.68918918918918914,0.75,0.7142857142857143,0.74285714285714288,null,null,null,null,15,0.94247779607693793,5.879305231718579,5.1603020699505375,null,null,0,0,0,0,0,0,null,null,15,0.94247779607693793,0.94973392204684748,0.83358725745354845,null,null,0.94973392204684748,0.83358725745354845,0.73056455542065191,0.64122096727196043,2.8267184015744982,2.7373748134258067]
[null,null,null,null,null,null,null,"Storage Area Provided",null,null,null,null,null,null,null,{"$f":"IF(P65=\"Rectangular Trench/Pit\",T66*T67*T68*T69*T70%,IF(P65=\"Perforated Manhole\",T66*T69*(PI()*((T68/2)^2))*T70%,T69*(PI()*(((T73*0.001)/2)^2))*(95%-T70%)+T66*T67*T68*T69*T70%))","v":26.47567191768939},null,null,"m³",null,null,null,null,null,null,null,null,null,null,null,null,{"$f":"IF(P103<P104,\"Acceptable\",\"Too Small\")","v":"Acceptable"},null,null,null,null,null,null,null,null,null,null,null,null,null,null,null,null,null,null,null,null,null,null,null,null,null,null,null,null,null,null,null,null,null,null,null,null,null,null,null,null,{"$f":"BU101/BU102","v":0.87286821705426354},{"$f":"BV101/BV102","v":0.86792452830188682},0.86211699164345401,0.86126126126126124,0.85838779956427014,0.85614035087719298,0.8554913294797688,0.8,{"$f":"CC101/CC102","v":0.77777777777777779},{"$f":"CD101/CD102","v":0.81395348837209303},null,null,null,null,16,1.0053096491487339,5.9940657578815486,4.9914370836817383,null,null,0,0,0,0,0,0,null,null,16,1.0053096491487339,0.96827216088855794,0.80630906736397323,null,null,0.96827216088855794,0.80630906736397323,0.74482473914504466,0.62023774412613331,2.8409785852988909,2.7163915902799793]
[null,null,null,null,null,null,null,null,null,null,null,null,null,null,null,null,null,null,null,null,null,null,null,null,null,null,null,null,null,null,null,null,null,null,null,null,null,null,null,null,null,null,null,null,null,null,null,null,null,null,null,null,null,null,null,null,null,null,null,null,null,null,null,null,null,null,null,null,null,"Rainfall","Return Period","Storm duration",null,null,null,null,null,null,null,null,null,null,null,null,null,null,17,1.0681415022205298,6.0979967101425565,4.8156994408305742,null,null,0,0,0,0,0,0,null,null,17,1.0681415022205298,0.98506100702302846,0.77792067890340055,null,null,0.98506100702302846,0.77792067890340055,0.75773923617156036,0.59840052223338502,2.8538930823254063,2.6945543683872311]
[null,null,null,null,null,null,null,"Time for Emptying 50%",null,null,null,null,null,null,null,null,{"$f":"P103/2/(S95/1000)","v":18.872679045092845},null,"hours",null,null,null,null,null,null,null,null,null,null,null,null,{"$f":"IF(Q106<24,\"Acceptable\",\"Too Slow\")","v":"Acceptable"},null,null,null,null,null,null,null,null,null,null,null,null,null,null,null,null,null,null,null,null,null,null,null,null,null,null,null,null,null,null,null,null,null,null,null,null,null,null,null,5,10,15,30,45,60,120,240,480,600,1440,null,null,null,null,18,1.1309733552923256,6.1906879205145637,4.6337826975864864,null,null,0,0,0,0,0,0,null,null,18,1.1309733552923256,1.0000342025446602,0.7485341280716632,null,null,1.0000342025446602,0.7485341280716632,0.76925707888050787,0.57579548313204865,2.8654109250343538,2.6719493292858947]
[null,null,null,null,null,null,null,null,null,null,null,null,null,null,null,null,null,null,null,null,null,null,null,null,null,null,null,null,null,null,null,null,null,null,null,null,null,null,null,null,null,null,null,null,null,null,null,null,null,null,null,null,null,null,null,null,null,null,null,null,null,null,null,null,null,null,null,null,null,"M5-60",1,34.4,25.7,21.2,15,12.2,10.6,7.5,5.3,4,3.3,2,null,null,null,null,19,1.1938052083641213,6.2717735791368163,4.4464047962252042,null,null,0,0,0,0,0,0,null,null,19,1.1938052083641213,1.013132655091332,0.71826539015945601,null,null,1.013132655091332,0.71826539015945601,0.77933281160871692,0.55251183858419695,2.8754866577625631,2.648665684738043]
[null,null,null,null,null,null,null,null,null,null,null,null,null,null,null,null,null,null,null,null,null,null,null,null,null,null,null,null,null,null,null,null,null,null,null,null,null,null,null,null,null,null,null,null,null,null,null,null,null,null,null,null,null,null,null,null,null,null,null,null,null,null,null,null,null,null,null,null,null,17,2,40.6,31.7,26.7,19.3,15.8,13.6,9.4,6.5,4,3.9,2.2999999999999998,null,null,null,null,20,1.2566370614359172,6.3409336779592493,4.254305231718579,null,null,0,0,0,0,0,0,null,null,20,1.2566370614359172,1.0243046710549557,0.68723392204684741,null,null,1.0243046710549557,0.68723392204684741,0.78792667004227368,0.52864147849757492,2.8840805161961196,2.6247953246514211]
[null,null,null,null,null,null,null,null,null,null,null,null,null,null,null,null,null,null,null,null,null,null,null,null,null,null,null,null,null,null,null,null,null,null,null,null,null,null,null,null,null,null,null,null,null,null,null,null,null,null,null,null,null,null,null,null,null,null,null,null,null,null,null,null,null,null,null,null,null,"r Ratio",5,54,41.8,35.1,25.1,20.3,17.399999999999999,11.9,8,5.3,4.7,2.8,null,null,null,null,21,1.319468914507713,6.397895273668051,4.0582421332857788,null,null,0,0,0,0,0,0,null,null,21,1.319468914507713,1.0335061595925312,0.65556219076154887,null,null,1.0335061595925312,0.65556219076154887,0.79500473814810102,0.50427860827811455,2.8911585843019472,2.6004324544319606]
[null,null,null,null,null,null,null,null,null,null,null,null,null,null,null,null,null,null,null,null,null,null,null,null,null,null,null,null,null,null,null,null,null,null,null,null,null,null,null,null,null,null,null,null,null,null,null,null,null,null,null,null,null,null,null,null,null,null,null,null,null,null,null,null,null,null,null,null,null,0.2,10,61.3,47.9,40.4,29.1,23.7,20.399999999999999,13.9,9.3000000000000007,6,5.4,3.1,null,null,null,null,22,1.3823007675795089,6.4424335648682378,3.8589892724036057,null,null,0,0,0,0,0,0,null,null,22,1.3823007675795089,1.0407008066325616,0.62337519015750553,null,null,1.0407008066325616,0.62337519015750553,0.80053908202504742,0.47951937704423503,2.8966929281788936,2.575673223198081]
[null,null,null,null,null,null,null,null,null,null,null,null,null,null,null,null,null,null,null,null,null,null,null,null,null,null,null,null,null,null,null,null,null,null,null,null,null,null,null,null,null,null,null,null,null,null,null,null,null,null,null,null,null,null,null,null,null,null,null,null,null,null,null,null,null,null,null,null,null,null,15,66.099999999999994,51.8,43.8,31.8,25.9,22.3,15.3,10.199999999999999,7,{"$f":"AVERAGE(CC110,CC112)","v":5.8000000000000007},{"$f":"AVERAGE(CD110,CD112)","v":3.3},null,null,null,null,23,1.4451326206513049,6.4743727792720529,3.6573330090839891,null,null,0,0,0,0,0,0,null,null,23,1.4451326206513049,1.0458602181901009,0.59079994762125976,null,null,1.0458602181901009,0.59079994762125976,0.80450786014623155,0.45446149817019982,2.9006617063000775,2.5506153443240458]
[null,null,null,null,null,null,null,null,null,null,null,null,null,null,null,null,null,null,null,null,null,null,null,null,null,null,null,null,null,null,null,null,null,null,null,null,null,null,null,null,null,null,null,null,null,null,null,null,null,null,null,null,null,null,null,null,null,null,null,null,null,null,null,null,null,null,null,null,null,null,20,69.7,54.8,46.5,33.799999999999997,27.6,23.8,16.3,10.8,7,6.2,3.5,null,null,null,null,24,1.5079644737231006,6.4935868673918824,3.4540691884702688,null,null,0,0,0,0,0,0,null,null,24,1.5079644737231006,1.0489640324248426,0.55796502275288962,null,null,1.0489640324248426,0.55796502275288962,0.80689540955757122,0.42920386365606894,2.9030492557114171,2.5253577098099149]
[null,null,null,null,null,null,null,null,null,null,null,null,null,null,null,null,null,null,null,null,null,null,null,null,null,null,null,null,null,null,null,null,null,null,null,null,null,null,null,null,null,null,null,null,null,null,null,null,null,null,null,null,null,null,null,null,null,null,null,null,null,null,null,null,null,null,null,null,null,null,25,72.599999999999994,57.2,48.6,35.5,29,25,17.100000000000001,11.4,7,{"$f":"AVERAGE(CC112,CC114)","v":6.4},{"$f":"AVERAGE(CD112,CD114)","v":3.6},null,null,null,null,25,1.5707963267948966,6.5,3.25,null,null,0,0,0,0,0,0,null,null,25,1.5707963267948966,1.05,0.52500000000000002,null,null,1.05,0.52500000000000002,0.80769230769230782,0.40384615384615391,2.9038461538461537,2.5]
[null,null,null,null,null,null,null,null,null,null,null,null,null,null,null,null,null,null,null,null,null,null,null,null,null,null,null,null,null,null,null,null,null,null,null,null,null,null,null,null,null,null,null,null,null,null,null,null,null,null,null,null,null,null,null,null,null,null,null,null,null,null,null,null,null,null,null,null,null,null,30,75.099999999999994,59.3,50.4,36.9,30.2,26.1,17.899999999999999,11.8,8,6.6,3.7,null,null,null,null,26,1.6336281798666925,6.4935868673918824,3.0459308115297317,null,null,0,0,0,0,0,0,null,null,26,1.6336281798666925,1.0489640324248426,0.49203497724711048,null,null,1.0489640324248426,0.49203497724711048,0.80689540955757122,0.37848844403623888,2.9030492557114171,2.4746422901900851]
[null,null,null,null,null,null,null,null,null,null,null,null,null,null,null,null,null,null,null,null,null,null,null,null,null,null,null,null,null,null,null,null,null,null,null,null,null,null,null,null,null,null,null,null,null,null,null,null,null,null,null,null,null,null,null,null,null,null,null,null,null,null,null,null,null,null,null,null,null,null,50,82.5,65.5,55.9,41.2,33.799999999999997,29.2,20.100000000000001,13.2,9,7.4,4.0999999999999996,null,null,null,null,27,1.6964600329384885,6.4743727792720529,2.8426669909160109,null,null,0,0,0,0,0,0,null,null,27,1.6964600329384885,1.0458602181901009,0.45920005237874023,null,null,1.0458602181901009,0.45920005237874023,0.80450786014623155,0.35323080952210789,2.9006617063000775,2.4493846556759538]
[null,null,null,null,null,null,null,null,null,null,null,null,null,null,null,null,null,null,null,null,null,null,null,null,null,null,null,null,null,null,null,null,null,null,null,null,null,null,null,null,null,null,null,null,null,null,null,null,null,null,null,null,null,null,null,null,null,null,null,null,null,null,null,null,null,null,null,null,null,null,100,93.8,74.900000000000006,64.3,47.9,39.5,34.200000000000003,23.5,15.4,10,8.5,4.5999999999999996,null,null,null,null,28,1.7592918860102844,6.4424335648682378,2.6410107275963943,null,null,0,0,0,0,0,0,null,null,28,1.7592918860102844,1.0407008066325616,0.42662480984249451,null,null,1.0407008066325616,0.42662480984249451,0.80053908202504742,0.32817293064807274,2.8966929281788936,2.424326776801919]
[null,null,null,null,null,null,null,null,null,null,null,null,null,null,null,null,null,null,null,null,null,null,null,null,null,null,null,null,null,null,null,null,null,null,null,null,null,null,null,null,null,null,null,null,null,null,null,null,null,null,null,null,null,null,null,null,null,null,null,null,null,null,null,null,null,null,null,null,null,null,200,{"$f":"(BT118-BT116)*0.25+BT116","v":101.9},{"$f":"(BU118-BU116)*0.25+BU116","v":81.775000000000006},{"$f":"(BV118-BV116)*0.25+BV116","v":70.5},{"$f":"(BW118-BW116)*0.25+BW116","v":52.875},{"$f":"(BX118-BX116)*0.25+BX116","v":43.725000000000001},{"$f":"(BY118-BY116)*0.25+BY116","v":37.900000000000006},{"$f":"(BZ118-BZ116)*0.25+BZ116","v":26.1},{"$f":"(CA118-CA116)*0.25+CA116","v":17},{"$f":"(CB118-CB116)*0.25+CB116","v":11},{"$f":"(CC118-CC116)*0.25+CC116","v":9.375},{"$f":"(CD118-CD116)*0.25+CD116","v":5.0749999999999993},null,null,null,null,29,1.8221237390820799,6.3978952736680519,2.4417578667142226,null,null,0,0,0,0,0,0,null,null,29,1.8221237390820799,1.0335061595925314,0.39443780923845134,null,null,1.0335061595925314,0.39443780923845134,0.79500473814810113,0.30341369941419338,2.8911585843019472,2.3995675455680394]
[null,null,null,null,null,null,null,null,null,null,null,null,null,null,null,null,null,null,null,null,null,null,null,null,null,null,null,null,null,null,null,null,null,null,null,null,null,null,null,null,null,null,null,null,null,null,null,null,null,null,null,null,null,null,null,null,null,null,null,null,null,null,null,null,null,null,null,null,null,null,500,126.2,102.4,89.1,67.8,56.4,49,33.9,21.8,14,12,6.5,null,null,null,null,30,1.8849555921538759,6.3409336779592493,2.245694768281421,null,null,0,0,0,0,0,0,null,null,30,1.8849555921538759,1.0243046710549557,0.36276607795315263,null,null,1.0243046710549557,0.36276607795315263,0.78792667004227368,0.27905082919473279,2.8840805161961196,2.3752046753485789]
[null,null,null,null,null,null,null,null,null,null,null,null,null,null,null,null,null,null,null,null,null,null,null,null,null,null,null,null,null,null,null,null,null,null,null,null,null,null,null,null,null,null,null,null,null,null,null,null,null,null,null,null,null,null,null,null,null,null,null,null,null,null,null,null,null,null,null,null,null,null,1000,143.4,117.2,102.5,78.7,65.7,57.3,39.700000000000003,25.3,16,14,7.8,null,null,null,null,31,1.9477874452256718,6.2717735791368163,2.0535952037747967,null,null,0,0,0,0,0,0,null,null,31,1.9477874452256718,1.013132655091332,0.33173460984054404,null,null,1.013132655091332,0.33173460984054404,0.77933281160871692,0.25518046910811082,2.8754866577625631,2.351334315261957]
[null,null,null,null,null,null,null,null,null,null,null,null,null,null,null,null,null,null,null,null,null,null,null,null,null,null,null,null,null,null,null,null,null,null,null,null,null,null,null,null,null,null,null,null,null,null,null,null,null,null,null,null,null,null,null,null,null,null,null,null,null,null,null,null,null,null,null,null,null,null,null,null,{"$f":"BU116/BU118","v":0.7314453125},0.72166105499438837,0.70648967551622421,0.70035460992907805,0.69795918367346943,0.69321533923303835,0.70642201834862384,0.7142857142857143,0.70833333333333337,0.70769230769230762,null,null,null,null,32,2.0106192982974678,6.1906879205145628,1.8662173024135136,null,null,0,0,0,0,0,0,null,null,32,2.0106192982974678,1.0000342025446602,0.30146587192833685,null,null,1.0000342025446602,0.30146587192833685,0.76925707888050787,0.23189682456025912,2.8654109250343538,2.3280506707141053]
[null,null,null,null,null,null,null,null,null,null,null,null,null,null,null,null,null,null,null,null,null,null,null,null,null,null,null,null,null,null,null,null,null,null,null,null,null,null,null,null,null,null,null,null,null,null,null,null,null,null,null,null,null,null,null,null,null,null,null,null,null,null,null,null,null,null,null,null,null,null,null,null,{"$f":"BU118/BU119","v":0.87372013651877134},{"$f":"BV118/BV119","v":0.86926829268292682},0.86149936467598465,0.85844748858447484,0.85514834205933687,0.85390428211586888,0.86166007905138342,0.875,{"$f":"CC118/CC119","v":0.8571428571428571},{"$f":"CD118/CD119","v":0.83333333333333337},null,null,null,null,33,2.0734511513692637,6.0979967101425565,1.6843005591694249,null,null,0,0,0,0,0,0,null,null,33,2.0734511513692637,0.98506100702302835,0.27207932109659944,null,null,0.98506100702302835,0.27207932109659944,0.75773923617156036,0.20929178545892266,2.8538930823254063,2.3054456316127689]
[null,null,null,null,null,null,null,null,null,null,null,null,null,null,null,null,null,null,null,null,null,null,null,null,null,null,null,null,null,null,null,null,null,null,null,null,null,null,null,null,null,null,null,null,null,null,null,null,null,null,null,null,null,null,null,null,null,null,null,null,null,null,null,null,null,null,null,null,null,"Rainfall","Return Period","Storm duration",null,null,null,null,null,null,null,null,null,null,null,null,null,null,34,2.1362830044410597,5.9940657578815486,1.5085629163182601,null,null,0,0,0,0,0,0,null,null,34,2.1362830044410597,0.96827216088855783,0.24369093263602665,null,null,0.96827216088855783,0.24369093263602665,0.74482473914504455,0.18745456356617435,2.8409785852988905,2.2836084097200207]
[null,null,null,null,null,null,null,null,null,null,null,null,null,null,null,null,null,null,null,null,null,null,null,null,null,null,null,null,null,null,null,null,null,null,null,null,null,null,null,null,null,null,null,null,null,null,null,null,null,null,null,null,null,null,null,null,null,null,null,null,null,null,null,null,null,null,null,null,null,null,null,5,10,15,30,45,60,120,240,480,600,1440,null,null,null,null,35,2.1991148575128552,5.879305231718579,1.3396979300494627,null,null,0,0,0,0,0,0,null,null,35,2.1991148575128552,0.94973392204684748,0.21641274254645165,null,null,0.94973392204684748,0.21641274254645165,0.73056455542065191,0.16647134042034745,2.8267184015744982,2.2626251865741933]
[null,null,null,null,null,null,null,null,null,null,null,null,null,null,null,null,null,null,null,null,null,null,null,null,null,null,null,null,null,null,null,null,null,null,null,null,null,null,null,null,null,null,null,null,null,null,null,null,null,null,null,null,null,null,null,null,null,null,null,null,null,null,null,null,null,null,null,null,null,"M5-60",1,28.3,21.6,17.7,12.4,10,8.6,6,4.2,3,2.6,1.3,null,null,null,null,36,2.2619467105846511,5.754168039021315,1.1783720333167582,null,null,0,0,0,0,0,0,null,null,36,2.2619467105846511,0.9295194524572894,0.19035240538193787,null,null,0.9295194524572894,0.19035240538193787,0.7150149634286842,0.14642492721687531,2.8111688095825302,2.2425787733707212]
[null,null,null,null,null,null,null,null,null,null,null,null,null,null,null,null,null,null,null,null,null,null,null,null,null,null,null,null,null,null,null,null,null,null,null,null,null,null,null,null,null,null,null,null,null,null,null,null,null,null,null,null,null,null,null,null,null,null,null,null,null,null,null,null,null,null,null,null,null,14,2,33.299999999999997,26,21.9,15.8,12.9,11.1,7.7,5.3,4,3.2,1.9,null,null,null,null,37,2.3247785636564471,5.6191480391195867,1.0252219057317618,null,null,0,0,0,0,0,0,null,null,37,2.3247785636564471,0.90770852939624103,0.16561276938743841,null,null,0.90770852939624103,0.16561276938743841,0.69823733030480084,0.12739443799033726,2.7943911764586469,2.2235482841441834]
[null,null,null,null,null,null,null,null,null,null,null,null,null,null,null,null,null,null,null,null,null,null,null,null,null,null,null,null,null,null,null,null,null,null,null,null,null,null,null,null,null,null,null,null,null,null,null,null,null,null,null,null,null,null,null,null,null,null,null,null,null,null,null,null,null,null,null,null,null,"r Ratio",5,44.4,34.4,28.9,20.7,16.7,14.3,9.8000000000000007,6.6,4,3.9,2.2999999999999998,null,null,null,null,38,2.3876104167282426,5.4747780942682382,0.88085196088041329,null,null,0,0,0,0,0,0,null,null,38,2.3876104167282426,0.88438723061256175,0.14229147060375907,null,null,0.88438723061256175,0.14229147060375907,0.68029786970197059,0.10945497738750698,2.7764517158558166,2.2056088235413531]
[null,null,null,null,null,null,null,null,null,null,null,null,null,null,null,null,null,null,null,null,null,null,null,null,null,null,null,null,null,null,null,null,null,null,null,null,null,null,null,null,null,null,null,null,null,null,null,null,null,null,null,null,null,null,null,null,null,null,null,null,null,null,null,null,null,null,null,null,null,0.2,10,50.4,39.299999999999997,33.1,23.9,19.399999999999999,16.7,11.5,7.7,5,4.5,2.6,null,null,null,null,39,2.4504422698000385,5.3216279666832422,0.74583196097868543,null,null,0,0,0,0,0,0,null,null,39,2.4504422698000385,0.85964759461806217,0.1204805475427107,null,null,0.85964759461806217,0.1204805475427107,0.66126738047543243,9.2677344263623618E-2,2.7574212266292784,2.1888311904174698]
[null,null,null,null,null,null,null,null,null,null,null,null,null,null,null,null,null,null,null,null,null,null,null,null,null,null,null,null,null,null,null,null,null,null,null,null,null,null,null,null,null,null,null,null,null,null,null,null,null,null,null,null,null,null,null,null,null,null,null,null,null,null,null,null,null,null,null,null,null,null,15,54.2,42.4,35.799999999999997,26,21.2,18.3,12.6,8.5,6,{"$f":"AVERAGE(CC127,CC129)","v":4.8499999999999996},{"$f":"AVERAGE(CD127,CD129)","v":2.8},null,null,null,null,40,2.5132741228718345,5.1603020699505375,0.62069476828142101,null,null,0,0,0,0,0,0,null,null,40,2.5132741228718345,0.83358725745354856,0.10026607795315268,null,null,0.83358725745354856,0.10026607795315268,0.64122096727196043,7.7127752271655914E-2,2.7373748134258067,2.1732815984255018]
[null,null,null,null,null,null,null,null,null,null,null,null,null,null,null,null,null,null,null,null,null,null,null,null,null,null,null,null,null,null,null,null,null,null,null,null,null,null,null,null,null,null,null,null,null,null,null,null,null,null,null,null,null,null,null,null,null,null,null,null,null,null,null,null,null,null,null,null,null,null,20,57.2,44.8,37.9,27.6,22.6,19.399999999999999,13.4,9,6,5.2,3,null,null,null,null,41,2.57610597594363,4.9914370836817401,0.50593424211845184,null,null,0,0,0,0,0,0,null,null,41,2.57610597594363,0.80630906736397345,8.1727839111442213E-2,null,null,0.80630906736397345,8.1727839111442213E-2,0.62023774412613342,6.2867568547263247E-2,2.7163915902799793,2.1590214147011091]
[null,null,null,null,null,null,null,null,null,null,null,null,null,null,null,null,null,null,null,null,null,null,null,null,null,null,null,null,null,null,null,null,null,null,null,null,null,null,null,null,null,null,null,null,null,null,null,null,null,null,null,null,null,null,null,null,null,null,null,null,null,null,null,null,null,null,null,null,null,null,25,59.5,46.7,39.6,28.9,23.7,20.399999999999999,14.1,9.5,6,{"$f":"AVERAGE(CC129,CC131)","v":5.4},{"$f":"AVERAGE(CD129,CD131)","v":3.1},null,null,null,null,42,2.638937829015426,4.815699440830576,0.40200328985744394,null,null,0,0,0,0,0,0,null,null,42,2.638937829015426,0.77792067890340078,6.4938992976971754E-2,null,null,0.77792067890340078,6.4938992976971754E-2,0.59840052223338525,4.9953071520747509E-2,2.6945543683872315,2.1461069176745937]
[null,null,null,null,null,null,null,null,null,null,null,null,null,null,null,null,null,null,null,null,null,null,null,null,null,null,null,null,null,null,null,null,null,null,null,null,null,null,null,null,null,null,null,null,null,null,null,null,null,null,null,null,null,null,null,null,null,null,null,null,null,null,null,null,null,null,null,null,null,null,30,61.5,48.3,41,30.1,24.6,21.3,14.7,9.9,6,5.6,3.2,null,null,null,null,43,2.7017696820872219,4.6337826975864864,0.30931207948543715,null,null,0,0,0,0,0,0,null,null,43,2.7017696820872219,0.74853412807166331,4.9965797455339855E-2,null,null,0.74853412807166331,4.9965797455339855E-2,0.57579548313204876,3.8435228811799893E-2,2.6719493292858947,2.1345890749656462]
[null,null,null,null,null,null,null,null,null,null,null,null,null,null,null,null,null,null,null,null,null,null,null,null,null,null,null,null,null,null,null,null,null,null,null,null,null,null,null,null,null,null,null,null,null,null,null,null,null,null,null,null,null,null,null,null,null,null,null,null,null,null,null,null,null,null,null,null,null,null,50,67.5,53.2,45.3,33.5,27.5,23.8,16.5,11.1,7,6.2,3.5,null,null,null,null,44,2.7646015351590179,4.4464047962252042,0.22822642086318323,null,null,0,0,0,0,0,0,null,null,44,2.7646015351590179,0.71826539015945601,3.6867344908668054E-2,null,null,0.71826539015945601,3.6867344908668054E-2,0.55251183858419695,2.8359496083590813E-2,2.648665684738043,2.1245133422374369]
[null,null,null,null,null,null,null,null,null,null,null,null,null,null,null,null,null,null,null,null,null,null,null,null,null,null,null,null,null,null,null,null,null,null,null,null,null,null,null,null,null,null,null,null,null,null,null,null,null,null,null,null,null,null,null,null,null,null,null,null,null,null,null,null,null,null,null,null,null,null,100,76.599999999999994,60.7,51.9,38.700000000000003,31.9,27.7,19.3,13,8,7.2,4,null,null,null,null,45,2.8274333882308138,4.254305231718579,0.15906632204075111,null,null,0,0,0,0,0,0,null,null,45,2.8274333882308138,0.68723392204684752,2.5695328945044393E-2,null,null,0.68723392204684752,2.5695328945044393E-2,0.52864147849757503,1.9765637650034151E-2,2.6247953246514211,2.1159194838038804]
[null,null,null,null,null,null,null,null,null,null,null,null,null,null,null,null,null,null,null,null,null,null,null,null,null,null,null,null,null,null,null,null,null,null,null,null,null,null,null,null,null,null,null,null,null,null,null,null,null,null,null,null,null,null,null,null,null,null,null,null,null,null,null,null,null,null,null,null,null,null,200,{"$f":"(BT135-BT133)*0.25+BT133","v":83.074999999999989},{"$f":"(BU135-BU133)*0.25+BU133","v":66.099999999999994},{"$f":"(BV135-BV133)*0.25+BV133","v":56.674999999999997},{"$f":"(BW135-BW133)*0.25+BW133","v":42.575000000000003},{"$f":"(BX135-BX133)*0.25+BX133","v":35.225000000000001},{"$f":"(BY135-BY133)*0.25+BY133","v":30.625},{"$f":"(BZ135-BZ133)*0.25+BZ133","v":21.425000000000001},{"$f":"(CA135-CA133)*0.25+CA133","v":14.425000000000001},{"$f":"(CB135-CB133)*0.25+CB133","v":9},{"$f":"(CC135-CC133)*0.25+CC133","v":7.9},{"$f":"(CD135-CD133)*0.25+CD133","v":4.5},null,null,null,null,46,2.8902652413026098,4.0582421332857779,0.102104726331949,null,null,0,0,0,0,0,0,null,null,46,2.8902652413026098,0.65556219076154876,1.6493840407468707E-2,null,null,0.65556219076154876,1.6493840407468707E-2,0.50427860827811444,1.2687569544206698E-2,2.6004324544319606,2.1088414156980528]
[null,null,null,null,null,null,null,null,null,null,null,null,null,null,null,null,null,null,null,null,null,null,null,null,null,null,null,null,null,null,null,null,null,null,null,null,null,null,null,null,null,null,null,null,null,null,null,null,null,null,null,null,null,null,null,null,null,null,null,null,null,null,null,null,null,null,null,null,null,null,500,102.5,82.3,71,54.2,45.2,39.4,27.8,18.7,12,10,6,null,null,null,null,47,2.9530970943744053,3.8589892724036066,5.7566435131762184E-2,null,null,0,0,0,0,0,0,null,null,47,2.9530970943744053,0.62337519015750564,9.2991933674384519E-3,null,null,0.62337519015750564,9.2991933674384519E-3,0.47951937704423514,7.1532256672603477E-3,2.5756732231980815,2.1033070718211064]
[null,null,null,null,null,null,null,null,null,null,null,null,null,null,null,null,null,null,null,null,null,null,null,null,null,null,null,null,null,null,null,null,null,null,null,null,null,null,null,null,null,null,null,null,null,null,null,null,null,null,null,null,null,null,null,null,null,null,null,null,null,null,null,null,null,null,null,null,null,null,1000,116.3,93.9,81.3,62.7,52.5,45.9,32.5,21.8,14,12,7,null,null,null,null,48,3.0159289474462012,3.6573330090839899,2.5627220727947098E-2,null,null,0,0,0,0,0,0,null,null,48,3.0159289474462012,0.59079994762125987,4.1397818098991568E-3,null,null,0.59079994762125987,4.1397818098991568E-3,0.45446149817019993,3.1844475460762744E-3,2.5506153443240462,2.0993382936999225]
[null,null,null,null,null,null,null,null,null,null,null,null,null,null,null,null,null,null,null,null,null,null,null,null,null,null,null,null,null,null,null,null,null,null,null,null,null,null,null,null,null,null,null,null,null,null,null,null,null,null,null,null,null,null,null,null,null,null,null,null,null,null,null,null,null,null,null,null,null,null,null,null,{"$f":"BU133/BU135","v":0.73754556500607538},0.73098591549295777,0.7140221402214022,0.70575221238938046,0.70304568527918787,0.69424460431654678,0.69518716577540107,0.66666666666666663,0.72,0.66666666666666663,null,null,null,null,49,3.0787608005179972,3.4540691884702692,6.4131326081175999E-3,null,null,0,0,0,0,0,0,null,null,49,3.0787608005179972,0.55796502275288962,1.0359675751574482E-3,null,null,0.55796502275288962,1.0359675751574482E-3,0.42920386365606894,7.9689813473649864E-4,2.5253577098099149,2.0969507442885824]
[null,null,null,null,null,null,null,null,null,null,null,null,null,null,null,null,null,null,null,null,null,null,null,null,null,null,null,null,null,null,null,null,null,null,null,null,null,null,null,null,null,null,null,null,null,null,null,null,null,null,null,null,null,null,null,null,null,null,null,null,null,null,null,null,null,null,null,null,null,"Rainfall","Return Period","Storm duration",{"$f":"BU135/BU136","v":0.87646432374866867},{"$f":"BV135/BV136","v":0.87330873308733092},0.86443381180223289,0.86095238095238102,0.85838779956427014,0.85538461538461541,0.85779816513761464,0.8571428571428571,{"$f":"CC135/CC136","v":0.83333333333333337},{"$f":"CD135/CD136","v":0.8571428571428571},null,null,null,null,50,3.1415926535897931,3.2500000000000004,0,null,null,0,0,0,0,0,0,null,null,50,3.1415926535897931,0.52500000000000013,0,null,null,0.52500000000000013,0,0.40384615384615397,0,2.5,2.0961538461538463]
[null,null,null,null,null,null,null,null,null,null,null,null,null,null,null,null,null,null,null,null,null,null,null,null,null,null,null,null,null,null,null,null,null,null,null,null,null,null,null,null,null,null,null,null,null,null,null,null,null,null,null,null,null,null,null,null,null,null,null,null,null,null,null,null,null,null,null,null,null,null,null,5,10,15,30,45,60,120,240,480,600,1440,null,null,null,null,51,3.2044245066615891,3.0459308115297317,6.4131326081175999E-3,null,null,0,0,0,0,0,0,null,null,51,3.2044245066615891,0.49203497724711054,1.0359675751574482E-3,null,null,0.49203497724711054,1.0359675751574482E-3,0.37848844403623888,7.9689813473649864E-4,2.4746422901900851,2.0969507442885824]
[null,null,null,null,null,null,null,null,null,null,null,null,null,null,null,null,null,null,null,null,null,null,null,null,null,null,null,null,null,null,null,null,null,null,null,null,null,null,null,null,null,null,null,null,null,null,null,null,null,null,null,null,null,null,null,null,null,null,null,null,null,null,null,null,null,null,null,null,null,"M5-60",1,40.1,29.9,24.7,17.7,14.5,12.7,9,6.4,4.4000000000000004,3.9,2.4,null,null,null,null,52,3.267256359733385,2.8426669909160109,2.5627220727947098E-2,null,null,0,0,0,0,0,0,null,null,52,3.267256359733385,0.45920005237874029,4.1397818098991568E-3,null,null,0.45920005237874029,4.1397818098991568E-3,0.35323080952210795,3.1844475460762744E-3,2.4493846556759542,2.0993382936999225]
[null,null,null,null,null,null,null,null,null,null,null,null,null,null,null,null,null,null,null,null,null,null,null,null,null,null,null,null,null,null,null,null,null,null,null,null,null,null,null,null,null,null,null,null,null,null,null,null,null,null,null,null,null,null,null,null,null,null,null,null,null,null,null,null,null,null,null,null,null,20,2,47.9,37.5,31.6,22.9,18.7,16.100000000000001,11.2,7.7,5.3,4.5999999999999996,2.8,null,null,null,null,53,3.330088212805181,2.6410107275963943,5.7566435131762184E-2,null,null,0,0,0,0,0,0,null,null,53,3.330088212805181,0.42662480984249451,9.2991933674384519E-3,null,null,0.42662480984249451,9.2991933674384519E-3,0.32817293064807274,7.1532256672603477E-3,2.424326776801919,2.1033070718211064]
[null,null,null,null,null,null,null,null,null,null,null,null,null,null,null,null,null,null,null,null,null,null,null,null,null,null,null,null,null,null,null,null,null,null,null,null,null,null,null,null,null,null,null,null,null,null,null,null,null,null,null,null,null,null,null,null,null,null,null,null,null,null,null,null,null,null,null,null,null,"r Ratio",5,63.5,49.3,41.3,29.5,23.9,20.5,14,9.4,6,5.5,3.3,null,null,null,null,54,3.3929200658769769,2.4417578667142212,0.102104726331949,null,null,0,0,0,0,0,0,null,null,54,3.3929200658769769,0.39443780923845112,1.6493840407468707E-2,null,null,0.39443780923845112,1.6493840407468707E-2,0.30341369941419316,1.2687569544206698E-2,2.3995675455680394,2.1088414156980528]
[null,null,null,null,null,null,null,null,null,null,null,null,null,null,null,null,null,null,null,null,null,null,null,null,null,null,null,null,null,null,null,null,null,null,null,null,null,null,null,null,null,null,null,null,null,null,null,null,null,null,null,null,null,null,null,null,null,null,null,null,null,null,null,null,null,null,null,null,null,0.2,10,72.3,56.6,47.8,34.4,28,24,16.3,10.9,7,6.3,3.6,null,null,null,null,55,3.4557519189487729,2.2456947682814201,0.15906632204075111,null,null,0,0,0,0,0,0,null,null,55,3.4557519189487729,0.36276607795315247,2.5695328945044393E-2,null,null,0.36276607795315247,2.5695328945044393E-2,0.27905082919473267,1.9765637650034151E-2,2.3752046753485789,2.1159194838038804]
[null,null,null,null,null,null,null,null,null,null,null,null,null,null,null,null,null,null,null,null,null,null,null,null,null,null,null,null,null,null,null,null,null,null,null,null,null,null,null,null,null,null,null,null,null,null,null,null,null,null,null,null,null,null,null,null,null,null,null,null,null,null,null,null,null,null,null,null,null,null,15,78,61.3,52,37.6,30.6,26.3,17.899999999999999,11.9,8,{"$f":"AVERAGE(CC143,CC145)","v":6.75},{"$f":"AVERAGE(CD143,CD145)","v":3.8499999999999996},null,null,null,null,56,3.5185837720205688,2.0535952037747958,0.22822642086318368,null,null,0,0,0,0,0,0,null,null,56,3.5185837720205688,0.33173460984054393,3.6867344908668109E-2,null,null,0.33173460984054393,3.6867344908668109E-2,0.25518046910811071,2.8359496083590854E-2,2.3513343152619566,2.1245133422374369]
[null,null,null,null,null,null,null,null,null,null,null,null,null,null,null,null,null,null,null,null,null,null,null,null,null,null,null,null,null,null,null,null,null,null,null,null,null,null,null,null,null,null,null,null,null,null,null,null,null,null,null,null,null,null,null,null,null,null,null,null,null,null,null,null,null,null,null,null,null,null,20,82.4,65,55.3,40.1,32.700000000000003,28.1,19.100000000000001,12.6,8,7.2,4.0999999999999996,null,null,null,null,57,3.5814156250923639,1.8662173024135151,0.30931207948543582,null,null,0,0,0,0,0,0,null,null,57,3.5814156250923639,0.30146587192833707,4.9965797455339689E-2,null,null,0.30146587192833707,4.9965797455339689E-2,0.23189682456025928,3.8435228811799761E-2,2.3280506707141053,2.1345890749656458]
[null,null,null,null,null,null,null,null,null,null,null,null,null,null,null,null,null,null,null,null,null,null,null,null,null,null,null,null,null,null,null,null,null,null,null,null,null,null,null,null,null,null,null,null,null,null,null,null,null,null,null,null,null,null,null,null,null,null,null,null,null,null,null,null,null,null,null,null,null,null,25,85.9,67.900000000000006,57.9,42.1,34.4,29.6,20,13.2,9,{"$f":"AVERAGE(CC145,CC147)","v":7.4},{"$f":"AVERAGE(CD145,CD147)","v":4.1999999999999993},null,null,null,null,58,3.6442474781641598,1.6843005591694262,0.40200328985744305,null,null,0,0,0,0,0,0,null,null,58,3.6442474781641598,0.27207932109659966,6.4938992976971588E-2,null,null,0.27207932109659966,6.4938992976971588E-2,0.20929178545892282,4.9953071520747377E-2,2.3054456316127689,2.1461069176745937]
[null,null,null,null,null,null,null,null,null,null,null,null,null,null,null,null,null,null,null,null,null,null,null,null,null,null,null,null,null,null,null,null,null,null,null,null,null,null,null,null,null,null,null,null,null,null,null,null,null,null,null,null,null,null,null,null,null,null,null,null,null,null,null,null,null,null,null,null,null,null,30,88.9,70.5,60.2,43.9,35.799999999999997,30.8,20.9,13.7,9,7.6,4.3,null,null,null,null,59,3.7070793312359558,1.5085629163182617,0.50593424211845051,null,null,0,0,0,0,0,0,null,null,59,3.7070793312359558,0.24369093263602687,8.1727839111442047E-2,null,null,0.24369093263602687,8.1727839111442047E-2,0.18745456356617451,6.2867568547263122E-2,2.2836084097200207,2.1590214147011091]
[null,null,null,null,null,null,null,null,null,null,null,null,null,null,null,null,null,null,null,null,null,null,null,null,null,null,null,null,null,null,null,null,null,null,null,null,null,null,null,null,null,null,null,null,null,null,null,null,null,null,null,null,null,null,null,null,null,null,null,null,null,null,null,null,null,null,null,null,null,null,50,97.8,78,67,49.1,40.200000000000003,34.6,23.4,15.3,10,8.4,4.7,null,null,null,null,60,3.7699111843077517,1.3396979300494627,0.62069476828142056,null,null,0,0,0,0,0,0,null,null,60,3.7699111843077517,0.21641274254645165,0.10026607795315251,null,null,0.21641274254645165,0.10026607795315251,0.16647134042034745,7.7127752271655775E-2,2.2626251865741933,2.1732815984255018]
[null,null,null,null,null,null,null,null,null,null,null,null,null,null,null,null,null,null,null,null,null,null,null,null,null,null,null,null,null,null,null,null,null,null,null,null,null,null,null,null,null,null,null,null,null,null,null,null,null,null,null,null,null,null,null,null,null,null,null,null,null,null,null,null,null,null,null,null,null,null,100,111.4,89.6,77.400000000000006,57.2,47,40.5,27.3,17.600000000000001,11,9.6,5.2,null,null,null,null,61,3.8327430373795477,1.1783720333167587,0.74583196097868498,null,null,0,0,0,0,0,0,null,null,61,3.8327430373795477,0.19035240538193793,0.12048054754271065,null,null,0.19035240538193793,0.12048054754271065,0.14642492721687533,9.2677344263623576E-2,2.2425787733707212,2.1888311904174698]
[null,null,null,null,null,null,null,null,null,null,null,null,null,null,null,null,null,null,null,null,null,null,null,null,null,null,null,null,null,null,null,null,null,null,null,null,null,null,null,null,null,null,null,null,null,null,null,null,null,null,null,null,null,null,null,null,null,null,null,null,null,null,null,null,null,null,null,null,null,null,200,{"$f":"(BT151-BT149)*0.25+BT149","v":121.2},{"$f":"(BU151-BU149)*0.25+BU149","v":98.1},{"$f":"(BV151-BV149)*0.25+BV149","v":85.175000000000011},{"$f":"(BW151-BW149)*0.25+BW149","v":63.3},{"$f":"(BX151-BX149)*0.25+BX149","v":52.125},{"$f":"(BY151-BY149)*0.25+BY149","v":44.975000000000001},{"$f":"(BZ151-BZ149)*0.25+BZ149","v":30.25},{"$f":"(CA151-CA149)*0.25+CA149","v":19.375},{"$f":"(CB151-CB149)*0.25+CB149","v":12},{"$f":"(CC151-CC149)*0.25+CC149","v":10.7},{"$f":"(CD151-CD149)*0.25+CD149","v":5.7750000000000004},null,null,null,null,62,3.8955748904513436,1.0252219057317618,0.8808519608804124,null,null,0,0,0,0,0,0,null,null,62,3.8955748904513436,0.16561276938743841,0.14229147060375896,null,null,0.16561276938743841,0.14229147060375896,0.12739443799033726,0.1094549773875069,2.2235482841441834,2.2056088235413531]
[null,null,null,null,null,null,null,null,null,null,null,null,null,null,null,null,null,null,null,null,null,null,null,null,null,null,null,null,null,null,null,null,null,null,null,null,null,null,null,null,null,null,null,null,null,null,null,null,null,null,null,null,null,null,null,null,null,null,null,null,null,null,null,null,null,null,null,null,null,null,500,150.6,123.6,108.5,81.599999999999994,67.5,58.4,39.1,24.7,15,14,7.5,null,null,null,null,63,3.9584067435231391,0.88085196088041329,1.0252219057317609,null,null,0,0,0,0,0,0,null,null,63,3.9584067435231391,0.14229147060375907,0.1656127693874383,null,null,0.14229147060375907,0.1656127693874383,0.10945497738750698,0.12739443799033714,2.2056088235413531,2.2235482841441834]
[null,null,null,null,null,null,null,null,null,null,null,null,null,null,null,null,null,null,null,null,null,null,null,null,null,null,null,null,null,null,null,null,null,null,null,null,null,null,null,null,null,null,null,null,null,null,null,null,null,null,null,null,null,null,null,null,null,null,null,null,null,null,null,null,null,null,null,null,null,null,1000,171.5,141.9,125.4,95.1,78.900000000000006,68.400000000000006,45.7,28.5,17,16,9,null,null,null,null,64,4.0212385965949355,0.74583196097868454,1.1783720333167591,null,null,0,0,0,0,0,0,null,null,64,4.0212385965949355,0.12048054754271059,0.19035240538193798,null,null,0.12048054754271059,0.19035240538193798,9.2677344263623535E-2,0.14642492721687539,2.1888311904174698,2.2425787733707216]
[null,null,null,null,null,null,null,null,null,null,null,null,null,null,null,null,null,null,null,null,null,null,null,null,null,null,null,null,null,null,null,null,null,null,null,null,null,null,null,null,null,null,null,null,null,null,null,null,null,null,null,null,null,null,null,null,null,null,null,null,null,null,null,null,null,null,null,null,null,null,null,null,{"$f":"BU149/BU151","v":0.72491909385113262},0.71336405529953917,0.70098039215686281,0.6962962962962963,0.69349315068493156,0.69820971867007675,0.71255060728744946,0.73333333333333328,0.68571428571428572,0.69333333333333336,null,null,null,null,65,{"$f":"CI153%*2*PI()","v":4.0840704496667311},0.62069476828142101,1.339697930049462,null,null,0,0,0,0,0,0,null,null,65,{"$f":"CW153%*2*PI()","v":4.0840704496667311},0.10026607795315268,0.21641274254645154,null,null,0.10026607795315268,0.21641274254645154,7.7127752271655914E-2,0.16647134042034734,2.1732815984255018,2.2626251865741933]
[null,null,null,null,null,null,null,null,null,null,null,null,null,null,null,null,null,null,null,null,null,null,null,null,null,null,null,null,null,null,null,null,null,null,null,null,null,null,null,null,null,null,null,null,null,null,null,null,null,null,null,null,null,null,null,null,null,null,null,null,null,null,null,null,null,null,null,null,null,null,null,null,{"$f":"BU151/BU152","v":0.87103594080338254},{"$f":"BV151/BV152","v":0.86523125996810202},0.85804416403785488,0.85551330798479086,0.85380116959064323,0.85557986870897151,0.8666666666666667,0.88235294117647056,{"$f":"CC151/CC152","v":0.875},{"$f":"CD151/CD152","v":0.83333333333333337},null,null,null,null,66,4.1469023027385274,{"$f":"($T$67/2)*SIN(CJ154)+T$67/2","v":0.50593424211845051},{"$f":"($T$67/2)*COS(CJ154)+T$67/2","v":1.5085629163182619},null,null,{"$f":"IF(P$65=\"Perforated Manhole\",CK154,CM154)","v":0},{"$f":"IF(P$65=\"Perforated Manhole\",CL154,CN154)","v":0},{"$f":"IF(MAX($CO$89:$CP$189)>5,CO154*(5/MAX($CO$89:$CP$189)),CO154)","v":0},0,{"$f":"IF(MAX($CQ$89:$CQ$189)=5,CQ154,CQ154+0.5*(5-MAX($CQ$89:$CQ$189)))","v":0},{"$f":"IF(MAX($CR$89:$CR$189)=5,CR154,CR154+0.5*(5-MAX($CR$89:$CR$189)))","v":0},null,null,66,4.1469023027385274,{"$f":"($T$73*0.001/2)*SIN(CX154)+T$73*0.001/2","v":8.1727839111441991E-2},{"$f":"($T$73*0.001/2)*COS(CX154)+T$73*0.001/2","v":0.24369093263602692},null,null,{"$f":"IF(P$65=\"Manhole Within Pit\",CY154,NA())","v":8.1727839111441991E-2},{"$f":"IF(P$65=\"Manhole Within Pit\",CZ154,NA())","v":0.24369093263602692},{"$f":"IF(MAX($CO$89:$CP$189)>5,DC154*(5/MAX($CO$89:$CP$189)),DC154)","v":6.2867568547263067E-2},{"$f":"IF(MAX($CO$89:$CP$189)>5,DD154*(5/MAX($CO$89:$CP$189)),DD154)","v":0.18745456356617457},{"$f":"IF(MAX($CQ$89:$CQ$189)=5,DE154,DE154+0.5*(5-MAX($CQ$89:$CQ$189)))-$DF$188/2+($CS$90-$CS$89)/2","v":2.1590214147011091},{"$f":"IF(MAX($CR$89:$CR$189)=5,DF154,DF154+0.5*(5-MAX($CR$89:$CR$189)))-$DF$188/2+($CT$91-$CT$90)/2","v":2.2836084097200207}]
[null,null,null,null,null,null,null,null,null,null,null,null,null,null,null,null,null,null,null,null,null,null,null,null,null,null,null,null,null,null,null,null,null,null,null,null,null,null,null,null,null,null,null,null,null,null,null,null,null,null,null,null,null,null,null,null,null,null,null,null,null,null,null,null,null,null,null,null,null,null,null,null,null,null,null,null,null,null,null,null,null,null,null,null,null,null,67,4.209734155810323,0.40200328985744349,1.6843005591694253,null,null,0,0,0,0,0,0,null,null,67,4.209734155810323,6.4938992976971643E-2,0.27207932109659949,null,null,6.4938992976971643E-2,0.27207932109659949,4.9953071520747419E-2,0.20929178545892269,2.1461069176745937,2.3054456316127689]
[null,null,null,null,null,null,null,null,null,null,null,null,null,null,null,null,null,null,null,null,null,null,null,null,null,null,null,null,null,null,null,null,null,null,null,null,null,null,null,null,null,null,null,null,null,null,null,null,null,null,null,null,null,null,null,null,null,null,null,null,null,null,null,null,null,null,null,null,null,null,null,null,null,null,null,null,null,null,null,null,null,null,null,null,null,null,68,4.2725660088821193,0.30931207948543582,1.8662173024135156,null,null,0,0,0,0,0,0,null,null,68,4.2725660088821193,4.9965797455339633E-2,0.30146587192833713,null,null,4.9965797455339633E-2,0.30146587192833713,3.843522881179972E-2,0.23189682456025934,2.1345890749656458,2.3280506707141053]
[null,null,null,null,null,null,null,null,null,null,null,null,null,null,null,null,null,null,null,null,null,null,null,null,null,null,null,null,null,null,null,null,null,null,null,null,null,null,null,null,null,null,null,null,null,null,null,null,null,null,null,null,null,null,null,null,null,null,null,null,null,null,null,null,null,null,null,null,null,null,null,null,null,null,null,null,null,null,null,null,null,null,null,null,null,null,69,4.335397861953914,0.22822642086318368,2.0535952037747949,null,null,0,0,0,0,0,0,null,null,69,4.335397861953914,3.6867344908668165E-2,0.33173460984054376,null,null,3.6867344908668165E-2,0.33173460984054376,2.8359496083590896E-2,0.2551804691081106,2.1245133422374369,2.3513343152619566]
[null,null,null,null,null,null,null,null,null,null,null,null,null,null,null,null,null,null,null,null,null,null,null,null,null,null,null,null,null,null,null,null,null,null,null,null,null,null,null,null,null,null,null,null,null,null,null,null,null,null,null,null,null,null,null,null,null,null,null,null,null,null,null,null,null,null,null,null,null,null,null,null,null,null,null,null,null,null,null,null,null,null,null,null,null,null,70,4.3982297150257104,0.15906632204075111,2.2456947682814201,null,null,0,0,0,0,0,0,null,null,70,4.3982297150257104,2.5695328945044393E-2,0.36276607795315252,null,null,2.5695328945044393E-2,0.36276607795315252,1.9765637650034151E-2,0.27905082919473273,2.1159194838038804,2.3752046753485789]
[null,null,null,null,null,null,null,null,null,null,null,null,null,null,null,null,null,null,null,null,null,null,null,null,null,null,null,null,null,null,null,null,null,null,null,null,null,null,null,null,null,null,null,null,null,null,null,null,null,null,null,null,null,null,null,null,null,null,null,null,null,null,null,null,null,null,null,null,null,null,null,null,null,null,null,null,null,null,null,null,null,null,null,null,null,null,71,4.4610615680975059,0.10210472633194945,2.4417578667142203,null,null,0,0,0,0,0,0,null,null,71,4.4610615680975059,1.6493840407468707E-2,0.39443780923845095,null,null,1.6493840407468707E-2,0.39443780923845095,1.2687569544206698E-2,0.30341369941419305,2.1088414156980528,2.399567545568039]
[null,null,null,null,null,null,null,null,null,null,null,null,null,null,null,null,null,null,null,null,null,null,null,null,null,null,null,null,null,null,null,null,null,null,null,null,null,null,null,null,null,null,null,null,null,null,null,null,null,null,null,null,null,null,null,null,null,null,null,null,null,null,null,null,null,null,null,null,null,null,null,null,null,null,null,null,null,null,null,null,null,null,null,null,null,null,72,4.5238934211693023,5.756643513176174E-2,2.6410107275963952,null,null,0,0,0,0,0,0,null,null,72,4.5238934211693023,9.2991933674384519E-3,0.42662480984249457,null,null,9.2991933674384519E-3,0.42662480984249457,7.1532256672603477E-3,0.32817293064807274,2.1033070718211064,2.424326776801919]
[null,null,null,null,null,null,null,null,null,null,null,null,null,null,null,null,null,null,null,null,null,null,null,null,null,null,null,null,null,null,null,null,null,null,null,null,null,null,null,null,null,null,null,null,null,null,null,null,null,null,null,null,null,null,null,null,null,null,null,null,null,null,null,null,null,null,null,null,null,null,null,null,null,null,null,null,null,null,null,null,null,null,null,null,null,null,73,4.5867252742410978,2.5627220727947098E-2,2.8426669909160101,null,null,0,0,0,0,0,0,null,null,73,4.5867252742410978,4.1397818098991568E-3,0.45920005237874012,null,null,4.1397818098991568E-3,0.45920005237874012,3.1844475460762744E-3,0.35323080952210778,2.0993382936999225,2.4493846556759538]
[null,null,null,null,null,null,null,null,null,null,null,null,null,null,null,null,null,null,null,null,null,null,null,null,null,null,null,null,null,null,null,null,null,null,null,null,null,null,null,null,null,null,null,null,null,null,null,null,null,null,null,null,null,null,null,null,null,null,null,null,null,null,null,null,null,null,null,null,null,null,null,null,null,null,null,null,null,null,null,null,null,null,null,null,null,null,74,4.6495571273128942,6.4131326081175999E-3,3.0459308115297321,null,null,0,0,0,0,0,0,null,null,74,4.6495571273128942,1.0359675751574482E-3,0.49203497724711059,null,null,1.0359675751574482E-3,0.49203497724711059,7.9689813473649864E-4,0.37848844403623894,2.0969507442885824,2.4746422901900851]
[null,null,null,null,null,null,null,null,null,null,null,null,null,null,null,null,null,null,null,null,null,null,null,null,null,null,null,null,null,null,null,null,null,null,null,null,null,null,null,null,null,null,null,null,null,null,null,null,null,null,null,null,null,null,null,null,null,null,null,null,null,null,null,null,null,null,null,null,null,null,null,null,null,null,null,null,null,null,null,null,null,null,null,null,null,null,75,4.7123889803846897,0,3.2499999999999996,null,null,0,0,0,0,0,0,null,null,75,4.7123889803846897,0,0.52499999999999991,null,null,0,0.52499999999999991,0,0.4038461538461538,2.0961538461538463,2.5]
[null,null,null,null,null,null,null,null,null,null,null,null,null,null,null,null,null,null,null,null,null,null,null,null,null,null,null,null,null,null,null,null,null,null,null,null,null,null,null,null,null,null,null,null,null,null,null,null,null,null,null,null,null,null,null,null,null,null,null,null,null,null,null,null,null,null,null,null,null,null,null,null,null,null,null,null,null,null,null,null,null,null,null,null,null,null,76,4.7752208334564852,6.4131326081175999E-3,3.4540691884702666,null,null,0,0,0,0,0,0,null,null,76,4.7752208334564852,1.0359675751574482E-3,0.55796502275288928,null,null,1.0359675751574482E-3,0.55796502275288928,7.9689813473649864E-4,0.42920386365606872,2.0969507442885824,2.5253577098099149]
[null,null,null,null,null,null,null,null,null,null,null,null,null,null,null,null,null,null,null,null,null,null,null,null,null,null,null,null,null,null,null,null,null,null,null,null,null,null,null,null,null,null,null,null,null,null,null,null,null,null,null,null,null,null,null,null,null,null,null,null,null,null,null,null,null,null,null,null,null,null,null,null,null,null,null,null,null,null,null,null,null,null,null,null,null,null,77,4.8380526865282816,2.5627220727947098E-2,3.6573330090839886,null,null,0,0,0,0,0,0,null,null,77,4.8380526865282816,4.1397818098991568E-3,0.59079994762125976,null,null,4.1397818098991568E-3,0.59079994762125976,3.1844475460762744E-3,0.45446149817019982,2.0993382936999225,2.5506153443240458]
[null,null,null,null,null,null,null,null,null,null,null,null,null,null,null,null,null,null,null,null,null,null,null,null,null,null,null,null,null,null,null,null,null,null,null,null,null,null,null,null,null,null,null,null,null,null,null,null,null,null,null,null,null,null,null,null,null,null,null,null,null,null,null,null,null,null,null,null,null,null,null,null,null,null,null,null,null,null,null,null,null,null,null,null,null,null,78,4.9008845396000771,5.756643513176174E-2,3.8589892724036039,null,null,0,0,0,0,0,0,null,null,78,4.9008845396000771,9.2991933674384519E-3,0.62337519015750531,null,null,9.2991933674384519E-3,0.62337519015750531,7.1532256672603477E-3,0.47951937704423486,2.1033070718211064,2.575673223198081]
[null,null,null,null,null,null,null,null,null,null,null,null,null,null,null,null,null,null,null,null,null,null,null,null,null,null,null,null,null,null,null,null,null,null,null,null,null,null,null,null,null,null,null,null,null,null,null,null,null,null,null,null,null,null,null,null,null,null,null,null,null,null,null,null,null,null,null,null,null,null,null,null,null,null,null,null,null,null,null,null,null,null,null,null,null,null,79,4.9637163926718735,0.102104726331949,4.0582421332857788,null,null,0,0,0,0,0,0,null,null,79,4.9637163926718735,1.6493840407468707E-2,0.65556219076154887,null,null,1.6493840407468707E-2,0.65556219076154887,1.2687569544206698E-2,0.50427860827811455,2.1088414156980528,2.6004324544319606]
[null,null,null,null,null,null,null,null,null,null,null,null,null,null,null,null,null,null,null,null,null,null,null,null,null,null,null,null,null,null,null,null,null,null,null,null,null,null,null,null,null,null,null,null,null,null,null,null,null,null,null,null,null,null,null,null,null,null,null,null,null,null,null,null,null,null,null,null,null,null,null,null,null,null,null,null,null,null,null,null,null,null,null,null,null,null,80,5.026548245743669,0.15906632204075066,4.254305231718579,null,null,0,0,0,0,0,0,null,null,80,5.026548245743669,2.5695328945044338E-2,0.6872339220468473,null,null,2.5695328945044338E-2,0.6872339220468473,1.9765637650034105E-2,0.52864147849757492,2.1159194838038804,2.6247953246514211]
[null,null,null,null,null,null,null,null,null,null,null,null,null,null,null,null,null,null,null,null,null,null,null,null,null,null,null,null,null,null,null,null,null,null,null,null,null,null,null,null,null,null,null,null,null,null,null,null,null,null,null,null,null,null,null,null,null,null,null,null,null,null,null,null,null,null,null,null,null,null,null,null,null,null,null,null,null,null,null,null,null,null,null,null,null,null,81,5.0893800988154654,0.22822642086318368,4.4464047962252042,null,null,0,0,0,0,0,0,null,null,81,5.0893800988154654,3.6867344908668109E-2,0.71826539015945612,null,null,3.6867344908668109E-2,0.71826539015945612,2.8359496083590854E-2,0.55251183858419706,2.1245133422374369,2.648665684738043]
[null,null,null,null,null,null,null,null,null,null,null,null,null,null,null,null,null,null,null,null,null,null,null,null,null,null,null,null,null,null,null,null,null,null,null,null,null,null,null,null,null,null,null,null,null,null,null,null,null,null,null,null,null,null,null,null,null,null,null,null,null,null,null,null,null,null,null,null,null,null,null,null,null,null,null,null,null,null,null,null,null,null,null,null,null,null,82,5.15221195188726,0.30931207948543538,4.6337826975864838,null,null,0,0,0,0,0,0,null,null,82,5.15221195188726,4.9965797455339522E-2,0.74853412807166275,null,null,4.9965797455339522E-2,0.74853412807166275,3.8435228811799636E-2,0.57579548313204831,2.1345890749656458,2.6719493292858942]
[null,null,null,null,null,null,null,null,null,null,null,null,null,null,null,null,null,null,null,null,null,null,null,null,null,null,null,null,null,null,null,null,null,null,null,null,null,null,null,null,null,null,null,null,null,null,null,null,null,null,null,null,null,null,null,null,null,null,null,null,null,null,null,null,null,null,null,null,null,null,null,null,null,null,null,null,null,null,null,null,null,null,null,null,null,null,83,5.2150438049590564,0.4020032898574426,4.8156994408305733,null,null,0,0,0,0,0,0,null,null,83,5.2150438049590564,6.4938992976971477E-2,0.77792067890340033,null,null,6.4938992976971477E-2,0.77792067890340033,4.9953071520747294E-2,0.59840052223338491,2.1461069176745933,2.6945543683872311]
[null,null,null,null,null,null,null,null,null,null,null,null,null,null,null,null,null,null,null,null,null,null,null,null,null,null,null,null,null,null,null,null,null,null,null,null,null,null,null,null,null,null,null,null,null,null,null,null,null,null,null,null,null,null,null,null,null,null,null,null,null,null,null,null,null,null,null,null,null,null,null,null,null,null,null,null,null,null,null,null,null,null,null,null,null,null,84,5.2778756580308519,0.50593424211844962,4.9914370836817366,null,null,0,0,0,0,0,0,null,null,84,5.2778756580308519,8.172783911144188E-2,0.80630906736397301,null,null,8.172783911144188E-2,0.80630906736397301,6.2867568547262984E-2,0.62023774412613308,2.1590214147011091,2.7163915902799793]
[null,null,null,null,null,null,null,null,null,null,null,null,null,null,null,null,null,null,null,null,null,null,null,null,null,null,null,null,null,null,null,null,null,null,null,null,null,null,null,null,null,null,null,null,null,null,null,null,null,null,null,null,null,null,null,null,null,null,null,null,null,null,null,null,null,null,null,null,null,null,null,null,null,null,null,null,null,null,null,null,null,null,null,null,null,null,85,5.3407075111026483,0.62069476828142056,5.1603020699505375,null,null,0,0,0,0,0,0,null,null,85,5.3407075111026483,0.10026607795315251,0.83358725745354834,null,null,0.10026607795315251,0.83358725745354834,7.7127752271655775E-2,0.64122096727196032,2.1732815984255018,2.7373748134258062]
[null,null,null,null,null,null,null,null,null,null,null,null,null,null,null,null,null,null,null,null,null,null,null,null,null,null,null,null,null,null,null,null,null,null,null,null,null,null,null,null,null,null,null,null,null,null,null,null,null,null,null,null,null,null,null,null,null,null,null,null,null,null,null,null,null,null,null,null,null,null,null,null,null,null,null,null,null,null,null,null,null,null,null,null,null,null,86,5.4035393641744438,0.74583196097868365,5.3216279666832405,null,null,0,0,0,0,0,0,null,null,86,5.4035393641744438,0.12048054754271048,0.85964759461806195,null,null,0.12048054754271048,0.85964759461806195,9.2677344263623451E-2,0.66126738047543232,2.1888311904174698,2.7574212266292784]
[null,null,null,null,null,null,null,null,null,null,null,null,null,null,null,null,null,null,null,null,null,null,null,null,null,null,null,null,null,null,null,null,null,null,null,null,null,null,null,null,null,null,null,null,null,null,null,null,null,null,null,null,null,null,null,null,null,null,null,null,null,null,null,null,null,null,null,null,null,null,null,null,null,null,null,null,null,null,null,null,null,null,null,null,null,null,87,5.4663712172462402,0.8808519608804124,5.4747780942682382,null,null,0,0,0,0,0,0,null,null,87,5.4663712172462402,0.14229147060375896,0.88438723061256153,null,null,0.14229147060375896,0.88438723061256153,0.1094549773875069,0.68029786970197048,2.2056088235413531,2.7764517158558166]
[null,null,null,null,null,null,null,null,null,null,null,null,null,null,null,null,null,null,null,null,null,null,null,null,null,null,null,null,null,null,null,null,null,null,null,null,null,null,null,null,null,null,null,null,null,null,null,null,null,null,null,null,null,null,null,null,null,null,null,null,null,null,null,null,null,null,null,null,null,null,null,null,null,null,null,null,null,null,null,null,null,null,null,null,null,null,88,5.5292030703180357,1.0252219057317609,5.6191480391195867,null,null,0,0,0,0,0,0,null,null,88,5.5292030703180357,0.1656127693874383,0.90770852939624092,null,null,0.1656127693874383,0.90770852939624092,0.12739443799033714,0.69823733030480073,2.2235482841441834,2.7943911764586469]
[null,null,null,null,null,null,null,null,null,null,null,null,null,null,null,null,null,null,null,null,null,null,null,null,null,null,null,null,null,null,null,null,null,null,null,null,null,null,null,null,null,null,null,null,null,null,null,null,null,null,null,null,null,null,null,null,null,null,null,null,null,null,null,null,null,null,null,null,null,null,null,null,null,null,null,null,null,null,null,null,null,null,null,null,null,null,89,5.5920349233898321,1.1783720333167587,5.7541680390213159,null,null,0,0,0,0,0,0,null,null,89,5.5920349233898321,0.19035240538193793,0.9295194524572894,null,null,0.19035240538193793,0.9295194524572894,0.14642492721687533,0.7150149634286842,2.2425787733707212,2.8111688095825302]
[null,null,null,null,null,null,null,null,null,null,null,null,null,null,null,null,null,null,null,null,null,null,null,null,null,null,null,null,null,null,null,null,null,null,null,null,null,null,null,null,null,null,null,null,null,null,null,null,null,null,null,null,null,null,null,null,null,null,null,null,null,null,null,null,null,null,null,null,null,null,null,null,null,null,null,null,null,null,null,null,null,null,null,null,null,null,90,5.6548667764616276,1.3396979300494616,5.879305231718579,null,null,0,0,0,0,0,0,null,null,90,5.6548667764616276,0.21641274254645149,0.94973392204684737,null,null,0.21641274254645149,0.94973392204684737,0.16647134042034731,0.73056455542065191,2.2626251865741933,2.8267184015744982]
[null,null,null,null,null,null,null,null,null,null,null,null,null,null,null,null,null,null,null,null,null,null,null,null,null,null,null,null,null,null,null,null,null,null,null,null,null,null,null,null,null,null,null,null,null,null,null,null,null,null,null,null,null,null,null,null,null,null,null,null,null,null,null,null,null,null,null,null,null,null,null,null,null,null,null,null,null,null,null,null,null,null,null,null,null,null,91,5.717698629533424,1.5085629163182619,5.9940657578815495,null,null,0,0,0,0,0,0,null,null,91,5.717698629533424,0.24369093263602692,0.96827216088855805,null,null,0.24369093263602692,0.96827216088855805,0.18745456356617457,0.74482473914504466,2.2836084097200207,2.8409785852988909]
[null,null,null,null,null,null,null,null,null,null,null,null,null,null,null,null,null,null,null,null,null,null,null,null,null,null,null,null,null,null,null,null,null,null,null,null,null,null,null,null,null,null,null,null,null,null,null,null,null,null,null,null,null,null,null,null,null,null,null,null,null,null,null,null,null,null,null,null,null,null,null,null,null,null,null,null,null,null,null,null,null,null,null,null,null,null,92,5.7805304826052195,1.6843005591694251,6.0979967101425565,null,null,0,0,0,0,0,0,null,null,92,5.7805304826052195,0.27207932109659949,0.98506100702302835,null,null,0.27207932109659949,0.98506100702302835,0.20929178545892269,0.75773923617156036,2.3054456316127689,2.8538930823254063]
[null,null,null,null,null,null,null,null,null,null,null,null,null,null,null,null,null,null,null,null,null,null,null,null,null,null,null,null,null,null,null,null,null,null,null,null,null,null,null,null,null,null,null,null,null,null,null,null,null,null,null,null,null,null,null,null,null,null,null,null,null,null,null,null,null,null,null,null,null,null,null,null,null,null,null,null,null,null,null,null,null,null,null,null,null,null,93,5.8433623356770159,1.8662173024135154,6.1906879205145646,null,null,0,0,0,0,0,0,null,null,93,5.8433623356770159,0.30146587192833707,1.0000342025446605,null,null,0.30146587192833707,1.0000342025446605,0.23189682456025928,0.76925707888050809,2.3280506707141053,2.8654109250343542]
[null,null,null,null,null,null,null,null,null,null,null,null,null,null,null,null,null,null,null,null,null,null,null,null,null,null,null,null,null,null,null,null,null,null,null,null,null,null,null,null,null,null,null,null,null,null,null,null,null,null,null,null,null,null,null,null,null,null,null,null,null,null,null,null,null,null,null,null,null,null,null,null,null,null,null,null,null,null,null,null,null,null,null,null,null,null,94,5.9061941887488105,2.053595203774794,6.2717735791368163,null,null,0,0,0,0,0,0,null,null,94,5.9061941887488105,0.3317346098405437,1.013132655091332,null,null,0.3317346098405437,1.013132655091332,0.25518046910811054,0.77933281160871692,2.3513343152619566,2.8754866577625631]
[null,null,null,null,null,null,null,null,null,null,null,null,null,null,null,null,null,null,null,null,null,null,null,null,null,null,null,null,null,null,null,null,null,null,null,null,null,null,null,null,null,null,null,null,null,null,null,null,null,null,null,null,null,null,null,null,null,null,null,null,null,null,null,null,null,null,null,null,null,null,null,null,null,null,null,null,null,null,null,null,null,null,null,null,null,null,95,5.9690260418206069,2.2456947682814201,6.3409336779592493,null,null,0,0,0,0,0,0,null,null,95,5.9690260418206069,0.36276607795315252,1.0243046710549557,null,null,0.36276607795315252,1.0243046710549557,0.27905082919473273,0.78792667004227368,2.3752046753485789,2.8840805161961196]
[null,null,null,null,null,null,null,null,null,null,null,null,null,null,null,null,null,null,null,null,null,null,null,null,null,null,null,null,null,null,null,null,null,null,null,null,null,null,null,null,null,null,null,null,null,null,null,null,null,null,null,null,null,null,null,null,null,null,null,null,null,null,null,null,null,null,null,null,null,null,null,null,null,null,null,null,null,null,null,null,null,null,null,null,null,null,96,6.0318578948924024,2.4417578667142203,6.3978952736680501,null,null,0,0,0,0,0,0,null,null,96,6.0318578948924024,0.39443780923845095,1.0335061595925312,null,null,0.39443780923845095,1.0335061595925312,0.30341369941419305,0.79500473814810102,2.399567545568039,2.8911585843019472]
[null,null,null,null,null,null,null,null,null,null,null,null,null,null,null,null,null,null,null,null,null,null,null,null,null,null,null,null,null,null,null,null,null,null,null,null,null,null,null,null,null,null,null,null,null,null,null,null,null,null,null,null,null,null,null,null,null,null,null,null,null,null,null,null,null,null,null,null,null,null,null,null,null,null,null,null,null,null,null,null,null,null,null,null,null,null,97,6.0946897479641988,2.6410107275963948,6.4424335648682387,null,null,0,0,0,0,0,0,null,null,97,6.0946897479641988,0.42662480984249457,1.0407008066325616,null,null,0.42662480984249457,1.0407008066325616,0.32817293064807274,0.80053908202504742,2.424326776801919,2.8966929281788936]
[null,null,null,null,null,null,null,null,null,null,null,null,null,null,null,null,null,null,null,null,null,null,null,null,null,null,null,null,null,null,null,null,null,null,null,null,null,null,null,null,null,null,null,null,null,null,null,null,null,null,null,null,null,null,null,null,null,null,null,null,null,null,null,null,null,null,null,null,null,null,null,null,null,null,null,null,null,null,null,null,null,null,null,null,null,null,98,6.1575216010359943,2.8426669909160101,6.4743727792720529,null,null,0,0,0,0,0,0,null,null,98,6.1575216010359943,0.45920005237874006,1.0458602181901009,null,null,0.45920005237874006,1.0458602181901009,0.35323080952210778,0.80450786014623155,2.4493846556759538,2.9006617063000775]
[null,null,null,null,null,null,null,null,null,null,null,null,null,null,null,null,null,null,null,null,null,null,null,null,null,null,null,null,null,null,null,null,null,null,null,null,null,null,null,null,null,null,null,null,null,null,null,null,null,null,null,null,null,null,null,null,null,null,null,null,null,null,null,null,null,null,null,null,null,null,null,null,null,null,null,null,null,null,null,null,null,null,null,null,null,null,99,6.2203534541077907,3.0459308115297317,6.4935868673918824,null,null,0,0,0,0,0,0,null,null,99,6.2203534541077907,0.49203497724711054,1.0489640324248426,null,null,0.49203497724711054,1.0489640324248426,0.37848844403623888,0.80689540955757122,2.4746422901900851,2.9030492557114171]
[null,null,null,null,null,null,null,null,null,null,null,null,null,null,null,null,null,null,null,null,null,null,null,null,null,null,null,null,null,null,null,null,null,null,null,null,null,null,null,null,null,null,null,null,null,null,null,null,null,null,null,null,null,null,null,null,null,null,null,null,null,null,null,null,null,null,null,null,null,null,null,null,null,null,null,null,null,null,null,null,null,null,null,null,null,null,100,6.2831853071795862,3.2499999999999991,6.5,null,null,0,0,0,0,0,0,null,null,100,6.2831853071795862,0.52499999999999991,1.05,null,null,0.52499999999999991,1.05,0.4038461538461538,0.80769230769230782,2.5,2.9038461538461537]
[null,null,null,null,null,null,null,null,null,null,null,null,null,null,null,null,null,null,null,null,null,null,null,null,null,null,null,null,null,null,null,null,null,null,null,null,null,null,null,null,null,null,null,null,null,null,null,null,null,null,null,null,null,null,null,null,null,null,null,null,null,null,null,null,null,null,null,null,null,null,null,null,null,null,null,null,null,null,null,null,null,null,null,null,null,null,null,null,null,null,null,null,0,0,0,0,{"$f":"CS89","v":0},{"$f":"CT89","v":0},null,null,null,null,null,null,null,null,0,0]

{"sheet":"Known Inflow","index":2,"n_rows":189,"n_cols":112,"rows_kept":189,"cut":false,"hidden":false,"merged":[[0,1,0,5],[0,6,0,30],[0,31,0,35],[26,7,26,18],[26,19,26,21],[26,22,26,23],[8,24,8,26],[8,27,8,29],[9,7,9,23],[9,24,9,26],[9,27,9,29],[10,24,10,26],[10,7,10,23],[7,7,7,23],[7,24,7,26],[7,27,7,29],[27,7,27,18],[27,19,27,21],[27,22,27,23],[19,7,19,14],[19,15,19,23],[23,19,23,21],[23,22,23,23],[24,7,24,18],[24,19,24,21],[20,7,20,18],[20,19,20,21],[20,22,20,23],[41,7,41,15],[41,16,41,18],[41,19,41,20],[24,22,24,23],[21,7,21,18],[21,19,21,21],[21,22,21,23],[22,7,22,18],[22,19,22,21],[22,22,22,23],[29,19,29,27],[29,6,29,11],[25,7,25,18],[25,19,25,21],[25,22,25,23],[23,7,23,18],[42,31,42,35],[44,7,44,15],[44,16,44,17],[44,18,44,20],[44,31,44,35],[42,16,42,18],[42,19,42,20],[42,7,42,15],[10,27,10,29],[12,7,12,14],[17,7,17,16],[6,7,6,29],[4,31,4,35],[8,7,8,23],[14,7,14,18],[14,19,14,21],[14,22,14,23],[15,7,15,18],[15,19,15,21],[15,22,15,23],[1,1,4,5],[1,6,1,11],[1,12,1,30],[4,6,4,11],[4,12,4,18],[4,19,4,24],[4,25,4,30],[1,31,1,35],[2,6,2,11],[2,12,2,30],[2,31,2,35],[3,6,3,30],[3,31,3,35]]}
[null,"Registered User:",null,null,null,null,"Free Trial Version - Not For Commercial Use",null,null,null,null,null,null,null,null,null,null,null,null,null,null,null,null,null,null,null,null,null,null,null,null,"© 2017 CivilWeb"]
[null,"Your Logo / Company Details Here",null,null,null,null,"Project:",null,null,null,null,null,null,null,null,null,null,null,null,null,null,null,null,null,null,null,null,null,null,null,null,"By:"]
[null,null,null,null,null,null,"Calculation:",null,null,null,null,null,"Soakaway Design",null,null,null,null,null,null,null,null,null,null,null,null,null,null,null,null,null,null,null,null,null,null,null,null,null,null,null,null,null,null,null,null,null,null,null,null,null,null,null,null,null,null,null,null,null,null,null,null,null,null,null,null,null,null,null,null,"Rainfall","Return Period","Storm duration"]
[null,null,null,null,null,null,null,null,null,null,null,null,null,null,null,null,null,null,null,null,null,null,null,null,null,null,null,null,null,null,null,"Approved:",null,null,null,null,null,null,null,null,null,null,null,null,null,null,null,null,null,null,null,null,null,null,null,null,null,null,null,null,null,null,null,null,null,null,null,null,null,null,null,5,10,15,30,45,60,120,240,480]
[null,null,null,null,null,null,"Sheet Number:",null,null,null,null,null,1,null,null,null,null,null,null,"Date:",null,null,null,null,null,null,null,null,null,null,null,null,null,null,null,null,null,null,null,null,null,null,null,null,null,null,null,null,null,null,null,null,null,null,null,null,null,null,null,null,null,null,null,null,null,null,null,null,null,"M5-60",1,55.5,38.799999999999997,30.7,20,15.3,12.7,7.9,4.8,3]
[null,null,null,null,null,null,null,null,null,null,null,null,null,null,null,null,null,null,null,null,null,null,null,null,null,null,null,null,null,null,null,null,null,null,null,null,null,null,null,null,null,null,null,null,null,null,null,null,null,null,null,null,null,null,null,null,null,null,null,null,null,null,null,null,null,null,"A","abc",null,20,2,69,49.8,39.700000000000003,25.8,19.600000000000001,16.100000000000001,9.8000000000000007,5.9,4]
[null,null,null,null,null,null,null,"Catchment Details",null,null,null,null,null,null,null,null,null,null,null,null,null,null,null,null,null,null,null,null,null,null,null,null,null,null,null,null,null,null,null,null,null,null,null,null,null,null,null,null,null,null,null,null,null,null,null,null,null,null,null,null,null,null,null,null,null,null,"B","def",null,"r Ratio",5,90.9,65,51.6,33.200000000000003,25.1,20.5,12.4,7.4,4]
[null,null,null,null,null,null,null,"Catchment Area",null,null,null,null,null,null,null,null,null,null,null,null,null,null,null,null,250,null,null,"m²",null,null,null,null,null,null,null,null,null,null,null,null,null,null,null,null,null,null,null,null,null,null,null,null,null,null,null,null,null,null,null,null,null,null,null,null,null,null,"C","ghi",null,0.4,10,104.2,75.3,59.9,38.700000000000003,29.4,24,14.5,8.6,5]
[null,null,null,null,null,null,null,"Runoff Coefficient",null,null,null,null,null,null,null,null,null,null,null,null,null,null,null,null,0.85,null,null,null,null,null,null,null,null,null,null,null,null,null,null,null,null,null,null,null,null,null,null,null,null,null,null,null,null,null,null,null,null,null,null,null,null,null,null,null,null,null,"D","jkl",null,null,15,112.8,82,65.400000000000006,42.4,32.200000000000003,26.3,15.9,9.4,6]
[null,null,null,null,null,null,null,"Design Storm Intensity",null,null,null,null,null,null,null,null,null,null,null,null,null,null,null,null,75,null,null,"mm/hr",null,null,null,null,null,null,null,null,null,null,null,null,null,null,null,null,null,null,null,null,null,null,null,null,null,null,null,null,null,null,null,null,null,null,null,null,null,null,"E","mno",null,null,20,119.4,87.1,69.599999999999994,45.2,34.4,28.1,17,10.1,6]
[null,null,null,null,null,null,null,"Design Storm Duration",null,null,null,null,null,null,null,null,null,null,null,null,null,null,null,null,60,null,null,"mins",null,null,null,null,null,null,null,null,null,null,null,null,null,null,null,null,null,null,null,null,null,null,null,null,null,null,null,null,null,null,null,null,null,null,null,null,null,null,"F","pqr",null,null,25,124.8,91.3,73.099999999999994,47.5,36.200000000000003,29.6,17.899999999999999,10.6,6]
[null,null,null,null,null,null,null,null,null,null,null,null,null,null,null,null,null,null,null,null,null,null,null,null,null,null,null,null,null,null,null,null,null,null,null,null,null,null,null,null,null,null,null,null,null,null,null,null,null,null,null,null,null,null,null,null,null,null,null,null,null,null,null,null,null,null,"G","stu",null,null,30,129.30000000000001,94.9,76,49.5,37.700000000000003,30.8,18.600000000000001,11,6]
[null,null,null,null,null,null,null,"Ground Information",null,null,null,null,null,null,null,null,null,null,null,null,null,null,null,null,null,null,null,null,null,null,null,null,null,null,null,null,null,null,null,null,null,null,null,null,null,null,null,null,null,null,null,null,null,null,null,null,null,null,null,null,null,null,null,null,null,null,"H","vw",null,null,50,143,105.7,84.9,55.5,42.3,34.6,20.9,12.3,7]
[null,null,null,null,null,null,null,null,null,null,null,null,null,null,null,null,null,null,null,null,null,null,null,null,null,null,null,null,null,null,null,null,null,null,null,null,null,null,null,null,null,null,null,null,null,null,null,null,null,null,null,null,null,null,null,null,null,null,null,null,null,null,null,null,null,null,null,null,null,null,100,163.9,122.4,98.7,64.8,49.5,40.5,24.5,14.3,8]
[null,null,null,null,null,null,null,"Infiltration Rate",null,null,null,null,null,null,null,null,null,null,null,0.2,null,null,"m/hr",null,null,null,null,null,null,null,null,null,null,null,null,null,null,null,null,null,null,null,null,null,null,null,null,null,null,null,null,null,null,null,null,null,null,null,null,null,null,"Rectangular Trench/Pit",null,null,null,null,"Rectangular Trench/Pit",null,null,null,500,225,171.9,139.80000000000001,92.9,71.2,58.4,35.200000000000003,20.5,12]
[null,null,null,null,null,null,null,"Factor of Safety",null,null,null,null,null,null,null,null,null,null,null,1.5,null,null,null,null,null,null,null,null,null,null,null,null,null,null,null,null,null,null,null,null,null,null,null,null,null,null,null,null,null,null,null,null,null,null,null,null,null,null,null,null,null,"Perforated Manhole",null,null,null,null,"Perforated Manhole",null,null,null,1000,257.89999999999998,199,162.5,108.4,83.3,68.400000000000006,41.2,23.8,14]
[null,null,null,null,null,null,null,null,null,null,null,null,null,null,null,null,null,null,null,null,null,null,null,null,null,null,null,null,null,null,null,null,null,null,null,null,null,null,null,null,null,null,null,null,null,null,null,null,null,null,null,null,null,null,null,null,null,null,null,null,null,"Manhole Within Pit"]
[null,null,null,null,null,null,null,"Soakaway Design"]
[null,null,null,null,null,null,null,null,null,null,null,null,null,null,null,null,null,null,null,null,null,null,null,null,null,null,null,null,null,null,null,null,null,null,null,null,null,null,null,null,null,null,null,null,null,null,null,null,null,null,null,null,null,null,null,null,null,null,null,null,null,null,null,null,null,null,null,null,null,"Rainfall","Return Period","Storm duration"]
[null,null,null,null,null,null,null,"Soakaway Shape",null,null,null,null,null,null,null,"Manhole Within Pit",null,null,null,null,null,null,null,null,null,null,null,null,null,null,null,null,null,null,null,null,null,null,null,null,null,null,null,null,null,null,null,null,null,null,null,null,null,null,null,null,null,null,null,null,null,{"$f":"MATCH(#REF!,BN5:BN16)+1","v":{"$error":"#REF!"}},null,null,null,null,{"$f":"MATCH(Y11,BS5:BS16)+1","v":10},null,null,null,null,5,10,15,30,45,60,120,240,480]
[null,null,null,null,null,null,null,"Number of Soakaways",null,null,null,null,null,null,null,null,null,null,null,1,null,null,null,null,null,null,null,null,null,null,null,null,null,null,null,null,null,null,null,null,null,null,null,null,null,null,null,null,null,null,null,null,null,null,null,null,null,null,null,null,null,null,null,null,null,null,null,null,null,"M5-60",1,47.9,33.200000000000003,26.2,16.8,12.8,10.6,6.5,4,2]
[null,null,null,null,null,null,null,{"$f":"IF(P20=\"Perforated Manhole\",\"\",\"Length\")","v":"Length"},null,null,null,null,null,null,null,null,null,null,null,5,null,null,{"$f":"IF(P20=\"Rectangular Trench/Pit\",\"m\",\"\")","v":""},null,null,null,null,null,null,null,null,null,null,null,null,null,null,null,null,null,null,null,null,null,null,null,null,null,null,null,null,null,null,null,null,null,null,null,null,null,null,null,{"$f":"VLOOKUP(#REF!,BJ6:BK13,2,FALSE)","v":{"$error":"#REF!"}},null,null,null,null,{"$f":"VLOOKUP(Y10,BO6:BP13,2,FALSE)","v":{"$error":"#N/A"}},null,17,2,58.4,42.1,33.6,21.8,16.600000000000001,13.6,8.3000000000000007,5,3]
[null,null,null,null,null,null,null,{"$f":"IF(P20=\"Perforated Manhole\",\"Diameter\",\"Width\")","v":"Width"},null,null,null,null,null,null,null,null,null,null,null,2,null,null,"m",null,null,null,null,null,null,null,null,null,null,null,null,null,null,null,null,null,null,null,null,null,null,null,null,null,null,null,null,null,null,null,null,null,null,null,null,null,null,null,null,null,null,null,null,null,null,"r Ratio",5,77.2,55.2,43.8,28.2,21.3,17.399999999999999,10.5,6.3,4]
[null,null,null,null,null,null,null,"Effective Depth",null,null,null,null,null,null,null,null,null,null,null,4,null,null,"m",null,null,null,null,null,null,null,null,null,null,null,null,null,null,null,null,null,null,null,null,null,null,null,null,null,null,null,null,null,null,null,null,null,null,null,null,null,null,null,null,null,null,null,null,null,null,0.4,10,88.2,63.6,50.7,32.799999999999997,24.9,20.399999999999999,12.3,7.4,4]
[null,null,null,null,null,null,null,"Void Percentage",null,null,null,null,null,null,null,null,null,null,null,30,null,null,"%",null,null,null,null,null,null,null,null,null,null,null,null,null,null,null,null,null,null,null,null,null,null,null,null,null,null,null,null,null,null,null,null,null,null,null,null,null,null,null,null,null,null,null,null,null,null,null,15,95.3,69.099999999999994,55.3,35.799999999999997,27.3,22.3,13.5,8.1,5]
[null,null,null,null,null,null,null,"Additional Outflow (If Any)",null,null,null,null,null,null,null,null,null,null,null,0,null,null,"l/s",null,null,null,null,null,null,null,null,null,null,null,null,null,null,null,null,null,null,null,null,null,null,null,null,null,null,null,null,null,null,null,null,null,null,null,null,null,null,null,null,null,null,null,null,null,null,null,20,100.8,73.3,58.7,38.200000000000003,29.1,23.8,14.4,8.6,5]
[null,null,null,null,null,null,null,"Base Infiltration Factor",null,null,null,null,null,null,null,null,null,null,null,0.5,null,null,null,null,null,null,null,null,null,null,null,null,null,null,null,null,null,null,null,null,null,null,null,null,null,null,null,null,null,null,null,null,null,null,null,null,null,null,null,null,null,null,null,null,null,null,null,null,null,null,25,105.2,76.7,61.6,40.1,30.5,25,15.2,9.1,5]
[null,null,null,null,null,null,null,"Manhole Diameter",null,null,null,null,null,null,null,null,null,null,null,1050,null,null,"mm",null,null,null,null,null,null,null,null,null,null,null,null,null,null,null,null,null,null,null,null,null,null,null,null,null,null,null,null,null,null,null,null,null,null,null,null,null,null,null,null,null,null,null,null,null,null,null,30,108.9,79.7,64,41.7,31.8,26.1,15.8,9.5,6]
[null,null,null,null,null,null,null,null,null,null,null,null,null,null,null,null,null,null,null,null,null,null,null,null,null,null,null,null,null,null,null,null,null,null,null,null,null,null,null,null,null,null,null,null,null,null,null,null,null,null,null,null,null,null,null,null,null,null,null,null,null,{"$f":"$T$26*Y11*60+((($T$15/60)*$BJ$82)/$T$16)*60*1000","v":4400},null,null,null,null,null,null,null,null,50,120.1,88.4,71.3,46.7,35.6,29.2,17.8,10.6,6]
[null,null,null,null,null,null,"Soakaway Plan",null,null,null,null,null,null,null,null,null,null,null,null,"Soakaway Cross Section",null,null,null,null,null,null,null,null,null,null,null,null,null,null,null,null,null,null,null,null,null,null,null,null,null,null,null,null,null,null,null,null,null,null,null,null,null,null,null,null,null,null,null,null,null,null,null,null,null,null,100,137.19999999999999,101.9,82.6,54.3,41.6,34.200000000000003,20.8,12.4,7]
[null,null,null,null,null,null,null,null,null,null,null,null,null,null,null,null,null,null,null,null,null,null,null,null,null,null,null,null,null,null,null,null,null,null,null,null,null,null,null,null,null,null,null,null,null,null,null,null,null,null,null,null,null,null,null,null,null,null,null,null,null,null,null,null,null,null,null,null,null,null,500,187,141.6,116,77.3,59.5,49,30,17.899999999999999,10]
[null,null,null,null,null,null,null,null,null,null,null,null,null,null,null,null,null,null,null,null,null,null,null,null,null,null,null,null,null,null,null,null,null,null,null,null,null,null,null,null,null,null,null,null,null,null,null,null,null,null,null,null,null,null,null,null,null,null,null,null,null,null,null,null,null,null,null,null,null,null,1000,213.6,163.1,134.30000000000001,90,69.5,57.3,35.200000000000003,20.9,12]
[]
[]
[null,null,null,null,null,null,null,null,null,null,null,null,null,null,null,null,null,null,null,null,null,null,null,null,null,null,null,null,null,null,null,null,null,null,null,null,null,null,null,null,null,null,null,null,null,null,null,null,null,null,null,null,null,null,null,null,null,null,null,null,null,null,null,null,null,null,null,null,null,"Rainfall","Return Period","Storm duration"]
[null,null,null,null,null,null,null,null,null,null,null,null,null,null,null,null,null,null,null,null,null,null,null,null,null,null,null,null,null,null,null,null,null,null,null,null,null,null,null,null,null,null,null,null,null,null,null,null,null,null,null,null,null,null,null,null,null,null,null,null,null,null,null,null,null,null,null,null,null,null,null,5,10,15,30,45,60,120,240,480]
[null,null,null,null,null,null,null,null,null,null,null,null,null,null,null,null,null,null,null,null,null,null,null,null,null,null,null,null,null,null,null,null,null,null,null,null,null,null,null,null,null,null,null,null,null,null,null,null,null,null,null,null,null,null,null,null,null,null,null,null,null,null,null,null,null,null,null,null,null,"M5-60",1,34.9,25,19.899999999999999,13.2,10.3,8.6,5.5,3.6,2]
[null,null,null,null,null,null,null,null,null,null,null,null,null,null,null,null,null,null,null,null,null,null,null,null,null,null,null,null,null,null,null,null,null,null,null,null,null,null,null,null,null,null,null,null,null,null,null,null,null,null,null,null,null,null,null,null,null,null,null,null,null,null,null,null,null,null,null,null,null,14,2,41.2,30.7,25,16.899999999999999,13.3,11.1,7.1,4.5,3]
[null,null,null,null,null,null,null,null,null,null,null,null,null,null,null,null,null,null,null,null,null,null,null,null,null,null,null,null,null,null,null,null,null,null,null,null,null,null,null,null,null,null,null,null,null,null,null,null,null,null,null,null,null,null,null,null,null,null,null,null,null,null,null,null,null,null,null,null,null,"r Ratio",5,54.8,40.5,32.9,22.1,17.2,14.3,9.1,5.7,4]
[null,null,null,null,null,null,null,null,null,null,null,null,null,null,null,null,null,null,null,null,null,null,null,null,null,null,null,null,null,null,null,null,null,null,null,null,null,null,null,null,null,null,null,null,null,null,null,null,null,null,null,null,null,null,null,null,null,null,null,null,null,null,null,null,null,null,null,null,null,0.3,10,62.3,46.3,37.799999999999997,25.6,20,16.7,10.7,6.7,4]
[null,null,null,null,null,null,null,null,null,null,null,null,null,null,null,null,null,null,null,null,null,null,null,null,null,null,null,null,null,null,null,null,null,null,null,null,null,null,null,null,null,null,null,null,null,null,null,null,null,null,null,null,null,null,null,null,null,null,null,null,null,null,null,null,null,null,null,null,null,null,15,67.099999999999994,50.1,41,27.9,21.8,18.3,11.7,7.4,5]
[null,null,null,null,null,null,null,"Storage Volume Required",null,null,null,null,null,null,null,null,{"$f":"MAX(0,(Y10*Y8*Y9/60)*Y11-BJ29*Y11/60)/1000","v":11.5375},null,null,"m³",null,null,null,null,null,null,null,null,null,null,null,null,null,null,null,null,null,null,null,null,null,null,null,null,null,null,null,null,null,null,null,null,null,null,null,null,null,null,null,null,null,null,null,null,null,null,null,null,null,null,20,70.8,53,43.4,29.6,23.2,19.399999999999999,12.5,7.9,5]
[null,null,null,null,null,null,null,"Storage Area Provided",null,null,null,null,null,null,null,null,{"$f":"IF(P20=\"Rectangular Trench/Pit\",T21*T22*T23*T24*T25%,IF(P20=\"Manhole Within Pit\",T21*T22*T23*T24*T25%+T21*T24*(PI()*((T28/2000)^2))*(95%-T25%),T21*T24*(PI()*((T23/2)^2))*T25%))","v":14.251343835378785},null,null,"m³",null,null,null,null,null,null,null,null,null,null,null,{"$f":"IF(Q42<Q43,\"Acceptable\",\"Too Small\")","v":"Acceptable"},null,null,null,null,null,null,null,null,null,null,null,null,null,null,null,null,null,null,null,null,null,null,null,null,null,null,null,null,null,null,null,null,null,null,null,null,null,null,25,73.7,55.3,45.4,31.1,24.4,20.399999999999999,13.1,8.3000000000000007,5]
[null,null,null,null,null,null,null,null,null,null,null,null,null,null,null,null,null,null,null,null,null,null,null,null,null,null,null,null,null,null,null,null,null,null,null,null,null,null,null,null,null,null,null,null,null,null,null,null,null,null,null,null,null,null,null,null,null,null,null,null,null,null,null,null,null,null,null,null,null,null,30,76.3,57.3,47,32.299999999999997,25.4,21.3,13.7,8.6,5]
[null,null,null,null,null,null,null,"Time for Emptying 50%",null,null,null,null,null,null,null,null,{"$f":"Q42/2/(BJ29/1000)","v":1.3110795454545454},null,"hours",null,null,null,null,null,null,null,null,null,null,null,null,{"$f":"IF(Q45<24,\"Acceptable\",\"Too Slow\")","v":"Acceptable"},null,null,null,null,null,null,null,null,null,null,null,null,null,null,null,null,null,null,null,null,null,null,null,null,null,null,null,null,null,null,null,null,null,null,null,null,null,null,50,83.8,63.2,52.1,36,28.3,23.8,15.3,9.6999999999999993,6]
[null,null,null,null,null,null,null,null,null,null,null,null,null,null,null,null,null,null,null,null,null,null,null,null,null,null,null,null,null,null,null,null,null,null,null,null,null,null,null,null,null,null,null,null,null,null,null,null,null,null,null,null,null,null,null,null,null,null,null,null,null,null,null,null,null,null,null,null,null,null,100,95.3,72.3,59.8,41.7,32.9,27.7,17.899999999999999,11.3,7]
[null,null,null,null,null,null,null,null,null,null,null,null,null,null,null,null,null,null,null,null,null,null,null,null,null,null,null,null,null,null,null,null,null,null,null,null,null,null,null,null,null,null,null,null,null,null,null,null,null,null,null,null,null,null,null,null,null,null,null,null,null,null,null,null,null,null,null,null,null,null,500,128.19999999999999,98.7,82.5,58.6,46.7,39.4,25.8,16.399999999999999,10]
[null,null,null,null,null,null,null,null,null,null,null,null,null,null,null,null,null,null,null,null,null,null,null,null,null,null,null,null,null,null,null,null,null,null,null,null,null,null,null,null,null,null,null,null,null,null,null,null,null,null,null,null,null,null,null,null,null,null,null,null,null,null,null,null,null,null,null,null,null,null,1000,145.69999999999999,112.9,94.8,67.8,54.2,45.9,30.1,19.2,12]
[]
[]
[null,null,null,null,null,null,null,null,null,null,null,null,null,null,null,null,null,null,null,null,null,null,null,null,null,null,null,null,null,null,null,null,null,null,null,null,null,null,null,null,null,null,null,null,null,null,null,null,null,null,null,null,null,null,null,null,null,null,null,null,null,null,null,null,null,null,null,null,null,"Rainfall","Return Period","Storm duration"]
[null,null,null,null,null,null,null,null,null,null,null,null,null,null,null,null,null,null,null,null,null,null,null,null,null,null,null,null,null,null,null,null,null,null,null,null,null,null,null,null,null,null,null,null,null,null,null,null,null,null,null,null,null,null,null,null,null,null,null,null,null,null,null,null,null,null,null,null,null,null,null,5,10,15,30,45,60,120,240,480,null,null,"dims"]
[null,null,null,null,null,null,null,null,null,null,null,null,null,null,null,null,null,null,null,null,null,null,null,null,null,null,null,null,null,null,null,null,null,null,null,null,null,null,null,null,null,null,null,null,null,null,null,null,null,null,null,null,null,null,null,null,null,null,null,null,null,null,null,null,null,null,null,null,null,"M5-60",1,41.9,29.9,23.9,16,12.6,10.6,6.9,4.5,3,null,null,{"$f":"MIN(CO89:CO189)","v":1.5},5.4]
[null,null,null,null,null,null,null,null,null,null,null,null,null,null,null,null,null,null,null,null,null,null,null,null,null,null,null,null,null,null,null,null,null,null,null,null,null,null,null,null,null,null,null,null,null,null,null,null,null,null,null,null,null,null,null,null,null,null,null,null,null,null,null,null,null,null,null,null,null,17,2,50.2,37.4,30.5,20.7,16.2,13.6,8.6999999999999993,5.6,4,null,null,{"$f":"MAX(CO89:CO189)","v":3.5},5.4]
[null,null,null,null,null,null,null,null,null,null,null,null,null,null,null,null,null,null,null,null,null,null,null,null,null,null,null,null,null,null,null,null,null,null,null,null,null,null,null,null,null,null,null,null,null,null,null,null,null,null,null,null,null,null,null,null,null,null,null,null,null,null,null,null,null,null,null,null,null,"r Ratio",5,66.5,49.2,40,26.9,20.9,17.399999999999999,11.1,7,4]
[null,null,null,null,null,null,null,null,null,null,null,null,null,null,null,null,null,null,null,null,null,null,null,null,null,null,null,null,null,null,null,null,null,null,null,null,null,null,null,null,null,null,null,null,null,null,null,null,null,null,null,null,null,null,null,null,null,null,null,null,null,null,null,null,null,null,null,null,null,0.3,10,75.8,56.5,46.2,31.2,24.4,20.399999999999999,13,8.1,5,null,null,-0.4,{"$f":"MIN(CP89:CP189)","v":0}]
[null,null,null,null,null,null,null,null,null,null,null,null,null,null,null,null,null,null,null,null,null,null,null,null,null,null,null,null,null,null,null,null,null,null,null,null,null,null,null,null,null,null,null,null,null,null,null,null,null,null,null,null,null,null,null,null,null,null,null,null,null,null,null,null,null,null,null,null,null,null,15,81.8,61.3,50.2,34.1,26.7,22.3,14.2,8.9,5,null,{"$f":"IF(P20=\"Rectangular Trench/Pit\",T22,T23)&\"m\"","v":"2m"},-0.4,{"$f":"MAX(CP89:CP189)","v":5}]
[null,null,null,null,null,null,null,null,null,null,null,null,null,null,null,null,null,null,null,null,null,null,null,null,null,null,null,null,null,null,null,null,null,null,null,null,null,null,null,null,null,null,null,null,null,null,null,null,null,null,null,null,null,null,null,null,null,null,null,null,null,null,null,null,null,null,null,null,null,null,20,86.4,64.900000000000006,53.3,36.299999999999997,28.5,23.8,15.2,9.5,6,null,{"$f":"T23&\"m\"","v":"2m"}]
[null,null,null,null,null,null,null,null,null,null,null,null,null,null,null,null,null,null,null,null,null,null,null,null,null,null,null,null,null,null,null,null,null,null,null,null,null,null,null,null,null,null,null,null,null,null,null,null,null,null,null,null,null,null,null,null,null,null,null,null,null,null,null,null,null,null,null,null,null,null,25,90.1,67.900000000000006,55.9,38.1,29.9,25,16,10,6,null,{"$f":"T24&\"m\"","v":"4m"},{"$f":"CE53+(CE54-CE53)/2","v":2.5},{"$f":"CF53","v":5.4}]
[null,null,null,null,null,null,null,null,null,null,null,null,null,null,null,null,null,null,null,null,null,null,null,null,null,null,null,null,null,null,null,null,null,null,null,null,null,null,null,null,null,null,null,null,null,null,null,null,null,null,null,null,null,null,null,null,null,null,null,null,null,null,null,null,null,null,null,null,null,null,30,93.3,70.400000000000006,58,39.700000000000003,31.1,26.1,16.7,10.4,6,null,null,{"$f":"CE57","v":-0.4},{"$f":"CF56+(CF57-CF56)/2","v":2.5}]
[null,null,null,null,null,null,null,null,null,null,null,null,null,null,null,null,null,null,null,null,null,null,null,null,null,null,null,null,null,null,null,null,null,null,null,null,null,null,null,null,null,null,null,null,null,null,null,null,null,null,null,null,null,null,null,null,null,null,null,null,null,null,null,null,null,null,null,null,null,null,50,102.7,78,64.5,44.3,34.9,29.2,18.7,11.7,7]
[null,null,null,null,null,null,null,null,null,null,null,null,null,null,null,null,null,null,null,null,null,null,null,null,null,null,null,null,null,null,null,null,null,null,null,null,null,null,null,null,null,null,null,null,null,null,null,null,null,null,null,null,null,null,null,null,null,null,null,0,0,{"$f":"BH62","v":0},null,null,0,0,{"$f":"BM62","v":0},null,null,null,100,117,89.5,74.599999999999994,51.6,40.700000000000003,34.200000000000003,21.9,13.6,8,null,null,{"$f":"MIN(CJ76:CJ80)","v":1.5},5.4]
[null,null,null,null,null,null,null,null,null,null,null,null,null,null,null,null,null,null,null,null,null,null,null,null,null,null,null,null,null,null,null,null,null,null,null,null,null,null,null,null,null,null,null,null,null,null,null,null,null,null,null,null,null,null,null,null,null,null,null,{"$f":"#REF!","v":{"$error":"#REF!"}},{"$f":"#REF!","v":{"$error":"#REF!"}},{"$f":"BH63","v":{"$error":"#REF!"}},null,null,{"$f":"H90","v":0},{"$f":"W90","v":0},{"$f":"BM63","v":0},null,null,null,500,158.5,123.5,104.2,73.2,58.2,49,31.6,19.5,12,null,null,{"$f":"MAX(CJ76:CJ80)","v":3.5},5.4]
[null,null,null,null,null,null,null,null,null,null,null,null,null,null,null,null,null,null,null,null,null,null,null,null,null,null,null,null,null,null,null,null,null,null,null,null,null,null,null,null,null,null,null,null,null,null,null,null,null,null,null,null,null,null,null,null,null,null,null,{"$f":"#REF!","v":{"$error":"#REF!"}},{"$f":"#REF!","v":{"$error":"#REF!"}},{"$error":"#REF!"},null,null,0,0,0,null,null,null,1000,180.6,141.80000000000001,120.4,85.1,67.900000000000006,57.3,37,22.8,13]
[null,null,null,null,null,null,null,null,null,null,null,null,null,null,null,null,null,null,null,null,null,null,null,null,null,null,null,null,null,null,null,null,null,null,null,null,null,null,null,null,null,null,null,null,null,null,null,null,null,null,null,null,null,null,null,null,null,null,null,{"$f":"#REF!","v":{"$error":"#REF!"}},{"$f":"#REF!","v":{"$error":"#REF!"}},{"$error":"#REF!"},null,null,0,0,0,null,null,null,null,null,null,null,null,null,null,null,null,null,null,null,5.4,{"$f":"MIN(CK76:CK80)","v":0.5}]
[null,null,null,null,null,null,null,null,null,null,null,null,null,null,null,null,null,null,null,null,null,null,null,null,null,null,null,null,null,null,null,null,null,null,null,null,null,null,null,null,null,null,null,null,null,null,null,null,null,null,null,null,null,null,null,null,null,null,null,{"$f":"#REF!","v":{"$error":"#REF!"}},{"$f":"#REF!","v":{"$error":"#REF!"}},{"$error":"#REF!"},null,null,0,0,0,null,null,null,null,null,null,null,null,null,null,null,null,null,null,null,5.4,{"$f":"MAX(CK76:CK80)","v":4.5}]
[null,null,null,null,null,null,null,null,null,null,null,null,null,null,null,null,null,null,null,null,null,null,null,null,null,null,null,null,null,null,null,null,null,null,null,null,null,null,null,null,null,null,null,null,null,null,null,null,null,null,null,null,null,null,null,null,null,null,null,{"$f":"#REF!","v":{"$error":"#REF!"}},{"$f":"#REF!","v":{"$error":"#REF!"}},{"$error":"#REF!"},null,null,0,0,0,null,null,"Rainfall","Return Period","Storm duration"]
[null,null,null,null,null,null,null,null,null,null,null,null,null,null,null,null,null,null,null,null,null,null,null,null,null,null,null,null,null,null,null,null,null,null,null,null,null,null,null,null,null,null,null,null,null,null,null,null,null,null,null,null,null,null,null,null,null,null,null,{"$f":"#REF!","v":{"$error":"#REF!"}},{"$f":"#REF!","v":{"$error":"#REF!"}},{"$error":"#REF!"},null,null,0,0,0,null,null,null,null,5,10,15,30,45,60,120,240,480,null,null,{"$f":"CE62+(CE63-CE62)/2","v":2.5},{"$f":"CF62","v":5.4}]
[null,null,null,null,null,null,null,null,null,null,null,null,null,null,null,null,null,null,null,null,null,null,null,null,null,null,null,null,null,null,null,null,null,null,null,null,null,null,null,null,null,null,null,null,null,null,null,null,null,null,null,null,null,null,null,null,null,null,null,{"$f":"#REF!","v":{"$error":"#REF!"}},{"$f":"#REF!","v":{"$error":"#REF!"}},{"$error":"#REF!"},null,null,0,0,0,null,null,"M5-60",1,48.5,34.799999999999997,28,19,15,12.7,8.3000000000000007,5.4,3,null,null,{"$f":"CE66","v":5.4},{"$f":"CF65+(CF66-CF65)/2","v":2.5}]
[null,null,null,null,null,null,null,null,null,null,null,null,null,null,null,null,null,null,null,null,null,null,null,null,null,null,null,null,null,null,null,null,null,null,null,null,null,null,null,null,null,null,null,null,null,null,null,null,null,null,null,null,null,null,null,null,null,null,null,{"$f":"#REF!","v":{"$error":"#REF!"}},{"$f":"#REF!","v":{"$error":"#REF!"}},{"$error":"#REF!"},null,null,0,0,0,null,null,20,2,59.3,44.3,36.1,24.5,19.2,16.100000000000001,10.4,6.6,4]
[null,null,null,null,null,null,null,null,null,null,null,null,null,null,null,null,null,null,null,null,null,null,null,null,null,null,null,null,null,null,null,null,null,null,null,null,null,null,null,null,null,null,null,null,null,null,null,null,null,null,null,null,null,null,null,null,null,null,null,{"$f":"#REF!","v":{"$error":"#REF!"}},{"$f":"#REF!","v":{"$error":"#REF!"}},{"$error":"#REF!"},null,null,0,0,0,null,null,"r Ratio",5,78.3,58,47,31.6,24.6,20.5,13,8.1999999999999993,5]
[null,null,null,null,null,null,null,null,null,null,null,null,null,null,null,null,null,null,null,null,null,null,null,null,null,null,null,null,null,null,null,null,null,null,null,null,null,null,null,null,null,null,null,null,null,null,null,null,null,null,null,null,null,null,null,null,null,null,null,null,null,null,null,null,null,null,null,null,null,0.3,10,89.5,66.900000000000006,54.6,36.9,28.8,24,15.2,9.5,6]
[null,null,null,null,null,null,null,null,null,null,null,null,null,null,null,null,null,null,null,null,null,null,null,null,null,null,null,null,null,null,null,null,null,null,null,null,null,null,null,null,null,null,null,null,null,null,null,null,null,null,null,null,null,null,null,null,null,null,null,null,null,null,null,null,null,null,null,null,null,null,15,96.8,72.7,59.5,40.4,31.5,26.3,16.7,10.4,6]
[null,null,null,null,null,null,null,null,null,null,null,null,null,null,null,null,null,null,null,null,null,null,null,null,null,null,null,null,null,null,null,null,null,null,null,null,null,null,null,null,null,null,null,null,null,null,null,null,null,null,null,null,null,null,null,null,null,null,null,null,null,null,null,null,null,null,null,null,null,null,20,102.3,77.2,63.3,43,33.700000000000003,28.1,17.8,11,7,null,null,2]
[null,null,null,null,null,null,null,null,null,null,null,null,null,null,null,null,null,null,null,null,null,null,null,null,null,null,null,null,null,null,null,null,null,null,null,null,null,null,null,null,null,null,null,null,null,null,null,null,null,null,null,null,null,null,null,null,null,null,null,null,null,null,null,null,null,null,null,null,null,null,25,106.8,80.8,66.400000000000006,45.2,35.4,29.6,18.7,11.6,7,null,null,"rec2",null,null,"master",null,"master2"]
[null,null,null,null,null,null,null,null,null,null,null,null,null,null,null,null,null,null,null,null,null,null,null,null,null,null,null,null,null,null,null,null,null,null,null,null,null,null,null,null,null,null,null,null,null,null,null,null,null,null,null,null,null,null,null,null,null,null,null,null,null,null,null,null,null,null,null,null,null,null,30,110.6,83.9,69,47.1,36.9,30.8,19.5,12.1,7,null,null,0,0,null,{"$f":"IF(MAX($CE$76:$CF$80)>5,CE76*(5/MAX($CE$76:$CF$80)),CE76)","v":0},{"$f":"IF(MAX($CE$76:$CF$80)>5,CF76*(5/MAX($CE$76:$CF$80)),CF76)","v":0},{"$f":"IF(MAX($CH$76:$CH$80)=5,CH76,CH76+0.5*(5-MAX($CH$76:$CH$80)))","v":1.5},{"$f":"IF(MAX($CI$76:$CI$80)=5,CI76,CI76+0.5*(5-MAX($CI$76:$CI$80)))","v":0.5}]
[null,null,null,null,null,null,null,null,null,null,null,null,null,null,null,null,null,null,null,null,null,null,null,null,null,null,null,null,null,null,null,null,null,null,null,null,null,null,null,null,null,null,null,null,null,null,null,null,null,null,null,null,null,null,null,null,null,null,null,null,null,null,null,null,null,null,null,null,null,null,50,122,93.2,76.900000000000006,52.7,41.4,34.6,21.9,13.5,8,null,null,{"$f":"T23","v":2},0,null,{"$f":"IF(MAX($CE$76:$CF$80)>5,CE77*(5/MAX($CE$76:$CF$80)),CE77)","v":2},0,{"$f":"IF(MAX($CH$76:$CH$80)=5,CH77,CH77+0.5*(5-MAX($CH$76:$CH$80)))","v":3.5},{"$f":"IF(MAX($CI$76:$CI$80)=5,CI77,CI77+0.5*(5-MAX($CI$76:$CI$80)))","v":0.5}]
[null,null,null,null,null,null,null,null,null,null,null,null,null,null,null,null,null,null,null,null,null,null,null,null,null,null,null,null,null,null,null,null,null,null,null,null,null,null,null,null,null,null,null,null,null,null,null,null,null,null,null,null,null,null,null,null,null,null,null,null,null,null,null,null,null,null,null,null,null,null,100,139.4,107.6,89.2,61.5,48.4,40.5,25.6,15.6,9,null,null,{"$f":"CE77","v":2},{"$f":"T24","v":4},null,2,4,3.5,4.5]
[null,null,null,null,null,null,null,null,null,null,null,null,null,null,null,null,null,null,null,null,null,null,null,null,null,null,null,null,null,null,null,null,null,null,null,null,null,null,null,null,null,null,null,null,null,null,null,null,null,null,null,null,null,null,null,null,null,null,null,null,null,null,null,null,null,null,null,null,null,null,500,190,150,125.9,88,69.7,58.4,36.9,22.1,13,null,null,0,{"$f":"CF78","v":4},null,0,4,1.5,4.5]
[null,null,null,null,null,null,null,null,null,null,null,null,null,null,null,null,null,null,null,null,null,null,null,null,null,null,null,null,null,null,null,null,null,null,null,null,null,null,null,null,null,null,null,null,null,null,null,null,null,null,null,null,null,null,null,null,null,null,null,null,null,null,null,null,null,null,null,null,null,null,1000,217.1,173.1,145.9,102.7,81.5,68.400000000000006,43.1,25.7,15,null,null,{"$f":"CE76","v":0},{"$f":"CF76","v":0},null,0,0,1.5,0.5]
[]
[null,null,null,null,null,null,null,null,null,null,null,null,null,null,null,null,null,null,null,null,null,null,null,null,null,null,null,null,null,null,null,null,null,null,null,null,null,null,null,null,null,null,null,null,null,null,null,null,null,null,null,null,null,null,null,null,null,null,null,null,{"$f":"T21*(2*T22*T24*0.5+2*T23*T24*0.5+T22*T23*T27)","v":33},{"$f":"IF(P20=\"Perforated Manhole\",BI83,BI82)","v":33},null,null,null,{"$f":"T68*(T69*T71+T70*T71+T69*T70)","v":0},{"$f":"IF(P67=\"Rectangular Trench/Pit\",BN82,BN83)","v":0}]
[null,null,null,null,null,null,null,null,null,null,null,null,null,null,null,null,null,null,null,null,null,null,null,null,null,null,null,null,null,null,null,null,null,null,null,null,null,null,null,null,null,null,null,null,null,null,null,null,null,null,null,null,null,null,null,null,null,null,null,null,{"$f":"T21*((PI()*((T23/2)^2))*T27+0.5*T24*0.5*(2*PI()*(T23/2)))","v":7.8539816339744828},null,null,null,null,{"$f":"T68*((PI()*((T70/2)^2))+T71*0.5*(2*PI()*(T70/2)))","v":0},null,null,null,"Rainfall","Return Period","Storm duration"]
[null,null,null,null,null,null,null,null,null,null,null,null,null,null,null,null,null,null,null,null,null,null,null,null,null,null,null,null,null,null,null,null,null,null,null,null,null,null,null,null,null,null,null,null,null,null,null,null,null,null,null,null,null,null,null,null,null,null,null,null,null,null,null,null,null,null,null,null,null,null,null,5,10,15,30,45,60,120,240,480]
[null,null,null,null,null,null,null,null,null,null,null,null,null,null,null,null,null,null,null,null,null,null,null,null,null,null,null,null,null,null,null,null,null,null,null,null,null,null,null,null,null,null,null,null,null,null,null,null,null,null,null,null,null,null,null,null,null,null,null,null,null,null,null,null,null,null,null,null,null,"M5-60",1,40.200000000000003,27.8,21.7,13.8,10.5,8.6,5.3,3.2,2]
[null,null,null,null,null,null,null,null,null,null,null,null,null,null,null,null,null,null,null,null,null,null,null,null,null,null,null,null,null,null,null,null,null,null,null,null,null,null,null,null,null,null,null,null,null,null,null,null,null,null,null,null,null,null,null,null,null,null,null,null,null,null,null,null,null,null,null,null,null,14,2,47.9,34.5,27.5,17.8,13.5,11.1,6.8,4.0999999999999996,2]
[null,null,null,null,null,null,null,null,null,null,null,null,null,null,null,null,null,null,null,null,null,null,null,null,null,null,null,null,null,null,null,null,null,null,null,null,null,null,null,null,null,null,null,null,null,null,null,null,null,null,null,null,null,null,null,null,null,null,null,null,0,{"$f":"#REF!","v":{"$error":"#REF!"}},null,null,null,0,{"$f":"P101","v":0},null,null,"r Ratio",5,63.5,45.5,36.1,23.2,17.600000000000001,14.3,8.6999999999999993,5.2,3,null,null,1,null,null,null,"rec 1",null,null,null,null,null,null,null,null,null,null,null,null,null,1,null,null,null,"rec 1"]
[null,null,null,null,null,null,null,null,null,null,null,null,null,null,null,null,null,null,null,null,null,null,null,null,null,null,null,null,null,null,null,null,null,null,null,null,null,null,null,null,null,null,null,null,null,null,null,null,null,null,null,null,null,null,null,null,null,null,null,null,{"$f":"VLOOKUP(BJ87,BI62:BJ71,2,FALSE)","v":{"$error":"#REF!"}},{"$f":"BJ87","v":{"$error":"#REF!"}},null,null,null,{"$f":"VLOOKUP(BO87,BN62:BO71,2,FALSE)","v":0},{"$f":"BO87","v":0},null,null,0.4,10,72.400000000000006,52.1,41.5,26.9,20.399999999999999,16.7,10.1,6.1,4,null,null,"cyl",null,null,null,"x","y","masterx","mastery","master2",null,"master3",null,null,null,null,null,null,null,"cyl",null,null,null,"x","y","masterx","mastery","master2",null,"master3"]
[null,null,null,null,null,null,null,null,null,null,null,null,null,null,null,null,null,null,null,null,null,null,null,null,null,null,null,null,null,null,null,null,null,null,null,null,null,null,null,null,null,null,null,null,null,null,null,null,null,null,null,null,null,null,null,null,null,null,null,null,null,null,null,null,null,null,null,null,null,null,15,78.099999999999994,56.4,45.1,29.3,22.3,18.3,11.1,6.7,4,null,null,1,{"$f":"CE89%*2*PI()","v":6.2831853071795868E-2},{"$f":"($T$22/2)*SIN(CF89)+T$22/2","v":2.6569762988232832},{"$f":"($T$22/2)*COS(CF89)+T$22/2","v":4.9950668210706795},0,0,{"$f":"IF(P$20=\"Perforated Manhole\",CG89,CI89)","v":0},{"$f":"IF(P$20=\"Perforated Manhole\",CH89,CJ89)","v":0},{"$f":"IF(MAX($CK$89:$CL$189)>5,CK89*(5/MAX($CK$89:$CL$189)),CK89)","v":0},{"$f":"IF(MAX($CK$89:$CL$189)>5,CL89*(5/MAX($CK$89:$CL$189)),CL89)","v":0},{"$f":"IF(MAX($CM$89:$CM$189)=5,CM89,CM89+0.5*(5-MAX($CM$89:$CM$189)))","v":1.5},{"$f":"IF(MAX($CN$89:$CN$189)=5,CN89,CN89+0.5*(5-MAX($CN$89:$CN$189)))","v":0},null,null,null,null,null,null,1,{"$f":"CW89%*2*PI()","v":6.2831853071795868E-2},{"$f":"($T$28*0.001/2)*SIN(CX89)+T$28*0.001/2","v":0.55796502275288951},{"$f":"($T$28*0.001/2)*COS(CX89)+T$28*0.001/2","v":1.0489640324248426},0,0,{"$f":"IF(P$20=\"Manhole Within Pit\",CY89,NA())","v":0.55796502275288951},{"$f":"IF(P$20=\"Manhole Within Pit\",CZ89,NA())","v":1.0489640324248426},{"$f":"IF(MAX($CO$89:$CP$189)>5,DC89*(5/MAX($CO$89:$CP$189)),DC89)","v":0.55796502275288951},{"$f":"IF(MAX($CO$89:$CP$189)>5,DD89*(5/MAX($CO$89:$CP$189)),DD89)","v":1.0489640324248426},{"$f":"IF(MAX($CQ$89:$CQ$189)=5,DE89,DE89+0.5*(5-MAX($CQ$89:$CQ$189)))-$DF$188/2+($CS$90-$CS$89)/2","v":2.5329650227528897},{"$f":"IF(MAX($CR$89:$CR$189)=5,DF89,DF89+0.5*(5-MAX($CR$89:$CR$189)))-$DF$188/2+($CT$91-$CT$90)/2","v":3.0239640324248427}]
[null,null,null,null,null,null,null,null,null,null,null,null,null,null,null,null,null,null,null,null,null,null,null,null,null,null,null,null,null,null,null,null,null,null,null,null,null,null,null,null,null,null,null,null,null,null,null,null,null,null,null,null,null,null,null,null,null,null,null,null,null,null,null,null,null,null,null,null,null,null,20,82.4,59.7,47.8,31.2,23.7,19.399999999999999,11.8,7.1,5,null,null,2,0.12566370614359174,{"$f":"($T$22/2)*SIN(CF90)+T$22/2","v":2.8133330839107606},{"$f":"($T$22/2)*COS(CF90)+T$22/2","v":4.9802867532861947},{"$f":"T23","v":2},0,{"$f":"IF(P$20=\"Perforated Manhole\",CG90,CI90)","v":2},{"$f":"IF(P$20=\"Perforated Manhole\",CH90,CJ90)","v":0},{"$f":"IF(MAX($CK$89:$CL$189)>5,CK90*(5/MAX($CK$89:$CL$189)),CK90)","v":2},0,{"$f":"IF(MAX($CM$89:$CM$189)=5,CM90,CM90+0.5*(5-MAX($CM$89:$CM$189)))","v":3.5},{"$f":"IF(MAX($CN$89:$CN$189)=5,CN90,CN90+0.5*(5-MAX($CN$89:$CN$189)))","v":0},null,null,null,null,null,null,2,{"$f":"CW90%*2*PI()","v":0.12566370614359174},{"$f":"($T$28*0.001/2)*SIN(CX90)+T$28*0.001/2","v":0.59079994762125976},{"$f":"($T$28*0.001/2)*COS(CX90)+T$28*0.001/2","v":1.0458602181901009},{"$f":"AH68","v":0},0,{"$f":"IF(P$20=\"Manhole Within Pit\",CY90,NA())","v":0.59079994762125976},{"$f":"IF(P$20=\"Manhole Within Pit\",CZ90,NA())","v":1.0458602181901009},{"$f":"IF(MAX($CO$89:$CP$189)>5,DC90*(5/MAX($CO$89:$CP$189)),DC90)","v":0.59079994762125976},1.0458602181901009,{"$f":"IF(MAX($CQ$89:$CQ$189)=5,DE90,DE90+0.5*(5-MAX($CQ$89:$CQ$189)))-$DF$188/2+($CS$90-$CS$89)/2","v":2.5657999476212598},{"$f":"IF(MAX($CR$89:$CR$189)=5,DF90,DF90+0.5*(5-MAX($CR$89:$CR$189)))-$DF$188/2+($CT$91-$CT$90)/2","v":3.020860218190101}]
[null,null,null,null,null,null,null,null,null,null,null,null,null,null,null,null,null,null,null,null,null,null,null,null,null,null,null,null,null,null,null,null,null,null,null,null,null,null,null,null,null,null,null,null,null,null,null,null,null,null,null,null,null,null,null,null,null,null,null,null,null,null,null,null,null,null,null,null,null,null,25,85.9,62.4,50,32.700000000000003,24.9,20.399999999999999,12.5,7.5,5,null,null,3,0.18849555921538758,2.9684532864643116,4.9557181268217221,{"$f":"CI90","v":2},{"$f":"T22","v":5},2,5,2,5,3.5,5,null,null,null,null,null,null,3,0.18849555921538758,0.62337519015750542,1.0407008066325616,{"$f":"DA90","v":0},{"$f":"AH67","v":0},0.62337519015750542,1.0407008066325616,0.62337519015750542,1.0407008066325616,2.5983751901575056,3.0157008066325619]
[null,null,null,null,null,null,null,null,null,null,null,null,null,null,null,null,null,null,null,null,null,null,null,null,null,null,null,null,null,null,null,null,null,null,null,null,null,null,null,null,null,null,null,null,null,null,null,null,null,null,null,null,null,null,null,null,null,null,null,null,null,null,null,null,null,null,null,null,null,null,30,88.9,64.7,51.9,34,25.9,21.3,13,7.8,5,null,null,4,0.25132741228718347,3.1217247179121372,4.9214579028215777,{"$f":"CI89","v":0},{"$f":"CJ91","v":5},0,5,0,5,1.5,5,null,null,null,null,null,null,4,0.25132741228718347,0.65556219076154876,1.0335061595925312,{"$f":"DA89","v":0},{"$f":"AH67","v":0},0.65556219076154876,1.0335061595925312,0.65556219076154876,1.0335061595925312,2.6305621907615486,3.0085061595925313]
[null,null,null,null,null,null,null,null,null,null,null,null,null,null,null,null,null,null,null,null,null,null,null,null,null,null,null,null,null,null,null,null,null,null,null,null,null,null,null,null,null,null,null,null,null,null,null,null,null,null,null,null,null,null,null,null,null,null,null,null,null,null,null,null,null,null,null,null,null,null,50,97.9,71.5,57.6,37.9,29,23.8,14.6,8.8000000000000007,5,null,null,5,0.31415926535897931,3.2725424859373686,4.8776412907378841,{"$f":"CI89","v":0},{"$f":"CJ89","v":0},0,0,0,0,1.5,0,null,null,null,null,null,null,5,0.31415926535897931,0.68723392204684741,1.0243046710549557,{"$f":"DA89","v":0},{"$f":"DB89","v":0},0.68723392204684741,1.0243046710549557,0.68723392204684741,1.0243046710549557,2.6622339220468474,2.9993046710549556]
[null,null,null,null,null,null,null,null,null,null,null,null,null,null,null,null,null,null,null,null,null,null,null,null,null,null,null,null,null,null,null,null,null,null,null,null,null,null,null,null,null,null,null,null,null,null,null,null,null,null,null,null,null,null,null,null,null,null,null,null,null,null,null,null,null,null,null,null,null,null,100,111.4,82,66.3,43.9,33.700000000000003,27.7,17,10.199999999999999,6,null,null,6,0.37699111843077515,3.420311381711695,4.824441214720629,null,null,0,0,0,0,1.5,0,null,null,null,null,null,null,6,0.37699111843077515,0.7182653901594559,1.013132655091332,null,null,0.7182653901594559,1.013132655091332,0.7182653901594559,1.013132655091332,2.6932653901594561,2.9881326550913321]
[null,null,null,null,null,null,null,null,null,null,null,null,null,null,null,null,null,null,null,null,null,null,null,null,null,null,null,null,null,null,null,null,null,null,null,null,null,null,null,null,null,null,null,null,null,null,null,null,null,null,null,null,null,null,null,null,null,null,null,null,null,null,null,null,null,null,null,null,null,null,500,150.69999999999999,112.6,92,61.9,47.8,39.4,24.4,14.8,7,null,null,7,0.4398229715025711,3.5644482289126818,4.7620676311650492,null,null,0,0,0,0,1.5,0,null,null,null,null,null,null,7,0.4398229715025711,0.7485341280716632,1.0000342025446602,null,null,0.7485341280716632,1.0000342025446602,0.7485341280716632,1.0000342025446602,2.7235341280716634,2.9750342025446606]
[null,null,null,null,null,null,null,null,null,null,null,null,null,null,null,null,null,null,null,null,null,null,null,null,null,null,null,null,null,null,null,null,null,null,null,null,null,null,null,null,null,null,null,null,null,null,null,null,null,null,null,null,null,null,null,null,null,null,null,null,null,null,null,null,null,null,null,null,null,null,1000,171.6,129,106,71.8,55.5,45.9,28.5,17.3,10,null,null,8,0.50265482457436694,3.7043841852542885,4.6907667001096591,null,null,0,0,0,0,1.5,0,null,null,null,null,null,null,8,0.50265482457436694,0.77792067890340055,0.98506100702302835,null,null,0.77792067890340055,0.98506100702302835,0.77792067890340055,0.98506100702302835,2.7529206789034006,2.9600610070230284]
[null,null,null,null,null,null,null,null,null,null,null,null,null,null,null,null,null,null,null,null,null,null,null,null,null,null,null,null,null,null,null,null,null,null,null,null,null,null,null,null,null,null,null,null,null,null,null,null,null,null,null,null,null,null,null,null,null,null,null,null,null,null,null,null,null,null,null,null,null,null,null,null,null,null,null,null,null,null,null,null,null,null,9,0.56548667764616278,3.8395669874474914,4.6108198137550378,null,null,0,0,0,0,1.5,0,null,null,null,null,null,null,9,0.56548667764616278,0.80630906736397323,0.96827216088855794,null,null,0.80630906736397323,0.96827216088855794,0.80630906736397323,0.96827216088855794,2.7813090673639733,2.9432721608885579]
[null,null,null,null,null,null,null,null,null,null,null,null,null,null,null,null,null,null,null,null,null,null,null,null,null,null,null,null,null,null,null,null,null,null,null,null,null,null,null,null,null,null,null,null,null,null,null,null,null,null,null,null,null,null,null,null,null,null,null,null,null,null,null,null,null,null,null,null,null,null,null,null,null,null,null,null,null,null,null,null,null,null,10,0.62831853071795862,3.969463130731183,4.5225424859373682,null,null,0,0,0,0,1.5,0,null,null,null,null,null,null,10,0.62831853071795862,0.83358725745354845,0.94973392204684748,null,null,0.83358725745354845,0.94973392204684748,0.83358725745354845,0.94973392204684748,2.8085872574535484,2.9247339220468476]
[null,null,null,null,null,null,null,null,null,null,null,null,null,null,null,null,null,null,null,null,null,null,null,null,null,null,null,null,null,null,null,null,null,null,null,null,null,null,null,null,null,null,null,null,null,null,null,null,null,null,null,null,null,null,null,null,null,null,null,null,null,null,null,null,null,null,null,null,null,"Rainfall","Return Period","Storm duration",null,null,null,null,null,null,null,null,null,null,11,0.69115038378975446,4.0935599743717237,4.426283106939473,null,null,0,0,0,0,1.5,0,null,null,null,null,null,null,11,0.69115038378975446,0.85964759461806217,0.9295194524572894,null,null,0.85964759461806217,0.9295194524572894,0.85964759461806217,0.9295194524572894,2.8346475946180623,2.9045194524572895]
[null,null,null,null,null,null,null,null,null,null,null,null,null,null,null,null,null,null,null,null,null,null,null,null,null,null,null,null,null,null,null,null,null,null,null,null,null,null,null,null,null,null,null,null,null,null,null,null,null,null,null,null,null,null,null,null,null,null,null,null,null,null,null,null,null,null,null,null,null,null,null,5,10,15,30,45,60,120,240,480,null,null,12,0.7539822368615503,4.2113677648217216,4.322421568553529,null,null,0,0,0,0,1.5,0,null,null,null,null,null,null,12,0.7539822368615503,0.88438723061256153,0.90770852939624103,null,null,0.88438723061256153,0.90770852939624103,0.88438723061256153,0.90770852939624103,2.8593872306125614,2.8827085293962411]
[null,null,null,null,null,null,null,null,null,null,null,null,null,null,null,null,null,null,null,null,null,null,null,null,null,null,null,null,null,null,null,null,null,null,null,null,null,null,null,null,null,null,null,null,null,null,null,null,null,null,null,null,null,null,null,null,null,null,null,null,null,null,null,null,null,null,null,null,null,"M5-60",1,34.4,25.7,21.2,15,12.2,10.6,7.5,5.3,4,null,null,13,0.81681408993334625,4.322421568553529,4.2113677648217216,null,null,0,0,0,0,1.5,0,null,null,null,null,null,null,13,0.81681408993334625,0.90770852939624103,0.88438723061256153,null,null,0.90770852939624103,0.88438723061256153,0.90770852939624103,0.88438723061256153,2.8827085293962411,2.8593872306125614]
[null,null,null,null,null,null,null,null,null,null,null,null,null,null,null,null,null,null,null,null,null,null,null,null,null,null,null,null,null,null,null,null,null,null,null,null,null,null,null,null,null,null,null,null,null,null,null,null,null,null,null,null,null,null,null,null,null,null,null,null,null,null,null,null,null,null,null,null,null,17,2,40.6,31.7,26.7,19.3,15.8,13.6,9.4,6.5,4,null,null,14,0.87964594300514221,4.426283106939473,4.0935599743717237,null,null,0,0,0,0,1.5,0,null,null,null,null,null,null,14,0.87964594300514221,0.9295194524572894,0.85964759461806217,null,null,0.9295194524572894,0.85964759461806217,0.9295194524572894,0.85964759461806217,2.9045194524572895,2.8346475946180623]
[null,null,null,null,null,null,null,null,null,null,null,null,null,null,null,null,null,null,null,null,null,null,null,null,null,null,null,null,null,null,null,null,null,null,null,null,null,null,null,null,null,null,null,null,null,null,null,null,null,null,null,null,null,null,null,null,null,null,null,null,null,null,null,null,null,null,null,null,null,"r Ratio",5,54,41.8,35.1,25.1,20.3,17.399999999999999,11.9,8,5,null,null,15,0.94247779607693793,4.5225424859373682,3.969463130731183,null,null,0,0,0,0,1.5,0,null,null,null,null,null,null,15,0.94247779607693793,0.94973392204684748,0.83358725745354845,null,null,0.94973392204684748,0.83358725745354845,0.94973392204684748,0.83358725745354845,2.9247339220468476,2.8085872574535484]
[null,null,null,null,null,null,null,null,null,null,null,null,null,null,null,null,null,null,null,null,null,null,null,null,null,null,null,null,null,null,null,null,null,null,null,null,null,null,null,null,null,null,null,null,null,null,null,null,null,null,null,null,null,null,null,null,null,null,null,null,null,null,null,null,null,null,null,null,null,0.2,10,61.3,47.9,40.4,29.1,23.7,20.399999999999999,13.9,9.3000000000000007,6,null,null,16,1.0053096491487339,4.6108198137550378,3.8395669874474914,null,null,0,0,0,0,1.5,0,null,null,null,null,null,null,16,1.0053096491487339,0.96827216088855794,0.80630906736397323,null,null,0.96827216088855794,0.80630906736397323,0.96827216088855794,0.80630906736397323,2.9432721608885579,2.7813090673639733]
[null,null,null,null,null,null,null,null,null,null,null,null,null,null,null,null,null,null,null,null,null,null,null,null,null,null,null,null,null,null,null,null,null,null,null,null,null,null,null,null,null,null,null,null,null,null,null,null,null,null,null,null,null,null,null,null,null,null,null,null,null,null,null,null,null,null,null,null,null,null,15,66.099999999999994,51.8,43.8,31.8,25.9,22.3,15.3,10.199999999999999,7,null,null,17,1.0681415022205298,4.6907667001096591,3.7043841852542876,null,null,0,0,0,0,1.5,0,null,null,null,null,null,null,17,1.0681415022205298,0.98506100702302846,0.77792067890340055,null,null,0.98506100702302846,0.77792067890340055,0.98506100702302846,0.77792067890340055,2.9600610070230284,2.7529206789034006]
[null,null,null,null,null,null,null,null,null,null,null,null,null,null,null,null,null,null,null,null,null,null,null,null,null,null,null,null,null,null,null,null,null,null,null,null,null,null,null,null,null,null,null,null,null,null,null,null,null,null,null,null,null,null,null,null,null,null,null,null,null,null,null,null,null,null,null,null,null,null,20,69.7,54.8,46.5,33.799999999999997,27.6,23.8,16.3,10.8,7,null,null,18,1.1309733552923256,4.7620676311650492,3.5644482289126818,null,null,0,0,0,0,1.5,0,null,null,null,null,null,null,18,1.1309733552923256,1.0000342025446602,0.7485341280716632,null,null,1.0000342025446602,0.7485341280716632,1.0000342025446602,0.7485341280716632,2.9750342025446606,2.7235341280716634]
[null,null,null,null,null,null,null,null,null,null,null,null,null,null,null,null,null,null,null,null,null,null,null,null,null,null,null,null,null,null,null,null,null,null,null,null,null,null,null,null,null,null,null,null,null,null,null,null,null,null,null,null,null,null,null,null,null,null,null,null,null,null,null,null,null,null,null,null,null,null,25,72.599999999999994,57.2,48.6,35.5,29,25,17.100000000000001,11.4,7,null,null,19,1.1938052083641213,4.8244412147206281,3.420311381711695,null,null,0,0,0,0,1.5,0,null,null,null,null,null,null,19,1.1938052083641213,1.013132655091332,0.71826539015945601,null,null,1.013132655091332,0.71826539015945601,1.013132655091332,0.71826539015945601,2.9881326550913321,2.6932653901594561]
[null,null,null,null,null,null,null,null,null,null,null,null,null,null,null,null,null,null,null,null,null,null,null,null,null,null,null,null,null,null,null,null,null,null,null,null,null,null,null,null,null,null,null,null,null,null,null,null,null,null,null,null,null,null,null,null,null,null,null,null,null,null,null,null,null,null,null,null,null,null,30,75.099999999999994,59.3,50.4,36.9,30.2,26.1,17.899999999999999,11.8,8,null,null,20,1.2566370614359172,4.8776412907378841,3.2725424859373686,null,null,0,0,0,0,1.5,0,null,null,null,null,null,null,20,1.2566370614359172,1.0243046710549557,0.68723392204684741,null,null,1.0243046710549557,0.68723392204684741,1.0243046710549557,0.68723392204684741,2.9993046710549556,2.6622339220468474]
[null,null,null,null,null,null,null,null,null,null,null,null,null,null,null,null,null,null,null,null,null,null,null,null,null,null,null,null,null,null,null,null,null,null,null,null,null,null,null,null,null,null,null,null,null,null,null,null,null,null,null,null,null,null,null,null,null,null,null,null,null,null,null,null,null,null,null,null,null,null,50,82.5,65.5,55.9,41.2,33.799999999999997,29.2,20.100000000000001,13.2,9,null,null,21,1.319468914507713,4.9214579028215777,3.1217247179121372,null,null,0,0,0,0,1.5,0,null,null,null,null,null,null,21,1.319468914507713,1.0335061595925312,0.65556219076154887,null,null,1.0335061595925312,0.65556219076154887,1.0335061595925312,0.65556219076154887,3.0085061595925313,2.6305621907615491]
[null,null,null,null,null,null,null,null,null,null,null,null,null,null,null,null,null,null,null,null,null,null,null,null,null,null,null,null,null,null,null,null,null,null,null,null,null,null,null,null,null,null,null,null,null,null,null,null,null,null,null,null,null,null,null,null,null,null,null,null,null,null,null,null,null,null,null,null,null,null,100,93.8,74.900000000000006,64.3,47.9,39.5,34.200000000000003,23.5,15.4,10,null,null,22,1.3823007675795089,4.9557181268217221,2.9684532864643121,null,null,0,0,0,0,1.5,0,null,null,null,null,null,null,22,1.3823007675795089,1.0407008066325616,0.62337519015750553,null,null,1.0407008066325616,0.62337519015750553,1.0407008066325616,0.62337519015750553,3.0157008066325619,2.5983751901575056]
[null,null,null,null,null,null,null,null,null,null,null,null,null,null,null,null,null,null,null,null,null,null,null,null,null,null,null,null,null,null,null,null,null,null,null,null,null,null,null,null,null,null,null,null,null,null,null,null,null,null,null,null,null,null,null,null,null,null,null,null,null,null,null,null,null,null,null,null,null,null,500,126.2,102.4,89.1,67.8,56.4,49,33.9,21.8,14,null,null,23,1.4451326206513049,4.9802867532861947,2.8133330839107606,null,null,0,0,0,0,1.5,0,null,null,null,null,null,null,23,1.4451326206513049,1.0458602181901009,0.59079994762125976,null,null,1.0458602181901009,0.59079994762125976,1.0458602181901009,0.59079994762125976,3.020860218190101,2.5657999476212598]
[null,null,null,null,null,null,null,null,null,null,null,null,null,null,null,null,null,null,null,null,null,null,null,null,null,null,null,null,null,null,null,null,null,null,null,null,null,null,null,null,null,null,null,null,null,null,null,null,null,null,null,null,null,null,null,null,null,null,null,null,null,null,null,null,null,null,null,null,null,null,1000,143.4,117.2,102.5,78.7,65.7,57.3,39.700000000000003,25.3,16,null,null,24,1.5079644737231006,4.9950668210706795,2.6569762988232837,null,null,0,0,0,0,1.5,0,null,null,null,null,null,null,24,1.5079644737231006,1.0489640324248426,0.55796502275288962,null,null,1.0489640324248426,0.55796502275288962,1.0489640324248426,0.55796502275288962,3.0239640324248427,2.5329650227528897]
[null,null,null,null,null,null,null,null,null,null,null,null,null,null,null,null,null,null,null,null,null,null,null,null,null,null,null,null,null,null,null,null,null,null,null,null,null,null,null,null,null,null,null,null,null,null,null,null,null,null,null,null,null,null,null,null,null,null,null,null,null,null,null,null,null,null,null,null,null,null,null,null,null,null,null,null,null,null,null,null,null,null,25,1.5707963267948966,5,2.5,null,null,0,0,0,0,1.5,0,null,null,null,null,null,null,25,1.5707963267948966,1.05,0.52500000000000002,null,null,1.05,0.52500000000000002,1.05,0.52500000000000002,3.0249999999999999,2.5]
[null,null,null,null,null,null,null,null,null,null,null,null,null,null,null,null,null,null,null,null,null,null,null,null,null,null,null,null,null,null,null,null,null,null,null,null,null,null,null,null,null,null,null,null,null,null,null,null,null,null,null,null,null,null,null,null,null,null,null,null,null,null,null,null,null,null,null,null,null,null,null,null,null,null,null,null,null,null,null,null,null,null,26,1.6336281798666925,4.9950668210706795,2.3430237011767163,null,null,0,0,0,0,1.5,0,null,null,null,null,null,null,26,1.6336281798666925,1.0489640324248426,0.49203497724711048,null,null,1.0489640324248426,0.49203497724711048,1.0489640324248426,0.49203497724711048,3.0239640324248427,2.4670349772471107]
[null,null,null,null,null,null,null,null,null,null,null,null,null,null,null,null,null,null,null,null,null,null,null,null,null,null,null,null,null,null,null,null,null,null,null,null,null,null,null,null,null,null,null,null,null,null,null,null,null,null,null,null,null,null,null,null,null,null,null,null,null,null,null,null,null,null,null,null,null,"Rainfall","Return Period","Storm duration",null,null,null,null,null,null,null,null,null,null,27,1.6964600329384885,4.9802867532861939,2.1866669160892389,null,null,0,0,0,0,1.5,0,null,null,null,null,null,null,27,1.6964600329384885,1.0458602181901009,0.45920005237874023,null,null,1.0458602181901009,0.45920005237874023,1.0458602181901009,0.45920005237874023,3.020860218190101,2.4342000523787402]
[null,null,null,null,null,null,null,null,null,null,null,null,null,null,null,null,null,null,null,null,null,null,null,null,null,null,null,null,null,null,null,null,null,null,null,null,null,null,null,null,null,null,null,null,null,null,null,null,null,null,null,null,null,null,null,null,null,null,null,null,null,null,null,null,null,null,null,null,null,null,null,5,10,15,30,45,60,120,240,480,null,null,28,1.7592918860102844,4.9557181268217221,2.0315467135356879,null,null,0,0,0,0,1.5,0,null,null,null,null,null,null,28,1.7592918860102844,1.0407008066325616,0.42662480984249451,null,null,1.0407008066325616,0.42662480984249451,1.0407008066325616,0.42662480984249451,3.0157008066325619,2.4016248098424948]
[null,null,null,null,null,null,null,null,null,null,null,null,null,null,null,null,null,null,null,null,null,null,null,null,null,null,null,null,null,null,null,null,null,null,null,null,null,null,null,null,null,null,null,null,null,null,null,null,null,null,null,null,null,null,null,null,null,null,null,null,null,null,null,null,null,null,null,null,null,"M5-60",1,28.3,21.6,17.7,12.4,10,8.6,6,4.2,3,null,null,29,1.8221237390820799,4.9214579028215777,1.8782752820878634,null,null,0,0,0,0,1.5,0,null,null,null,null,null,null,29,1.8221237390820799,1.0335061595925314,0.39443780923845134,null,null,1.0335061595925314,0.39443780923845134,1.0335061595925314,0.39443780923845134,3.0085061595925313,2.3694378092384514]
[null,null,null,null,null,null,null,null,null,null,null,null,null,null,null,null,null,null,null,null,null,null,null,null,null,null,null,null,null,null,null,null,null,null,null,null,null,null,null,null,null,null,null,null,null,null,null,null,null,null,null,null,null,null,null,null,null,null,null,null,null,null,null,null,null,null,null,null,null,14,2,33.299999999999997,26,21.9,15.8,12.9,11.1,7.7,5.3,4,null,null,30,1.8849555921538759,4.8776412907378841,1.7274575140626316,null,null,0,0,0,0,1.5,0,null,null,null,null,null,null,30,1.8849555921538759,1.0243046710549557,0.36276607795315263,null,null,1.0243046710549557,0.36276607795315263,1.0243046710549557,0.36276607795315263,2.9993046710549556,2.3377660779531526]
[null,null,null,null,null,null,null,null,null,null,null,null,null,null,null,null,null,null,null,null,null,null,null,null,null,null,null,null,null,null,null,null,null,null,null,null,null,null,null,null,null,null,null,null,null,null,null,null,null,null,null,null,null,null,null,null,null,null,null,null,null,null,null,null,null,null,null,null,null,"r Ratio",5,44.4,34.4,28.9,20.7,16.7,14.3,9.8000000000000007,6.6,4,null,null,31,1.9477874452256718,4.8244412147206281,1.579688618288305,null,null,0,0,0,0,1.5,0,null,null,null,null,null,null,31,1.9477874452256718,1.013132655091332,0.33173460984054404,null,null,1.013132655091332,0.33173460984054404,1.013132655091332,0.33173460984054404,2.9881326550913321,2.3067346098405443]
[null,null,null,null,null,null,null,null,null,null,null,null,null,null,null,null,null,null,null,null,null,null,null,null,null,null,null,null,null,null,null,null,null,null,null,null,null,null,null,null,null,null,null,null,null,null,null,null,null,null,null,null,null,null,null,null,null,null,null,null,null,null,null,null,null,null,null,null,null,0.2,10,50.4,39.299999999999997,33.1,23.9,19.399999999999999,16.7,11.5,7.7,5,null,null,32,2.0106192982974678,4.7620676311650492,1.4355517710873182,null,null,0,0,0,0,1.5,0,null,null,null,null,null,null,32,2.0106192982974678,1.0000342025446602,0.30146587192833685,null,null,1.0000342025446602,0.30146587192833685,1.0000342025446602,0.30146587192833685,2.9750342025446606,2.276465871928337]
[null,null,null,null,null,null,null,null,null,null,null,null,null,null,null,null,null,null,null,null,null,null,null,null,null,null,null,null,null,null,null,null,null,null,null,null,null,null,null,null,null,null,null,null,null,null,null,null,null,null,null,null,null,null,null,null,null,null,null,null,null,null,null,null,null,null,null,null,null,null,15,54.2,42.4,35.799999999999997,26,21.2,18.3,12.6,8.5,6,null,null,33,2.0734511513692637,4.6907667001096591,1.2956158147457115,null,null,0,0,0,0,1.5,0,null,null,null,null,null,null,33,2.0734511513692637,0.98506100702302835,0.27207932109659944,null,null,0.98506100702302835,0.27207932109659944,0.98506100702302835,0.27207932109659944,2.9600610070230284,2.2470793210965994]
[null,null,null,null,null,null,null,null,null,null,null,null,null,null,null,null,null,null,null,null,null,null,null,null,null,null,null,null,null,null,null,null,null,null,null,null,null,null,null,null,null,null,null,null,null,null,null,null,null,null,null,null,null,null,null,null,null,null,null,null,null,null,null,null,null,null,null,null,null,null,20,57.2,44.8,37.9,27.6,22.6,19.399999999999999,13.4,9,6,null,null,34,2.1362830044410597,4.6108198137550378,1.1604330125525077,null,null,0,0,0,0,1.5,0,null,null,null,null,null,null,34,2.1362830044410597,0.96827216088855783,0.24369093263602665,null,null,0.96827216088855783,0.24369093263602665,0.96827216088855783,0.24369093263602665,2.9432721608885579,2.2186909326360267]
[null,null,null,null,null,null,null,null,null,null,null,null,null,null,null,null,null,null,null,null,null,null,null,null,null,null,null,null,null,null,null,null,null,null,null,null,null,null,null,null,null,null,null,null,null,null,null,null,null,null,null,null,null,null,null,null,null,null,null,null,null,null,null,null,null,null,null,null,null,null,25,59.5,46.7,39.6,28.9,23.7,20.399999999999999,14.1,9.5,6,null,null,35,2.1991148575128552,4.5225424859373682,1.0305368692688175,null,null,0,0,0,0,1.5,0,null,null,null,null,null,null,35,2.1991148575128552,0.94973392204684748,0.21641274254645165,null,null,0.94973392204684748,0.21641274254645165,0.94973392204684748,0.21641274254645165,2.9247339220468476,2.1914127425464516]
[null,null,null,null,null,null,null,null,null,null,null,null,null,null,null,null,null,null,null,null,null,null,null,null,null,null,null,null,null,null,null,null,null,null,null,null,null,null,null,null,null,null,null,null,null,null,null,null,null,null,null,null,null,null,null,null,null,null,null,null,null,null,null,null,null,null,null,null,null,null,30,61.5,48.3,41,30.1,24.6,21.3,14.7,9.9,6,null,null,36,2.2619467105846511,4.426283106939473,0.90644002562827564,null,null,0,0,0,0,1.5,0,null,null,null,null,null,null,36,2.2619467105846511,0.9295194524572894,0.19035240538193787,null,null,0.9295194524572894,0.19035240538193787,0.9295194524572894,0.19035240538193787,2.9045194524572895,2.1653524053819377]
[null,null,null,null,null,null,null,null,null,null,null,null,null,null,null,null,null,null,null,null,null,null,null,null,null,null,null,null,null,null,null,null,null,null,null,null,null,null,null,null,null,null,null,null,null,null,null,null,null,null,null,null,null,null,null,null,null,null,null,null,null,null,null,null,null,null,null,null,null,null,50,67.5,53.2,45.3,33.5,27.5,23.8,16.5,11.1,7,null,null,37,2.3247785636564471,4.3224215685535281,0.78863223517827818,null,null,0,0,0,0,1.5,0,null,null,null,null,null,null,37,2.3247785636564471,0.90770852939624103,0.16561276938743841,null,null,0.90770852939624103,0.16561276938743841,0.90770852939624103,0.16561276938743841,2.8827085293962411,2.1406127693874386]
[null,null,null,null,null,null,null,null,null,null,null,null,null,null,null,null,null,null,null,null,null,null,null,null,null,null,null,null,null,null,null,null,null,null,null,null,null,null,null,null,null,null,null,null,null,null,null,null,null,null,null,null,null,null,null,null,null,null,null,null,null,null,null,null,null,null,null,null,null,null,100,76.599999999999994,60.7,51.9,38.700000000000003,31.9,27.7,19.3,13,8,null,null,38,2.3876104167282426,4.2113677648217216,0.67757843144647167,null,null,0,0,0,0,1.5,0,null,null,null,null,null,null,38,2.3876104167282426,0.88438723061256175,0.14229147060375907,null,null,0.88438723061256175,0.14229147060375907,0.88438723061256175,0.14229147060375907,2.8593872306125618,2.1172914706037593]
[null,null,null,null,null,null,null,null,null,null,null,null,null,null,null,null,null,null,null,null,null,null,null,null,null,null,null,null,null,null,null,null,null,null,null,null,null,null,null,null,null,null,null,null,null,null,null,null,null,null,null,null,null,null,null,null,null,null,null,null,null,null,null,null,null,null,null,null,null,null,500,102.5,82.3,71,54.2,45.2,39.4,27.8,18.7,12,null,null,39,2.4504422698000385,4.0935599743717246,0.5737168930605272,null,null,0,0,0,0,1.5,0,null,null,null,null,null,null,39,2.4504422698000385,0.85964759461806217,0.1204805475427107,null,null,0.85964759461806217,0.1204805475427107,0.85964759461806217,0.1204805475427107,2.8346475946180623,2.095480547542711]
[null,null,null,null,null,null,null,null,null,null,null,null,null,null,null,null,null,null,null,null,null,null,null,null,null,null,null,null,null,null,null,null,null,null,null,null,null,null,null,null,null,null,null,null,null,null,null,null,null,null,null,null,null,null,null,null,null,null,null,null,null,null,null,null,null,null,null,null,null,null,1000,116.3,93.9,81.3,62.7,52.5,45.9,32.5,21.8,14,null,null,40,2.5132741228718345,3.9694631307311834,0.47745751406263182,null,null,0,0,0,0,1.5,0,null,null,null,null,null,null,40,2.5132741228718345,0.83358725745354856,0.10026607795315268,null,null,0.83358725745354856,0.10026607795315268,0.83358725745354856,0.10026607795315268,2.8085872574535489,2.0752660779531529]
[null,null,null,null,null,null,null,null,null,null,null,null,null,null,null,null,null,null,null,null,null,null,null,null,null,null,null,null,null,null,null,null,null,null,null,null,null,null,null,null,null,null,null,null,null,null,null,null,null,null,null,null,null,null,null,null,null,null,null,null,null,null,null,null,null,null,null,null,null,null,null,null,null,null,null,null,null,null,null,null,null,null,41,2.57610597594363,3.8395669874474923,0.38918018624496309,null,null,0,0,0,0,1.5,0,null,null,null,null,null,null,41,2.57610597594363,0.80630906736397345,8.1727839111442213E-2,null,null,0.80630906736397345,8.1727839111442213E-2,0.80630906736397345,8.1727839111442213E-2,2.7813090673639738,2.0567278391114425]
[null,null,null,null,null,null,null,null,null,null,null,null,null,null,null,null,null,null,null,null,null,null,null,null,null,null,null,null,null,null,null,null,null,null,null,null,null,null,null,null,null,null,null,null,null,null,null,null,null,null,null,null,null,null,null,null,null,null,null,null,null,null,null,null,null,null,null,null,null,"Rainfall","Return Period","Storm duration",null,null,null,null,null,null,null,null,null,null,42,2.638937829015426,3.7043841852542889,0.30923329989034176,null,null,0,0,0,0,1.5,0,null,null,null,null,null,null,42,2.638937829015426,0.77792067890340078,6.4938992976971754E-2,null,null,0.77792067890340078,6.4938992976971754E-2,0.77792067890340078,6.4938992976971754E-2,2.7529206789034011,2.039938992976972]
[null,null,null,null,null,null,null,null,null,null,null,null,null,null,null,null,null,null,null,null,null,null,null,null,null,null,null,null,null,null,null,null,null,null,null,null,null,null,null,null,null,null,null,null,null,null,null,null,null,null,null,null,null,null,null,null,null,null,null,null,null,null,null,null,null,null,null,null,null,null,null,5,10,15,30,45,60,120,240,480,null,null,43,2.7017696820872219,3.5644482289126822,0.23793236883495172,null,null,0,0,0,0,1.5,0,null,null,null,null,null,null,43,2.7017696820872219,0.74853412807166331,4.9965797455339855E-2,null,null,0.74853412807166331,4.9965797455339855E-2,0.74853412807166331,4.9965797455339855E-2,2.7235341280716634,2.0249657974553399]
[null,null,null,null,null,null,null,null,null,null,null,null,null,null,null,null,null,null,null,null,null,null,null,null,null,null,null,null,null,null,null,null,null,null,null,null,null,null,null,null,null,null,null,null,null,null,null,null,null,null,null,null,null,null,null,null,null,null,null,null,null,null,null,null,null,null,null,null,null,"M5-60",1,40.1,29.9,24.7,17.7,14.5,12.7,9,6.4,4,null,null,44,2.7646015351590179,3.4203113817116955,0.17555878527937185,null,null,0,0,0,0,1.5,0,null,null,null,null,null,null,44,2.7646015351590179,0.71826539015945601,3.6867344908668054E-2,null,null,0.71826539015945601,3.6867344908668054E-2,0.71826539015945601,3.6867344908668054E-2,2.6932653901594561,2.0118673449086679]
[null,null,null,null,null,null,null,null,null,null,null,null,null,null,null,null,null,null,null,null,null,null,null,null,null,null,null,null,null,null,null,null,null,null,null,null,null,null,null,null,null,null,null,null,null,null,null,null,null,null,null,null,null,null,null,null,null,null,null,null,null,null,null,null,null,null,null,null,null,20,2,47.9,37.5,31.6,22.9,18.7,16.100000000000001,11.2,7.7,5,null,null,45,2.8274333882308138,3.2725424859373686,0.12235870926211634,null,null,0,0,0,0,1.5,0,null,null,null,null,null,null,45,2.8274333882308138,0.68723392204684752,2.5695328945044393E-2,null,null,0.68723392204684752,2.5695328945044393E-2,0.68723392204684752,2.5695328945044393E-2,2.6622339220468478,2.0006953289450444]
[null,null,null,null,null,null,null,null,null,null,null,null,null,null,null,null,null,null,null,null,null,null,null,null,null,null,null,null,null,null,null,null,null,null,null,null,null,null,null,null,null,null,null,null,null,null,null,null,null,null,null,null,null,null,null,null,null,null,null,null,null,null,null,null,null,null,null,null,null,"r Ratio",5,63.5,49.3,41.3,29.5,23.9,20.5,14,9.4,6,null,null,46,2.8902652413026098,3.1217247179121372,7.854209717842231E-2,null,null,0,0,0,0,1.5,0,null,null,null,null,null,null,46,2.8902652413026098,0.65556219076154876,1.6493840407468707E-2,null,null,0.65556219076154876,1.6493840407468707E-2,0.65556219076154876,1.6493840407468707E-2,2.6305621907615486,1.9914938404074687]
[null,null,null,null,null,null,null,null,null,null,null,null,null,null,null,null,null,null,null,null,null,null,null,null,null,null,null,null,null,null,null,null,null,null,null,null,null,null,null,null,null,null,null,null,null,null,null,null,null,null,null,null,null,null,null,null,null,null,null,null,null,null,null,null,null,null,null,null,null,0.2,10,72.3,56.6,47.8,34.4,28,24,16.3,10.9,7,null,null,47,2.9530970943744053,2.9684532864643125,4.4281873178278364E-2,null,null,0,0,0,0,1.5,0,null,null,null,null,null,null,47,2.9530970943744053,0.62337519015750564,9.2991933674384519E-3,null,null,0.62337519015750564,9.2991933674384519E-3,0.62337519015750564,9.2991933674384519E-3,2.5983751901575056,1.9842991933674385]
[null,null,null,null,null,null,null,null,null,null,null,null,null,null,null,null,null,null,null,null,null,null,null,null,null,null,null,null,null,null,null,null,null,null,null,null,null,null,null,null,null,null,null,null,null,null,null,null,null,null,null,null,null,null,null,null,null,null,null,null,null,null,null,null,null,null,null,null,null,null,15,78,61.3,52,37.6,30.6,26.3,17.899999999999999,11.9,8,null,null,48,3.0159289474462012,2.8133330839107611,1.9713246713805699E-2,null,null,0,0,0,0,1.5,0,null,null,null,null,null,null,48,3.0159289474462012,0.59079994762125987,4.1397818098991568E-3,null,null,0.59079994762125987,4.1397818098991568E-3,0.59079994762125987,4.1397818098991568E-3,2.5657999476212598,1.979139781809899]
[null,null,null,null,null,null,null,null,null,null,null,null,null,null,null,null,null,null,null,null,null,null,null,null,null,null,null,null,null,null,null,null,null,null,null,null,null,null,null,null,null,null,null,null,null,null,null,null,null,null,null,null,null,null,null,null,null,null,null,null,null,null,null,null,null,null,null,null,null,null,20,82.4,65,55.3,40.1,32.700000000000003,28.1,19.100000000000001,12.6,8,null,null,49,3.0787608005179972,2.6569762988232841,4.9331789293209916E-3,null,null,0,0,0,0,1.5,0,null,null,null,null,null,null,49,3.0787608005179972,0.55796502275288962,1.0359675751574482E-3,null,null,0.55796502275288962,1.0359675751574482E-3,0.55796502275288962,1.0359675751574482E-3,2.5329650227528897,1.9760359675751578]
[null,null,null,null,null,null,null,null,null,null,null,null,null,null,null,null,null,null,null,null,null,null,null,null,null,null,null,null,null,null,null,null,null,null,null,null,null,null,null,null,null,null,null,null,null,null,null,null,null,null,null,null,null,null,null,null,null,null,null,null,null,null,null,null,null,null,null,null,null,null,25,85.9,67.900000000000006,57.9,42.1,34.4,29.6,20,13.2,9,null,null,50,3.1415926535897931,2.5000000000000004,0,null,null,0,0,0,0,1.5,0,null,null,null,null,null,null,50,3.1415926535897931,0.52500000000000013,0,null,null,0.52500000000000013,0,0.52500000000000013,0,2.5000000000000004,1.9750000000000001]
[null,null,null,null,null,null,null,null,null,null,null,null,null,null,null,null,null,null,null,null,null,null,null,null,null,null,null,null,null,null,null,null,null,null,null,null,null,null,null,null,null,null,null,null,null,null,null,null,null,null,null,null,null,null,null,null,null,null,null,null,null,null,null,null,null,null,null,null,null,null,30,88.9,70.5,60.2,43.9,35.799999999999997,30.8,20.9,13.7,9,null,null,51,3.2044245066615891,2.3430237011767168,4.9331789293209916E-3,null,null,0,0,0,0,1.5,0,null,null,null,null,null,null,51,3.2044245066615891,0.49203497724711054,1.0359675751574482E-3,null,null,0.49203497724711054,1.0359675751574482E-3,0.49203497724711054,1.0359675751574482E-3,2.4670349772471107,1.9760359675751578]
[null,null,null,null,null,null,null,null,null,null,null,null,null,null,null,null,null,null,null,null,null,null,null,null,null,null,null,null,null,null,null,null,null,null,null,null,null,null,null,null,null,null,null,null,null,null,null,null,null,null,null,null,null,null,null,null,null,null,null,null,null,null,null,null,null,null,null,null,null,null,50,97.8,78,67,49.1,40.200000000000003,34.6,23.4,15.3,10,null,null,52,3.267256359733385,2.1866669160892394,1.9713246713805255E-2,null,null,0,0,0,0,1.5,0,null,null,null,null,null,null,52,3.267256359733385,0.45920005237874029,4.1397818098991568E-3,null,null,0.45920005237874029,4.1397818098991568E-3,0.45920005237874029,4.1397818098991568E-3,2.4342000523787406,1.979139781809899]
[null,null,null,null,null,null,null,null,null,null,null,null,null,null,null,null,null,null,null,null,null,null,null,null,null,null,null,null,null,null,null,null,null,null,null,null,null,null,null,null,null,null,null,null,null,null,null,null,null,null,null,null,null,null,null,null,null,null,null,null,null,null,null,null,null,null,null,null,null,null,100,111.4,89.6,77.400000000000006,57.2,47,40.5,27.3,17.600000000000001,11,null,null,53,3.330088212805181,2.0315467135356879,4.4281873178278364E-2,null,null,0,0,0,0,1.5,0,null,null,null,null,null,null,53,3.330088212805181,0.42662480984249451,9.2991933674384519E-3,null,null,0.42662480984249451,9.2991933674384519E-3,0.42662480984249451,9.2991933674384519E-3,2.4016248098424948,1.9842991933674385]
[null,null,null,null,null,null,null,null,null,null,null,null,null,null,null,null,null,null,null,null,null,null,null,null,null,null,null,null,null,null,null,null,null,null,null,null,null,null,null,null,null,null,null,null,null,null,null,null,null,null,null,null,null,null,null,null,null,null,null,null,null,null,null,null,null,null,null,null,null,null,500,150.6,123.6,108.5,81.599999999999994,67.5,58.4,39.1,24.7,15,null,null,54,3.3929200658769769,1.8782752820878623,7.854209717842231E-2,null,null,0,0,0,0,1.5,0,null,null,null,null,null,null,54,3.3929200658769769,0.39443780923845112,1.6493840407468707E-2,null,null,0.39443780923845112,1.6493840407468707E-2,0.39443780923845112,1.6493840407468707E-2,2.3694378092384514,1.9914938404074687]
[null,null,null,null,null,null,null,null,null,null,null,null,null,null,null,null,null,null,null,null,null,null,null,null,null,null,null,null,null,null,null,null,null,null,null,null,null,null,null,null,null,null,null,null,null,null,null,null,null,null,null,null,null,null,null,null,null,null,null,null,null,null,null,null,null,null,null,null,null,null,1000,171.5,141.9,125.4,95.1,78.900000000000006,68.400000000000006,45.7,28.5,17,null,null,55,3.4557519189487729,1.7274575140626307,0.12235870926211634,null,null,0,0,0,0,1.5,0,null,null,null,null,null,null,55,3.4557519189487729,0.36276607795315247,2.5695328945044393E-2,null,null,0.36276607795315247,2.5695328945044393E-2,0.36276607795315247,2.5695328945044393E-2,2.3377660779531526,2.0006953289450444]
[null,null,null,null,null,null,null,null,null,null,null,null,null,null,null,null,null,null,null,null,null,null,null,null,null,null,null,null,null,null,null,null,null,null,null,null,null,null,null,null,null,null,null,null,null,null,null,null,null,null,null,null,null,null,null,null,null,null,null,null,null,null,null,null,null,null,null,null,null,null,null,null,null,null,null,null,null,null,null,null,null,null,56,3.5185837720205688,1.5796886182883041,0.17555878527937185,null,null,0,0,0,0,1.5,0,null,null,null,null,null,null,56,3.5185837720205688,0.33173460984054393,3.6867344908668109E-2,null,null,0.33173460984054393,3.6867344908668109E-2,0.33173460984054393,3.6867344908668109E-2,2.3067346098405439,2.0118673449086684]
[null,null,null,null,null,null,null,null,null,null,null,null,null,null,null,null,null,null,null,null,null,null,null,null,null,null,null,null,null,null,null,null,null,null,null,null,null,null,null,null,null,null,null,null,null,null,null,null,null,null,null,null,null,null,null,null,null,null,null,null,null,null,null,null,null,null,null,null,null,null,null,null,null,null,null,null,null,null,null,null,null,null,57,3.5814156250923639,1.4355517710873194,0.23793236883495084,null,null,0,0,0,0,1.5,0,null,null,null,null,null,null,57,3.5814156250923639,0.30146587192833707,4.9965797455339689E-2,null,null,0.30146587192833707,4.9965797455339689E-2,0.30146587192833707,4.9965797455339689E-2,2.276465871928337,2.0249657974553399]
[null,null,null,null,null,null,null,null,null,null,null,null,null,null,null,null,null,null,null,null,null,null,null,null,null,null,null,null,null,null,null,null,null,null,null,null,null,null,null,null,null,null,null,null,null,null,null,null,null,null,null,null,null,null,null,null,null,null,null,null,null,null,null,null,null,null,null,null,null,null,null,null,null,null,null,null,null,null,null,null,null,null,58,3.6442474781641598,1.2956158147457124,0.30923329989034087,null,null,0,0,0,0,1.5,0,null,null,null,null,null,null,58,3.6442474781641598,0.27207932109659966,6.4938992976971588E-2,null,null,0.27207932109659966,6.4938992976971588E-2,0.27207932109659966,6.4938992976971588E-2,2.2470793210965998,2.0399389929769716]
[null,null,null,null,null,null,null,null,null,null,null,null,null,null,null,null,null,null,null,null,null,null,null,null,null,null,null,null,null,null,null,null,null,null,null,null,null,null,null,null,null,null,null,null,null,null,null,null,null,null,null,null,null,null,null,null,null,null,null,null,null,null,null,null,null,null,null,null,null,null,null,null,null,null,null,null,null,null,null,null,null,null,59,3.7070793312359558,1.1604330125525089,0.3891801862449622,null,null,0,0,0,0,1.5,0,null,null,null,null,null,null,59,3.7070793312359558,0.24369093263602687,8.1727839111442047E-2,null,null,0.24369093263602687,8.1727839111442047E-2,0.24369093263602687,8.1727839111442047E-2,2.2186909326360271,2.0567278391114421]
[null,null,null,null,null,null,null,null,null,null,null,null,null,null,null,null,null,null,null,null,null,null,null,null,null,null,null,null,null,null,null,null,null,null,null,null,null,null,null,null,null,null,null,null,null,null,null,null,null,null,null,null,null,null,null,null,null,null,null,null,null,null,null,null,null,null,null,null,null,null,null,null,null,null,null,null,null,null,null,null,null,null,60,3.7699111843077517,1.0305368692688175,0.47745751406263093,null,null,0,0,0,0,1.5,0,null,null,null,null,null,null,60,3.7699111843077517,0.21641274254645165,0.10026607795315251,null,null,0.21641274254645165,0.10026607795315251,0.21641274254645165,0.10026607795315251,2.1914127425464516,2.0752660779531524]
[null,null,null,null,null,null,null,null,null,null,null,null,null,null,null,null,null,null,null,null,null,null,null,null,null,null,null,null,null,null,null,null,null,null,null,null,null,null,null,null,null,null,null,null,null,null,null,null,null,null,null,null,null,null,null,null,null,null,null,null,null,null,null,null,null,null,null,null,null,null,null,null,null,null,null,null,null,null,null,null,null,null,61,3.8327430373795477,0.90644002562827586,0.57371689306052698,null,null,0,0,0,0,1.5,0,null,null,null,null,null,null,61,3.8327430373795477,0.19035240538193793,0.12048054754271065,null,null,0.19035240538193793,0.12048054754271065,0.19035240538193793,0.12048054754271065,2.1653524053819382,2.0954805475427105]
[null,null,null,null,null,null,null,null,null,null,null,null,null,null,null,null,null,null,null,null,null,null,null,null,null,null,null,null,null,null,null,null,null,null,null,null,null,null,null,null,null,null,null,null,null,null,null,null,null,null,null,null,null,null,null,null,null,null,null,null,null,null,null,null,null,null,null,null,null,null,null,null,null,null,null,null,null,null,null,null,null,null,62,3.8955748904513436,0.78863223517827818,0.67757843144647101,null,null,0,0,0,0,1.5,0,null,null,null,null,null,null,62,3.8955748904513436,0.16561276938743841,0.14229147060375896,null,null,0.16561276938743841,0.14229147060375896,0.16561276938743841,0.14229147060375896,2.1406127693874386,2.1172914706037589]
[null,null,null,null,null,null,null,null,null,null,null,null,null,null,null,null,null,null,null,null,null,null,null,null,null,null,null,null,null,null,null,null,null,null,null,null,null,null,null,null,null,null,null,null,null,null,null,null,null,null,null,null,null,null,null,null,null,null,null,null,null,null,null,null,null,null,null,null,null,null,null,null,null,null,null,null,null,null,null,null,null,null,63,3.9584067435231391,0.67757843144647167,0.78863223517827752,null,null,0,0,0,0,1.5,0,null,null,null,null,null,null,63,3.9584067435231391,0.14229147060375907,0.1656127693874383,null,null,0.14229147060375907,0.1656127693874383,0.14229147060375907,0.1656127693874383,2.1172914706037593,2.1406127693874386]
[null,null,null,null,null,null,null,null,null,null,null,null,null,null,null,null,null,null,null,null,null,null,null,null,null,null,null,null,null,null,null,null,null,null,null,null,null,null,null,null,null,null,null,null,null,null,null,null,null,null,null,null,null,null,null,null,null,null,null,null,null,null,null,null,null,null,null,null,null,null,null,null,null,null,null,null,null,null,null,null,null,null,64,4.0212385965949355,0.57371689306052653,0.9064400256282763,null,null,0,0,0,0,1.5,0,null,null,null,null,null,null,64,4.0212385965949355,0.12048054754271059,0.19035240538193798,null,null,0.12048054754271059,0.19035240538193798,0.12048054754271059,0.19035240538193798,2.0954805475427105,2.1653524053819382]
[null,null,null,null,null,null,null,null,null,null,null,null,null,null,null,null,null,null,null,null,null,null,null,null,null,null,null,null,null,null,null,null,null,null,null,null,null,null,null,null,null,null,null,null,null,null,null,null,null,null,null,null,null,null,null,null,null,null,null,null,null,null,null,null,null,null,null,null,null,null,null,null,null,null,null,null,null,null,null,null,null,null,65,{"$f":"CE153%*2*PI()","v":4.0840704496667311},0.47745751406263182,1.0305368692688168,null,null,0,0,0,0,1.5,0,null,null,null,null,null,null,65,4.0840704496667311,0.10026607795315268,0.21641274254645154,null,null,0.10026607795315268,0.21641274254645154,0.10026607795315268,0.21641274254645154,2.0752660779531529,2.1914127425464516]
[null,null,null,null,null,null,null,null,null,null,null,null,null,null,null,null,null,null,null,null,null,null,null,null,null,null,null,null,null,null,null,null,null,null,null,null,null,null,null,null,null,null,null,null,null,null,null,null,null,null,null,null,null,null,null,null,null,null,null,null,null,null,null,null,null,null,null,null,null,null,null,null,null,null,null,null,null,null,null,null,null,null,66,4.1469023027385274,{"$f":"($T$22/2)*SIN(CF154)+T$22/2","v":0.38918018624496176},{"$f":"($T$22/2)*COS(CF154)+T$22/2","v":1.1604330125525091},null,null,{"$f":"IF(P$20=\"Perforated Manhole\",CG154,CI154)","v":0},{"$f":"IF(P$20=\"Perforated Manhole\",CH154,CJ154)","v":0},{"$f":"IF(MAX($CK$89:$CL$189)>5,CK154*(5/MAX($CK$89:$CL$189)),CK154)","v":0},0,{"$f":"IF(MAX($CM$89:$CM$189)=5,CM154,CM154+0.5*(5-MAX($CM$89:$CM$189)))","v":1.5},{"$f":"IF(MAX($CN$89:$CN$189)=5,CN154,CN154+0.5*(5-MAX($CN$89:$CN$189)))","v":0},null,null,null,null,null,null,66,{"$f":"CW154%*2*PI()","v":4.1469023027385274},{"$f":"($T$28*0.001/2)*SIN(CX154)+T$28*0.001/2","v":8.1727839111441991E-2},{"$f":"($T$28*0.001/2)*COS(CX154)+T$28*0.001/2","v":0.24369093263602692},null,null,{"$f":"IF(P$20=\"Manhole Within Pit\",CY154,NA())","v":8.1727839111441991E-2},{"$f":"IF(P$20=\"Manhole Within Pit\",CZ154,NA())","v":0.24369093263602692},{"$f":"IF(MAX($CO$89:$CP$189)>5,DC154*(5/MAX($CO$89:$CP$189)),DC154)","v":8.1727839111441991E-2},0.24369093263602692,{"$f":"IF(MAX($CQ$89:$CQ$189)=5,DE154,DE154+0.5*(5-MAX($CQ$89:$CQ$189)))-$DF$188/2+($CS$90-$CS$89)/2","v":2.0567278391114421},{"$f":"IF(MAX($CR$89:$CR$189)=5,DF154,DF154+0.5*(5-MAX($CR$89:$CR$189)))-$DF$188/2+($CT$91-$CT$90)/2","v":2.2186909326360271}]
[null,null,null,null,null,null,null,null,null,null,null,null,null,null,null,null,null,null,null,null,null,null,null,null,null,null,null,null,null,null,null,null,null,null,null,null,null,null,null,null,null,null,null,null,null,null,null,null,null,null,null,null,null,null,null,null,null,null,null,null,null,null,null,null,null,null,null,null,null,null,null,null,null,null,null,null,null,null,null,null,null,null,67,4.209734155810323,0.30923329989034087,1.2956158147457117,null,null,0,0,0,0,1.5,0,null,null,null,null,null,null,67,4.209734155810323,6.4938992976971643E-2,0.27207932109659949,null,null,6.4938992976971643E-2,0.27207932109659949,6.4938992976971643E-2,0.27207932109659949,2.0399389929769716,2.2470793210965998]
[null,null,null,null,null,null,null,null,null,null,null,null,null,null,null,null,null,null,null,null,null,null,null,null,null,null,null,null,null,null,null,null,null,null,null,null,null,null,null,null,null,null,null,null,null,null,null,null,null,null,null,null,null,null,null,null,null,null,null,null,null,null,null,null,null,null,null,null,null,null,null,null,null,null,null,null,null,null,null,null,null,null,68,4.2725660088821193,0.23793236883495039,1.4355517710873196,null,null,0,0,0,0,1.5,0,null,null,null,null,null,null,68,4.2725660088821193,4.9965797455339633E-2,0.30146587192833713,null,null,4.9965797455339633E-2,0.30146587192833713,4.9965797455339633E-2,0.30146587192833713,2.0249657974553399,2.276465871928337]
[null,null,null,null,null,null,null,null,null,null,null,null,null,null,null,null,null,null,null,null,null,null,null,null,null,null,null,null,null,null,null,null,null,null,null,null,null,null,null,null,null,null,null,null,null,null,null,null,null,null,null,null,null,null,null,null,null,null,null,null,null,null,null,null,null,null,null,null,null,null,null,null,null,null,null,null,null,null,null,null,null,null,69,4.335397861953914,0.1755587852793723,1.5796886182883036,null,null,0,0,0,0,1.5,0,null,null,null,null,null,null,69,4.335397861953914,3.6867344908668165E-2,0.33173460984054376,null,null,3.6867344908668165E-2,0.33173460984054376,3.6867344908668165E-2,0.33173460984054376,2.0118673449086684,2.3067346098405439]
[null,null,null,null,null,null,null,null,null,null,null,null,null,null,null,null,null,null,null,null,null,null,null,null,null,null,null,null,null,null,null,null,null,null,null,null,null,null,null,null,null,null,null,null,null,null,null,null,null,null,null,null,null,null,null,null,null,null,null,null,null,null,null,null,null,null,null,null,null,null,null,null,null,null,null,null,null,null,null,null,null,null,70,4.3982297150257104,0.12235870926211634,1.7274575140626311,null,null,0,0,0,0,1.5,0,null,null,null,null,null,null,70,4.3982297150257104,2.5695328945044393E-2,0.36276607795315252,null,null,2.5695328945044393E-2,0.36276607795315252,2.5695328945044393E-2,0.36276607795315252,2.0006953289450444,2.3377660779531526]
[null,null,null,null,null,null,null,null,null,null,null,null,null,null,null,null,null,null,null,null,null,null,null,null,null,null,null,null,null,null,null,null,null,null,null,null,null,null,null,null,null,null,null,null,null,null,null,null,null,null,null,null,null,null,null,null,null,null,null,null,null,null,null,null,null,null,null,null,null,null,null,null,null,null,null,null,null,null,null,null,null,null,71,4.4610615680975059,7.8542097178422754E-2,1.8782752820878619,null,null,0,0,0,0,1.5,0,null,null,null,null,null,null,71,4.4610615680975059,1.6493840407468707E-2,0.39443780923845095,null,null,1.6493840407468707E-2,0.39443780923845095,1.6493840407468707E-2,0.39443780923845095,1.9914938404074687,2.3694378092384509]
[null,null,null,null,null,null,null,null,null,null,null,null,null,null,null,null,null,null,null,null,null,null,null,null,null,null,null,null,null,null,null,null,null,null,null,null,null,null,null,null,null,null,null,null,null,null,null,null,null,null,null,null,null,null,null,null,null,null,null,null,null,null,null,null,null,null,null,null,null,null,null,null,null,null,null,null,null,null,null,null,null,null,72,4.5238934211693023,4.4281873178278364E-2,2.0315467135356884,null,null,0,0,0,0,1.5,0,null,null,null,null,null,null,72,4.5238934211693023,9.2991933674384519E-3,0.42662480984249457,null,null,9.2991933674384519E-3,0.42662480984249457,9.2991933674384519E-3,0.42662480984249457,1.9842991933674385,2.4016248098424948]
[null,null,null,null,null,null,null,null,null,null,null,null,null,null,null,null,null,null,null,null,null,null,null,null,null,null,null,null,null,null,null,null,null,null,null,null,null,null,null,null,null,null,null,null,null,null,null,null,null,null,null,null,null,null,null,null,null,null,null,null,null,null,null,null,null,null,null,null,null,null,null,null,null,null,null,null,null,null,null,null,null,null,73,4.5867252742410978,1.9713246713805699E-2,2.1866669160892385,null,null,0,0,0,0,1.5,0,null,null,null,null,null,null,73,4.5867252742410978,4.1397818098991568E-3,0.45920005237874012,null,null,4.1397818098991568E-3,0.45920005237874012,4.1397818098991568E-3,0.45920005237874012,1.979139781809899,2.4342000523787402]
[null,null,null,null,null,null,null,null,null,null,null,null,null,null,null,null,null,null,null,null,null,null,null,null,null,null,null,null,null,null,null,null,null,null,null,null,null,null,null,null,null,null,null,null,null,null,null,null,null,null,null,null,null,null,null,null,null,null,null,null,null,null,null,null,null,null,null,null,null,null,null,null,null,null,null,null,null,null,null,null,null,null,74,4.6495571273128942,4.9331789293209916E-3,2.3430237011767172,null,null,0,0,0,0,1.5,0,null,null,null,null,null,null,74,4.6495571273128942,1.0359675751574482E-3,0.49203497724711059,null,null,1.0359675751574482E-3,0.49203497724711059,1.0359675751574482E-3,0.49203497724711059,1.9760359675751578,2.4670349772471107]
[null,null,null,null,null,null,null,null,null,null,null,null,null,null,null,null,null,null,null,null,null,null,null,null,null,null,null,null,null,null,null,null,null,null,null,null,null,null,null,null,null,null,null,null,null,null,null,null,null,null,null,null,null,null,null,null,null,null,null,null,null,null,null,null,null,null,null,null,null,null,null,null,null,null,null,null,null,null,null,null,null,null,75,4.7123889803846897,0,2.4999999999999996,null,null,0,0,0,0,1.5,0,null,null,null,null,null,null,75,4.7123889803846897,0,0.52499999999999991,null,null,0,0.52499999999999991,0,0.52499999999999991,1.9750000000000001,2.5]
[null,null,null,null,null,null,null,null,null,null,null,null,null,null,null,null,null,null,null,null,null,null,null,null,null,null,null,null,null,null,null,null,null,null,null,null,null,null,null,null,null,null,null,null,null,null,null,null,null,null,null,null,null,null,null,null,null,null,null,null,null,null,null,null,null,null,null,null,null,null,null,null,null,null,null,null,null,null,null,null,null,null,76,4.7752208334564852,4.9331789293209916E-3,2.6569762988232819,null,null,0,0,0,0,1.5,0,null,null,null,null,null,null,76,4.7752208334564852,1.0359675751574482E-3,0.55796502275288928,null,null,1.0359675751574482E-3,0.55796502275288928,1.0359675751574482E-3,0.55796502275288928,1.9760359675751578,2.5329650227528893]
[null,null,null,null,null,null,null,null,null,null,null,null,null,null,null,null,null,null,null,null,null,null,null,null,null,null,null,null,null,null,null,null,null,null,null,null,null,null,null,null,null,null,null,null,null,null,null,null,null,null,null,null,null,null,null,null,null,null,null,null,null,null,null,null,null,null,null,null,null,null,null,null,null,null,null,null,null,null,null,null,null,null,77,4.8380526865282816,1.9713246713805255E-2,2.8133330839107606,null,null,0,0,0,0,1.5,0,null,null,null,null,null,null,77,4.8380526865282816,4.1397818098991568E-3,0.59079994762125976,null,null,4.1397818098991568E-3,0.59079994762125976,4.1397818098991568E-3,0.59079994762125976,1.979139781809899,2.5657999476212598]
[null,null,null,null,null,null,null,null,null,null,null,null,null,null,null,null,null,null,null,null,null,null,null,null,null,null,null,null,null,null,null,null,null,null,null,null,null,null,null,null,null,null,null,null,null,null,null,null,null,null,null,null,null,null,null,null,null,null,null,null,null,null,null,null,null,null,null,null,null,null,null,null,null,null,null,null,null,null,null,null,null,null,78,4.9008845396000771,4.4281873178278364E-2,2.9684532864643107,null,null,0,0,0,0,1.5,0,null,null,null,null,null,null,78,4.9008845396000771,9.2991933674384519E-3,0.62337519015750531,null,null,9.2991933674384519E-3,0.62337519015750531,9.2991933674384519E-3,0.62337519015750531,1.9842991933674385,2.5983751901575052]
[null,null,null,null,null,null,null,null,null,null,null,null,null,null,null,null,null,null,null,null,null,null,null,null,null,null,null,null,null,null,null,null,null,null,null,null,null,null,null,null,null,null,null,null,null,null,null,null,null,null,null,null,null,null,null,null,null,null,null,null,null,null,null,null,null,null,null,null,null,null,null,null,null,null,null,null,null,null,null,null,null,null,79,4.9637163926718735,7.854209717842231E-2,3.1217247179121372,null,null,0,0,0,0,1.5,0,null,null,null,null,null,null,79,4.9637163926718735,1.6493840407468707E-2,0.65556219076154887,null,null,1.6493840407468707E-2,0.65556219076154887,1.6493840407468707E-2,0.65556219076154887,1.9914938404074687,2.6305621907615491]
[null,null,null,null,null,null,null,null,null,null,null,null,null,null,null,null,null,null,null,null,null,null,null,null,null,null,null,null,null,null,null,null,null,null,null,null,null,null,null,null,null,null,null,null,null,null,null,null,null,null,null,null,null,null,null,null,null,null,null,null,null,null,null,null,null,null,null,null,null,null,null,null,null,null,null,null,null,null,null,null,null,null,80,5.026548245743669,0.12235870926211589,3.2725424859373682,null,null,0,0,0,0,1.5,0,null,null,null,null,null,null,80,5.026548245743669,2.5695328945044338E-2,0.6872339220468473,null,null,2.5695328945044338E-2,0.6872339220468473,2.5695328945044338E-2,0.6872339220468473,2.0006953289450444,2.6622339220468474]
[null,null,null,null,null,null,null,null,null,null,null,null,null,null,null,null,null,null,null,null,null,null,null,null,null,null,null,null,null,null,null,null,null,null,null,null,null,null,null,null,null,null,null,null,null,null,null,null,null,null,null,null,null,null,null,null,null,null,null,null,null,null,null,null,null,null,null,null,null,null,null,null,null,null,null,null,null,null,null,null,null,null,81,5.0893800988154654,0.17555878527937185,3.4203113817116959,null,null,0,0,0,0,1.5,0,null,null,null,null,null,null,81,5.0893800988154654,3.6867344908668109E-2,0.71826539015945612,null,null,3.6867344908668109E-2,0.71826539015945612,3.6867344908668109E-2,0.71826539015945612,2.0118673449086684,2.6932653901594561]
[null,null,null,null,null,null,null,null,null,null,null,null,null,null,null,null,null,null,null,null,null,null,null,null,null,null,null,null,null,null,null,null,null,null,null,null,null,null,null,null,null,null,null,null,null,null,null,null,null,null,null,null,null,null,null,null,null,null,null,null,null,null,null,null,null,null,null,null,null,null,null,null,null,null,null,null,null,null,null,null,null,null,82,5.15221195188726,0.23793236883495039,3.5644482289126795,null,null,0,0,0,0,1.5,0,null,null,null,null,null,null,82,5.15221195188726,4.9965797455339522E-2,0.74853412807166275,null,null,4.9965797455339522E-2,0.74853412807166275,4.9965797455339522E-2,0.74853412807166275,2.0249657974553394,2.723534128071663]
[null,null,null,null,null,null,null,null,null,null,null,null,null,null,null,null,null,null,null,null,null,null,null,null,null,null,null,null,null,null,null,null,null,null,null,null,null,null,null,null,null,null,null,null,null,null,null,null,null,null,null,null,null,null,null,null,null,null,null,null,null,null,null,null,null,null,null,null,null,null,null,null,null,null,null,null,null,null,null,null,null,null,83,5.2150438049590564,0.30923329989034043,3.7043841852542876,null,null,0,0,0,0,1.5,0,null,null,null,null,null,null,83,5.2150438049590564,6.4938992976971477E-2,0.77792067890340033,null,null,6.4938992976971477E-2,0.77792067890340033,6.4938992976971477E-2,0.77792067890340033,2.0399389929769716,2.7529206789034002]
[null,null,null,null,null,null,null,null,null,null,null,null,null,null,null,null,null,null,null,null,null,null,null,null,null,null,null,null,null,null,null,null,null,null,null,null,null,null,null,null,null,null,null,null,null,null,null,null,null,null,null,null,null,null,null,null,null,null,null,null,null,null,null,null,null,null,null,null,null,null,null,null,null,null,null,null,null,null,null,null,null,null,84,5.2778756580308519,0.38918018624496131,3.83956698744749,null,null,0,0,0,0,1.5,0,null,null,null,null,null,null,84,5.2778756580308519,8.172783911144188E-2,0.80630906736397301,null,null,8.172783911144188E-2,0.80630906736397301,8.172783911144188E-2,0.80630906736397301,2.0567278391114421,2.7813090673639729]
[null,null,null,null,null,null,null,null,null,null,null,null,null,null,null,null,null,null,null,null,null,null,null,null,null,null,null,null,null,null,null,null,null,null,null,null,null,null,null,null,null,null,null,null,null,null,null,null,null,null,null,null,null,null,null,null,null,null,null,null,null,null,null,null,null,null,null,null,null,null,null,null,null,null,null,null,null,null,null,null,null,null,85,5.3407075111026483,0.47745751406263093,3.9694631307311825,null,null,0,0,0,0,1.5,0,null,null,null,null,null,null,85,5.3407075111026483,0.10026607795315251,0.83358725745354834,null,null,0.10026607795315251,0.83358725745354834,0.10026607795315251,0.83358725745354834,2.0752660779531524,2.8085872574535484]
[null,null,null,null,null,null,null,null,null,null,null,null,null,null,null,null,null,null,null,null,null,null,null,null,null,null,null,null,null,null,null,null,null,null,null,null,null,null,null,null,null,null,null,null,null,null,null,null,null,null,null,null,null,null,null,null,null,null,null,null,null,null,null,null,null,null,null,null,null,null,null,null,null,null,null,null,null,null,null,null,null,null,86,5.4035393641744438,0.57371689306052609,4.0935599743717237,null,null,0,0,0,0,1.5,0,null,null,null,null,null,null,86,5.4035393641744438,0.12048054754271048,0.85964759461806195,null,null,0.12048054754271048,0.85964759461806195,0.12048054754271048,0.85964759461806195,2.0954805475427105,2.8346475946180623]
[null,null,null,null,null,null,null,null,null,null,null,null,null,null,null,null,null,null,null,null,null,null,null,null,null,null,null,null,null,null,null,null,null,null,null,null,null,null,null,null,null,null,null,null,null,null,null,null,null,null,null,null,null,null,null,null,null,null,null,null,null,null,null,null,null,null,null,null,null,null,null,null,null,null,null,null,null,null,null,null,null,null,87,5.4663712172462402,0.67757843144647101,4.2113677648217216,null,null,0,0,0,0,1.5,0,null,null,null,null,null,null,87,5.4663712172462402,0.14229147060375896,0.88438723061256153,null,null,0.14229147060375896,0.88438723061256153,0.14229147060375896,0.88438723061256153,2.1172914706037589,2.8593872306125614]
[null,null,null,null,null,null,null,null,null,null,null,null,null,null,null,null,null,null,null,null,null,null,null,null,null,null,null,null,null,null,null,null,null,null,null,null,null,null,null,null,null,null,null,null,null,null,null,null,null,null,null,null,null,null,null,null,null,null,null,null,null,null,null,null,null,null,null,null,null,null,null,null,null,null,null,null,null,null,null,null,null,null,88,5.5292030703180357,0.78863223517827752,4.3224215685535281,null,null,0,0,0,0,1.5,0,null,null,null,null,null,null,88,5.5292030703180357,0.1656127693874383,0.90770852939624092,null,null,0.1656127693874383,0.90770852939624092,0.1656127693874383,0.90770852939624092,2.1406127693874386,2.8827085293962411]
[null,null,null,null,null,null,null,null,null,null,null,null,null,null,null,null,null,null,null,null,null,null,null,null,null,null,null,null,null,null,null,null,null,null,null,null,null,null,null,null,null,null,null,null,null,null,null,null,null,null,null,null,null,null,null,null,null,null,null,null,null,null,null,null,null,null,null,null,null,null,null,null,null,null,null,null,null,null,null,null,null,null,89,5.5920349233898321,0.90644002562827586,4.4262831069394739,null,null,0,0,0,0,1.5,0,null,null,null,null,null,null,89,5.5920349233898321,0.19035240538193793,0.9295194524572894,null,null,0.19035240538193793,0.9295194524572894,0.19035240538193793,0.9295194524572894,2.1653524053819382,2.9045194524572895]
[null,null,null,null,null,null,null,null,null,null,null,null,null,null,null,null,null,null,null,null,null,null,null,null,null,null,null,null,null,null,null,null,null,null,null,null,null,null,null,null,null,null,null,null,null,null,null,null,null,null,null,null,null,null,null,null,null,null,null,null,null,null,null,null,null,null,null,null,null,null,null,null,null,null,null,null,null,null,null,null,null,null,90,5.6548667764616276,1.0305368692688166,4.5225424859373682,null,null,0,0,0,0,1.5,0,null,null,null,null,null,null,90,5.6548667764616276,0.21641274254645149,0.94973392204684737,null,null,0.21641274254645149,0.94973392204684737,0.21641274254645149,0.94973392204684737,2.1914127425464516,2.9247339220468476]
[null,null,null,null,null,null,null,null,null,null,null,null,null,null,null,null,null,null,null,null,null,null,null,null,null,null,null,null,null,null,null,null,null,null,null,null,null,null,null,null,null,null,null,null,null,null,null,null,null,null,null,null,null,null,null,null,null,null,null,null,null,null,null,null,null,null,null,null,null,null,null,null,null,null,null,null,null,null,null,null,null,null,91,5.717698629533424,1.1604330125525091,4.6108198137550378,null,null,0,0,0,0,1.5,0,null,null,null,null,null,null,91,5.717698629533424,0.24369093263602692,0.96827216088855805,null,null,0.24369093263602692,0.96827216088855805,0.24369093263602692,0.96827216088855805,2.2186909326360271,2.9432721608885584]
[null,null,null,null,null,null,null,null,null,null,null,null,null,null,null,null,null,null,null,null,null,null,null,null,null,null,null,null,null,null,null,null,null,null,null,null,null,null,null,null,null,null,null,null,null,null,null,null,null,null,null,null,null,null,null,null,null,null,null,null,null,null,null,null,null,null,null,null,null,null,null,null,null,null,null,null,null,null,null,null,null,null,92,5.7805304826052195,1.2956158147457117,4.6907667001096591,null,null,0,0,0,0,1.5,0,null,null,null,null,null,null,92,5.7805304826052195,0.27207932109659949,0.98506100702302835,null,null,0.27207932109659949,0.98506100702302835,0.27207932109659949,0.98506100702302835,2.2470793210965998,2.9600610070230284]
[null,null,null,null,null,null,null,null,null,null,null,null,null,null,null,null,null,null,null,null,null,null,null,null,null,null,null,null,null,null,null,null,null,null,null,null,null,null,null,null,null,null,null,null,null,null,null,null,null,null,null,null,null,null,null,null,null,null,null,null,null,null,null,null,null,null,null,null,null,null,null,null,null,null,null,null,null,null,null,null,null,null,93,5.8433623356770159,1.4355517710873196,4.7620676311650492,null,null,0,0,0,0,1.5,0,null,null,null,null,null,null,93,5.8433623356770159,0.30146587192833707,1.0000342025446605,null,null,0.30146587192833707,1.0000342025446605,0.30146587192833707,1.0000342025446605,2.276465871928337,2.9750342025446606]
[null,null,null,null,null,null,null,null,null,null,null,null,null,null,null,null,null,null,null,null,null,null,null,null,null,null,null,null,null,null,null,null,null,null,null,null,null,null,null,null,null,null,null,null,null,null,null,null,null,null,null,null,null,null,null,null,null,null,null,null,null,null,null,null,null,null,null,null,null,null,null,null,null,null,null,null,null,null,null,null,null,null,94,5.9061941887488105,1.5796886182883032,4.8244412147206273,null,null,0,0,0,0,1.5,0,null,null,null,null,null,null,94,5.9061941887488105,0.3317346098405437,1.013132655091332,null,null,0.3317346098405437,1.013132655091332,0.3317346098405437,1.013132655091332,2.3067346098405439,2.9881326550913321]
[null,null,null,null,null,null,null,null,null,null,null,null,null,null,null,null,null,null,null,null,null,null,null,null,null,null,null,null,null,null,null,null,null,null,null,null,null,null,null,null,null,null,null,null,null,null,null,null,null,null,null,null,null,null,null,null,null,null,null,null,null,null,null,null,null,null,null,null,null,null,null,null,null,null,null,null,null,null,null,null,null,null,95,5.9690260418206069,1.7274575140626309,4.8776412907378841,null,null,0,0,0,0,1.5,0,null,null,null,null,null,null,95,5.9690260418206069,0.36276607795315252,1.0243046710549557,null,null,0.36276607795315252,1.0243046710549557,0.36276607795315252,1.0243046710549557,2.3377660779531526,2.9993046710549556]
[null,null,null,null,null,null,null,null,null,null,null,null,null,null,null,null,null,null,null,null,null,null,null,null,null,null,null,null,null,null,null,null,null,null,null,null,null,null,null,null,null,null,null,null,null,null,null,null,null,null,null,null,null,null,null,null,null,null,null,null,null,null,null,null,null,null,null,null,null,null,null,null,null,null,null,null,null,null,null,null,null,null,96,6.0318578948924024,1.8782752820878617,4.9214579028215777,null,null,0,0,0,0,1.5,0,null,null,null,null,null,null,96,6.0318578948924024,0.39443780923845095,1.0335061595925312,null,null,0.39443780923845095,1.0335061595925312,0.39443780923845095,1.0335061595925312,2.3694378092384509,3.0085061595925313]
[null,null,null,null,null,null,null,null,null,null,null,null,null,null,null,null,null,null,null,null,null,null,null,null,null,null,null,null,null,null,null,null,null,null,null,null,null,null,null,null,null,null,null,null,null,null,null,null,null,null,null,null,null,null,null,null,null,null,null,null,null,null,null,null,null,null,null,null,null,null,null,null,null,null,null,null,null,null,null,null,null,null,97,6.0946897479641988,2.0315467135356884,4.9557181268217221,null,null,0,0,0,0,1.5,0,null,null,null,null,null,null,97,6.0946897479641988,0.42662480984249457,1.0407008066325616,null,null,0.42662480984249457,1.0407008066325616,0.42662480984249457,1.0407008066325616,2.4016248098424948,3.0157008066325619]
[null,null,null,null,null,null,null,null,null,null,null,null,null,null,null,null,null,null,null,null,null,null,null,null,null,null,null,null,null,null,null,null,null,null,null,null,null,null,null,null,null,null,null,null,null,null,null,null,null,null,null,null,null,null,null,null,null,null,null,null,null,null,null,null,null,null,null,null,null,null,null,null,null,null,null,null,null,null,null,null,null,null,98,6.1575216010359943,2.1866669160892385,4.9802867532861939,null,null,0,0,0,0,1.5,0,null,null,null,null,null,null,98,6.1575216010359943,0.45920005237874006,1.0458602181901009,null,null,0.45920005237874006,1.0458602181901009,0.45920005237874006,1.0458602181901009,2.4342000523787402,3.020860218190101]
[null,null,null,null,null,null,null,null,null,null,null,null,null,null,null,null,null,null,null,null,null,null,null,null,null,null,null,null,null,null,null,null,null,null,null,null,null,null,null,null,null,null,null,null,null,null,null,null,null,null,null,null,null,null,null,null,null,null,null,null,null,null,null,null,null,null,null,null,null,null,null,null,null,null,null,null,null,null,null,null,null,null,99,6.2203534541077907,2.3430237011767168,4.9950668210706795,null,null,0,0,0,0,1.5,0,null,null,null,null,null,null,99,6.2203534541077907,0.49203497724711054,1.0489640324248426,null,null,0.49203497724711054,1.0489640324248426,0.49203497724711054,1.0489640324248426,2.4670349772471107,3.0239640324248427]
[null,null,null,null,null,null,null,null,null,null,null,null,null,null,null,null,null,null,null,null,null,null,null,null,null,null,null,null,null,null,null,null,null,null,null,null,null,null,null,null,null,null,null,null,null,null,null,null,null,null,null,null,null,null,null,null,null,null,null,null,null,null,null,null,null,null,null,null,null,null,null,null,null,null,null,null,null,null,null,null,null,null,100,6.2831853071795862,2.4999999999999996,5,null,null,0,0,0,0,1.5,0,null,null,null,null,null,null,100,6.2831853071795862,0.52499999999999991,1.05,null,null,0.52499999999999991,1.05,0.52499999999999991,1.05,2.5,3.0249999999999999]
[null,null,null,null,null,null,null,null,null,null,null,null,null,null,null,null,null,null,null,null,null,null,null,null,null,null,null,null,null,null,null,null,null,null,null,null,null,null,null,null,null,null,null,null,null,null,null,null,null,null,null,null,null,null,null,null,null,null,null,null,null,null,null,null,null,null,null,null,null,null,null,null,null,null,null,null,null,null,null,null,null,null,null,null,null,null,null,null,0,0,0,0,{"$f":"CO89","v":1.5},{"$f":"CP89","v":0},null,null,null,null,null,null,null,null,null,null,null,null,0,0]